Organisation Code,Organisation Label,Effective Date,Organisational Unit,Service Division Label,Category Internal Name,Purpose,Detailed Expenditure Code,Payment Date,Transaction Number,Irrecoverable VAT Amount,Amount,Capital Or Revenue,Beneficiary Name,Procurement Card
Http://opendatacommunities.org/id/metropolitan-district-council/leeds,Leeds City Council,31/10/2022,Adults and Health,Services For Older People Under 65 P/Dis,Agency Payments,Sheltered Accommodation,569,12/10/2022,2210-000001,0.00,5400.00,R,A & V TRANSITIONAL HOMES,No
Http://opendatacommunities.org/id/metropolitan-district-council/leeds,Leeds City Council,31/10/2022,City Development,Highways,Capital,INTERNAL FEES,6,05/10/2022,2210-000002,0.00,693.55,C,A C GILPIN,No
Http://opendatacommunities.org/id/metropolitan-district-council/leeds,Leeds City Council,31/10/2022,Resources,Leeds Building Services,Supplies and Services,Other Hired and Contracted Services,265,05/10/2022,2210-000003,0.00,10169.00,R,A Coole Electrical Ltd,No
Http://opendatacommunities.org/id/metropolitan-district-council/leeds,Leeds City Council,31/10/2022,Resources,Leeds Building Services,Supplies and Services,Other Hired and Contracted Services,265,07/10/2022,2210-000004,0.00,5186.00,R,A Coole Electrical Ltd,No
Http://opendatacommunities.org/id/metropolitan-district-council/leeds,Leeds City Council,31/10/2022,Resources,Leeds Building Services,Supplies and Services,Other Hired and Contracted Services,265,07/10/2022,2210-000005,0.00,1494.00,R,A Coole Electrical Ltd,No
Http://opendatacommunities.org/id/metropolitan-district-council/leeds,Leeds City Council,31/10/2022,Resources,Leeds Building Services,Supplies and Services,Other Hired and Contracted Services,265,26/10/2022,2210-000006,0.00,11535.00,R,A Coole Electrical Ltd,No
Http://opendatacommunities.org/id/metropolitan-district-council/leeds,Leeds City Council,31/10/2022,Resources,Leeds Building Services,Supplies and Services,Other Hired and Contracted Services,265,28/10/2022,2210-000007,0.00,75.00,R,A Coole Electrical Ltd,No
Http://opendatacommunities.org/id/metropolitan-district-council/leeds,Leeds City Council,31/10/2022,Communities Housing and Environment,Customer Access,Supplies and Services,Bought In Professional Services,277,05/10/2022,2210-000008,0.00,28.50,R,REDACTED COMMERCIAL CONFIDENTIALITY,No
Http://opendatacommunities.org/id/metropolitan-district-council/leeds,Leeds City Council,31/10/2022,Communities Housing and Environment,Customer Access,Supplies and Services,Bought In Professional Services,277,05/10/2022,2210-000009,0.00,18.00,R,REDACTED COMMERCIAL CONFIDENTIALITY,No
Http://opendatacommunities.org/id/metropolitan-district-council/leeds,Leeds City Council,31/10/2022,Communities Housing and Environment,Customer Access,Supplies and Services,Bought In Professional Services,277,05/10/2022,2210-000010,0.00,9.00,R,REDACTED COMMERCIAL CONFIDENTIALITY,No
Http://opendatacommunities.org/id/metropolitan-district-council/leeds,Leeds City Council,31/10/2022,Communities Housing and Environment,Customer Access,Supplies and Services,Bought In Professional Services,277,12/10/2022,2210-000011,0.00,18.00,R,REDACTED COMMERCIAL CONFIDENTIALITY,No
Http://opendatacommunities.org/id/metropolitan-district-council/leeds,Leeds City Council,31/10/2022,Communities Housing and Environment,Customer Access,Supplies and Services,Bought In Professional Services,277,12/10/2022,2210-000012,0.00,18.00,R,REDACTED COMMERCIAL CONFIDENTIALITY,No
Http://opendatacommunities.org/id/metropolitan-district-council/leeds,Leeds City Council,31/10/2022,Communities Housing and Environment,Customer Access,Supplies and Services,Bought In Professional Services,277,12/10/2022,2210-000013,0.00,24.00,R,REDACTED COMMERCIAL CONFIDENTIALITY,No
Http://opendatacommunities.org/id/metropolitan-district-council/leeds,Leeds City Council,31/10/2022,Communities Housing and Environment,Customer Access,Supplies and Services,Bought In Professional Services,277,26/10/2022,2210-000014,0.00,9.00,R,REDACTED COMMERCIAL CONFIDENTIALITY,No
Http://opendatacommunities.org/id/metropolitan-district-council/leeds,Leeds City Council,31/10/2022,Communities Housing and Environment,Customer Access,Supplies and Services,Bought In Professional Services,277,26/10/2022,2210-000015,0.00,18.00,R,REDACTED COMMERCIAL CONFIDENTIALITY,No
Http://opendatacommunities.org/id/metropolitan-district-council/leeds,Leeds City Council,31/10/2022,Children and Families,Social Care,Agency Payments,Services Rendered By Other Organisations,511,05/10/2022,2210-000016,0.00,1900.76,R,REDACTED PERSONAL DATA,No
Http://opendatacommunities.org/id/metropolitan-district-council/leeds,Leeds City Council,31/10/2022,Children and Families,Social Care,Agency Payments,Services Rendered By Voluntary Sector,505,07/10/2022,2210-000017,0.00,4613.89,R,REDACTED PERSONAL DATA,No
Http://opendatacommunities.org/id/metropolitan-district-council/leeds,Leeds City Council,31/10/2022,Strategic Landlord,HRA Housing Leeds,Capital,OTHER COSTS,7,25/10/2022,2210-000018,0.00,94.17,C,REDACTED PERSONAL DATA,No
Http://opendatacommunities.org/id/metropolitan-district-council/leeds,Leeds City Council,31/10/2022,Adults and Health,Other Generic Services,Agency Payments,Fees To Carers,563,14/10/2022,2210-000019,0.00,460.80,R,REDACTED PERSONAL DATA,No
Http://opendatacommunities.org/id/metropolitan-district-council/leeds,Leeds City Council,31/10/2022,Adults and Health,Other Generic Services,Agency Payments,Fees To Carers,563,14/10/2022,2210-000020,0.00,250.62,R,REDACTED PERSONAL DATA,No
Http://opendatacommunities.org/id/metropolitan-district-council/leeds,Leeds City Council,31/10/2022,Adults and Health,Other Generic Services,Agency Payments,Fees To Carers,563,14/10/2022,2210-000021,0.00,41.77,R,REDACTED PERSONAL DATA,No
Http://opendatacommunities.org/id/metropolitan-district-council/leeds,Leeds City Council,31/10/2022,Adults and Health,Other Generic Services,Agency Payments,Fees To Carers,563,14/10/2022,2210-000022,0.00,50.40,R,REDACTED PERSONAL DATA,No
Http://opendatacommunities.org/id/metropolitan-district-council/leeds,Leeds City Council,31/10/2022,Adults and Health,Other Generic Services,Agency Payments,Fees To Carers,563,21/10/2022,2210-000023,0.00,125.31,R,REDACTED PERSONAL DATA,No
Http://opendatacommunities.org/id/metropolitan-district-council/leeds,Leeds City Council,31/10/2022,Adults and Health,Other Generic Services,Agency Payments,Fees To Carers,563,21/10/2022,2210-000024,0.00,41.77,R,REDACTED PERSONAL DATA,No
Http://opendatacommunities.org/id/metropolitan-district-council/leeds,Leeds City Council,31/10/2022,Adults and Health,Other Generic Services,Agency Payments,Fees To Carers,563,28/10/2022,2210-000025,0.00,41.77,R,REDACTED PERSONAL DATA,No
Http://opendatacommunities.org/id/metropolitan-district-council/leeds,Leeds City Council,31/10/2022,Adults and Health,Other Generic Services,Agency Payments,Fees To Carers,563,28/10/2022,2210-000026,0.00,83.54,R,REDACTED PERSONAL DATA,No
Http://opendatacommunities.org/id/metropolitan-district-council/leeds,Leeds City Council,31/10/2022,Resources,Leeds Building Services,Supplies and Services,Operational Materials,205,21/10/2022,2210-000027,0.00,68.00,R,A J H  Pump Supply & Repair Ltd,No
Http://opendatacommunities.org/id/metropolitan-district-council/leeds,Leeds City Council,31/10/2022,Resources,Leeds Building Services,Supplies and Services,Operational Materials,205,28/10/2022,2210-000028,0.00,1085.00,R,A J H  Pump Supply & Repair Ltd,No
Http://opendatacommunities.org/id/metropolitan-district-council/leeds,Leeds City Council,31/10/2022,Communities Housing and Environment,Parks and Countryside,Supplies and Services,Resaleable Materials,204,14/10/2022,2210-000029,0.00,172.80,R,A J PROMOTIONS,No
Http://opendatacommunities.org/id/metropolitan-district-council/leeds,Leeds City Council,31/10/2022,Communities Housing and Environment,Parks and Countryside,Supplies and Services,Resaleable Materials,204,14/10/2022,2210-000030,0.00,190.00,R,A J PROMOTIONS,No
Http://opendatacommunities.org/id/metropolitan-district-council/leeds,Leeds City Council,31/10/2022,Children and Families,Social Care,Agency Payments,Services Rendered By Other Organisations,511,07/10/2022,2210-000031,0.00,699.07,R,REDACTED PERSONAL DATA,No
Http://opendatacommunities.org/id/metropolitan-district-council/leeds,Leeds City Council,31/10/2022,Adults and Health,Services For Older People - 65 and Over,Agency Payments,Residential Care Dementia,571,13/10/2022,2210-000032,0.00,122.93,R,REDACTED PERSONAL DATA,No
Http://opendatacommunities.org/id/metropolitan-district-council/leeds,Leeds City Council,31/10/2022,Strategic Landlord,HRA Housing Leeds,Capital,OTHER COSTS,7,25/10/2022,2210-000033,0.00,94.17,C,REDACTED PERSONAL DATA,No
Http://opendatacommunities.org/id/metropolitan-district-council/leeds,Leeds City Council,31/10/2022,Children and Families,Social Care,Employees,Agency Staff,8,18/10/2022,2210-000034,0.00,888.00,R,A Little Something Extra Ltd,No
Http://opendatacommunities.org/id/metropolitan-district-council/leeds,Leeds City Council,31/10/2022,Children and Families,Social Care,Employees,Agency Staff,8,18/10/2022,2210-000035,0.00,-462.50,R,A Little Something Extra Ltd,No
Http://opendatacommunities.org/id/metropolitan-district-council/leeds,Leeds City Council,31/10/2022,Children and Families,Social Care,Employees,Agency Staff,8,18/10/2022,2210-000036,0.00,1665.00,R,A Little Something Extra Ltd,No
Http://opendatacommunities.org/id/metropolitan-district-council/leeds,Leeds City Council,31/10/2022,Children and Families,Social Care,Employees,Agency Staff,8,18/10/2022,2210-000037,0.00,740.00,R,A Little Something Extra Ltd,No
Http://opendatacommunities.org/id/metropolitan-district-council/leeds,Leeds City Council,31/10/2022,Children and Families,Social Care,Employees,Agency Staff,8,18/10/2022,2210-000038,0.00,963.48,R,A Little Something Extra Ltd,No
Http://opendatacommunities.org/id/metropolitan-district-council/leeds,Leeds City Council,31/10/2022,Children and Families,Social Care,Employees,Agency Staff,8,18/10/2022,2210-000039,0.00,888.00,R,A Little Something Extra Ltd,No
Http://opendatacommunities.org/id/metropolitan-district-council/leeds,Leeds City Council,31/10/2022,Children and Families,Social Care,Employees,Agency Staff,8,18/10/2022,2210-000040,0.00,296.00,R,A Little Something Extra Ltd,No
Http://opendatacommunities.org/id/metropolitan-district-council/leeds,Leeds City Council,31/10/2022,Children and Families,Social Care,Employees,Agency Staff,8,31/10/2022,2210-000041,0.00,740.00,R,A Little Something Extra Ltd,No
Http://opendatacommunities.org/id/metropolitan-district-council/leeds,Leeds City Council,31/10/2022,Communities Housing and Environment,Customer Access,Supplies and Services,Bought In Professional Services,277,05/10/2022,2210-000042,0.00,108.00,R,A MOHAMMED,No
Http://opendatacommunities.org/id/metropolitan-district-council/leeds,Leeds City Council,31/10/2022,Communities Housing and Environment,Customer Access,Supplies and Services,Bought In Professional Services,277,05/10/2022,2210-000043,0.00,18.00,R,A MOHAMMED,No
Http://opendatacommunities.org/id/metropolitan-district-council/leeds,Leeds City Council,31/10/2022,Communities Housing and Environment,Customer Access,Supplies and Services,Bought In Professional Services,277,05/10/2022,2210-000044,0.00,126.00,R,A MOHAMMED,No
Http://opendatacommunities.org/id/metropolitan-district-council/leeds,Leeds City Council,31/10/2022,Communities Housing and Environment,Customer Access,Supplies and Services,Bought In Professional Services,277,05/10/2022,2210-000045,0.00,108.00,R,A MOHAMMED,No
Http://opendatacommunities.org/id/metropolitan-district-council/leeds,Leeds City Council,31/10/2022,Communities Housing and Environment,Customer Access,Supplies and Services,Bought In Professional Services,277,05/10/2022,2210-000046,0.00,108.00,R,A MOHAMMED,No
Http://opendatacommunities.org/id/metropolitan-district-council/leeds,Leeds City Council,31/10/2022,Communities Housing and Environment,Customer Access,Supplies and Services,Bought In Professional Services,277,05/10/2022,2210-000047,0.00,108.00,R,A MOHAMMED,No
Http://opendatacommunities.org/id/metropolitan-district-council/leeds,Leeds City Council,31/10/2022,Communities Housing and Environment,Customer Access,Supplies and Services,Bought In Professional Services,277,12/10/2022,2210-000048,0.00,108.00,R,A MOHAMMED,No
Http://opendatacommunities.org/id/metropolitan-district-council/leeds,Leeds City Council,31/10/2022,Communities Housing and Environment,Customer Access,Supplies and Services,Bought In Professional Services,277,12/10/2022,2210-000049,0.00,108.00,R,A MOHAMMED,No
Http://opendatacommunities.org/id/metropolitan-district-council/leeds,Leeds City Council,31/10/2022,Communities Housing and Environment,Customer Access,Supplies and Services,Bought In Professional Services,277,12/10/2022,2210-000050,0.00,108.00,R,A MOHAMMED,No
Http://opendatacommunities.org/id/metropolitan-district-council/leeds,Leeds City Council,31/10/2022,Communities Housing and Environment,Customer Access,Supplies and Services,Bought In Professional Services,277,12/10/2022,2210-000051,0.00,9.00,R,A MOHAMMED,No
Http://opendatacommunities.org/id/metropolitan-district-council/leeds,Leeds City Council,31/10/2022,Communities Housing and Environment,Customer Access,Supplies and Services,Bought In Professional Services,277,12/10/2022,2210-000052,0.00,108.00,R,A MOHAMMED,No
Http://opendatacommunities.org/id/metropolitan-district-council/leeds,Leeds City Council,31/10/2022,Communities Housing and Environment,Customer Access,Supplies and Services,Bought In Professional Services,277,12/10/2022,2210-000053,0.00,43.50,R,A MOHAMMED,No
Http://opendatacommunities.org/id/metropolitan-district-council/leeds,Leeds City Council,31/10/2022,Communities Housing and Environment,Customer Access,Supplies and Services,Bought In Professional Services,277,12/10/2022,2210-000054,0.00,126.00,R,A MOHAMMED,No
Http://opendatacommunities.org/id/metropolitan-district-council/leeds,Leeds City Council,31/10/2022,Communities Housing and Environment,Customer Access,Supplies and Services,Bought In Professional Services,277,19/10/2022,2210-000055,0.00,18.00,R,A MOHAMMED,No
Http://opendatacommunities.org/id/metropolitan-district-council/leeds,Leeds City Council,31/10/2022,Communities Housing and Environment,Customer Access,Supplies and Services,Bought In Professional Services,277,19/10/2022,2210-000056,0.00,18.00,R,A MOHAMMED,No
Http://opendatacommunities.org/id/metropolitan-district-council/leeds,Leeds City Council,31/10/2022,Communities Housing and Environment,Customer Access,Supplies and Services,Bought In Professional Services,277,19/10/2022,2210-000057,0.00,108.00,R,A MOHAMMED,No
Http://opendatacommunities.org/id/metropolitan-district-council/leeds,Leeds City Council,31/10/2022,Communities Housing and Environment,Customer Access,Supplies and Services,Bought In Professional Services,277,19/10/2022,2210-000058,0.00,126.00,R,A MOHAMMED,No
Http://opendatacommunities.org/id/metropolitan-district-council/leeds,Leeds City Council,31/10/2022,Communities Housing and Environment,Customer Access,Supplies and Services,Bought In Professional Services,277,19/10/2022,2210-000059,0.00,18.00,R,A MOHAMMED,No
Http://opendatacommunities.org/id/metropolitan-district-council/leeds,Leeds City Council,31/10/2022,Communities Housing and Environment,Customer Access,Supplies and Services,Bought In Professional Services,277,19/10/2022,2210-000060,0.00,18.00,R,A MOHAMMED,No
Http://opendatacommunities.org/id/metropolitan-district-council/leeds,Leeds City Council,31/10/2022,Communities Housing and Environment,Customer Access,Supplies and Services,Bought In Professional Services,277,19/10/2022,2210-000061,0.00,108.00,R,A MOHAMMED,No
Http://opendatacommunities.org/id/metropolitan-district-council/leeds,Leeds City Council,31/10/2022,Communities Housing and Environment,Customer Access,Supplies and Services,Bought In Professional Services,277,19/10/2022,2210-000062,0.00,18.00,R,A MOHAMMED,No
Http://opendatacommunities.org/id/metropolitan-district-council/leeds,Leeds City Council,31/10/2022,Communities Housing and Environment,Customer Access,Supplies and Services,Bought In Professional Services,277,19/10/2022,2210-000063,0.00,18.00,R,A MOHAMMED,No
Http://opendatacommunities.org/id/metropolitan-district-council/leeds,Leeds City Council,31/10/2022,Communities Housing and Environment,Customer Access,Supplies and Services,Bought In Professional Services,277,19/10/2022,2210-000064,0.00,108.00,R,A MOHAMMED,No
Http://opendatacommunities.org/id/metropolitan-district-council/leeds,Leeds City Council,31/10/2022,Communities Housing and Environment,Customer Access,Supplies and Services,Bought In Professional Services,277,19/10/2022,2210-000065,0.00,18.00,R,A MOHAMMED,No
Http://opendatacommunities.org/id/metropolitan-district-council/leeds,Leeds City Council,31/10/2022,Communities Housing and Environment,Customer Access,Supplies and Services,Bought In Professional Services,277,19/10/2022,2210-000066,0.00,18.00,R,A MOHAMMED,No
Http://opendatacommunities.org/id/metropolitan-district-council/leeds,Leeds City Council,31/10/2022,Communities Housing and Environment,Customer Access,Supplies and Services,Bought In Professional Services,277,26/10/2022,2210-000067,0.00,126.00,R,A MOHAMMED,No
Http://opendatacommunities.org/id/metropolitan-district-council/leeds,Leeds City Council,31/10/2022,Communities Housing and Environment,Customer Access,Supplies and Services,Bought In Professional Services,277,26/10/2022,2210-000068,0.00,18.00,R,A MOHAMMED,No
Http://opendatacommunities.org/id/metropolitan-district-council/leeds,Leeds City Council,31/10/2022,Communities Housing and Environment,Customer Access,Supplies and Services,Bought In Professional Services,277,26/10/2022,2210-000069,0.00,27.00,R,A MOHAMMED,No
Http://opendatacommunities.org/id/metropolitan-district-council/leeds,Leeds City Council,31/10/2022,Communities Housing and Environment,Customer Access,Supplies and Services,Bought In Professional Services,277,26/10/2022,2210-000070,0.00,18.00,R,A MOHAMMED,No
Http://opendatacommunities.org/id/metropolitan-district-council/leeds,Leeds City Council,31/10/2022,Communities Housing and Environment,Customer Access,Supplies and Services,Bought In Professional Services,277,26/10/2022,2210-000071,0.00,108.00,R,A MOHAMMED,No
Http://opendatacommunities.org/id/metropolitan-district-council/leeds,Leeds City Council,31/10/2022,Communities Housing and Environment,Customer Access,Supplies and Services,Bought In Professional Services,277,26/10/2022,2210-000072,0.00,108.00,R,A MOHAMMED,No
Http://opendatacommunities.org/id/metropolitan-district-council/leeds,Leeds City Council,31/10/2022,Children and Families,Social Care,Agency Payments,Services Rendered By Other Organisations,511,05/10/2022,2210-000073,0.00,543.07,R,REDACTED PERSONAL DATA,No
Http://opendatacommunities.org/id/metropolitan-district-council/leeds,Leeds City Council,31/10/2022,Children and Families,Social Care,Agency Payments,Services Rendered By Other Organisations,511,07/10/2022,2210-000074,0.00,2563.27,R,REDACTED PERSONAL DATA,No
Http://opendatacommunities.org/id/metropolitan-district-council/leeds,Leeds City Council,31/10/2022,Communities Housing and Environment,Customer Access,Supplies and Services,Bought In Professional Services,277,05/10/2022,2210-000075,0.00,108.00,R,A NAMAKI,No
Http://opendatacommunities.org/id/metropolitan-district-council/leeds,Leeds City Council,31/10/2022,Communities Housing and Environment,Customer Access,Supplies and Services,Bought In Professional Services,277,05/10/2022,2210-000076,0.00,108.00,R,A NAMAKI,No
Http://opendatacommunities.org/id/metropolitan-district-council/leeds,Leeds City Council,31/10/2022,Communities Housing and Environment,Customer Access,Supplies and Services,Bought In Professional Services,277,05/10/2022,2210-000077,0.00,108.00,R,A NAMAKI,No
Http://opendatacommunities.org/id/metropolitan-district-council/leeds,Leeds City Council,31/10/2022,Communities Housing and Environment,Customer Access,Supplies and Services,Bought In Professional Services,277,12/10/2022,2210-000078,0.00,108.00,R,A NAMAKI,No
Http://opendatacommunities.org/id/metropolitan-district-council/leeds,Leeds City Council,31/10/2022,Communities Housing and Environment,Customer Access,Supplies and Services,Bought In Professional Services,277,12/10/2022,2210-000079,0.00,108.00,R,A NAMAKI,No
Http://opendatacommunities.org/id/metropolitan-district-council/leeds,Leeds City Council,31/10/2022,Communities Housing and Environment,Customer Access,Supplies and Services,Bought In Professional Services,277,12/10/2022,2210-000080,0.00,108.00,R,A NAMAKI,No
Http://opendatacommunities.org/id/metropolitan-district-council/leeds,Leeds City Council,31/10/2022,Communities Housing and Environment,Customer Access,Supplies and Services,Bought In Professional Services,277,12/10/2022,2210-000081,0.00,18.00,R,A NAMAKI,No
Http://opendatacommunities.org/id/metropolitan-district-council/leeds,Leeds City Council,31/10/2022,Communities Housing and Environment,Customer Access,Supplies and Services,Bought In Professional Services,277,12/10/2022,2210-000082,0.00,13.50,R,A NAMAKI,No
Http://opendatacommunities.org/id/metropolitan-district-council/leeds,Leeds City Council,31/10/2022,Communities Housing and Environment,Customer Access,Supplies and Services,Bought In Professional Services,277,12/10/2022,2210-000083,0.00,108.00,R,A NAMAKI,No
Http://opendatacommunities.org/id/metropolitan-district-council/leeds,Leeds City Council,31/10/2022,Communities Housing and Environment,Customer Access,Supplies and Services,Bought In Professional Services,277,12/10/2022,2210-000084,0.00,108.00,R,A NAMAKI,No
Http://opendatacommunities.org/id/metropolitan-district-council/leeds,Leeds City Council,31/10/2022,Communities Housing and Environment,Customer Access,Supplies and Services,Bought In Professional Services,277,12/10/2022,2210-000085,0.00,108.00,R,A NAMAKI,No
Http://opendatacommunities.org/id/metropolitan-district-council/leeds,Leeds City Council,31/10/2022,Communities Housing and Environment,Customer Access,Supplies and Services,Bought In Professional Services,277,12/10/2022,2210-000086,0.00,18.00,R,A NAMAKI,No
Http://opendatacommunities.org/id/metropolitan-district-council/leeds,Leeds City Council,31/10/2022,Communities Housing and Environment,Customer Access,Supplies and Services,Bought In Professional Services,277,19/10/2022,2210-000087,0.00,108.00,R,A NAMAKI,No
Http://opendatacommunities.org/id/metropolitan-district-council/leeds,Leeds City Council,31/10/2022,Communities Housing and Environment,Customer Access,Supplies and Services,Bought In Professional Services,277,19/10/2022,2210-000088,0.00,108.00,R,A NAMAKI,No
Http://opendatacommunities.org/id/metropolitan-district-council/leeds,Leeds City Council,31/10/2022,Communities Housing and Environment,Customer Access,Supplies and Services,Bought In Professional Services,277,19/10/2022,2210-000089,0.00,108.00,R,A NAMAKI,No
Http://opendatacommunities.org/id/metropolitan-district-council/leeds,Leeds City Council,31/10/2022,Communities Housing and Environment,Customer Access,Supplies and Services,Bought In Professional Services,277,19/10/2022,2210-000090,0.00,18.00,R,A NAMAKI,No
Http://opendatacommunities.org/id/metropolitan-district-council/leeds,Leeds City Council,31/10/2022,Communities Housing and Environment,Customer Access,Supplies and Services,Bought In Professional Services,277,19/10/2022,2210-000091,0.00,18.00,R,A NAMAKI,No
Http://opendatacommunities.org/id/metropolitan-district-council/leeds,Leeds City Council,31/10/2022,Communities Housing and Environment,Customer Access,Supplies and Services,Bought In Professional Services,277,19/10/2022,2210-000092,0.00,108.00,R,A NAMAKI,No
Http://opendatacommunities.org/id/metropolitan-district-council/leeds,Leeds City Council,31/10/2022,Communities Housing and Environment,Customer Access,Supplies and Services,Bought In Professional Services,277,26/10/2022,2210-000093,0.00,108.00,R,A NAMAKI,No
Http://opendatacommunities.org/id/metropolitan-district-council/leeds,Leeds City Council,31/10/2022,Communities Housing and Environment,Customer Access,Supplies and Services,Bought In Professional Services,277,26/10/2022,2210-000094,0.00,108.00,R,A NAMAKI,No
Http://opendatacommunities.org/id/metropolitan-district-council/leeds,Leeds City Council,31/10/2022,Children and Families,Social Care,Agency Payments,Services Rendered By Other Organisations,511,07/10/2022,2210-000095,0.00,233.02,R,REDACTED PERSONAL DATA,No
Http://opendatacommunities.org/id/metropolitan-district-council/leeds,Leeds City Council,31/10/2022,Resources,Commercial Services,Supplies and Services,Other Hired and Contracted Services,265,20/10/2022,2210-000096,0.00,132.00,R,REDACTED PERSONAL DATA,No
Http://opendatacommunities.org/id/metropolitan-district-council/leeds,Leeds City Council,31/10/2022,Resources,Shared Services,Supplies and Services,Other Hired and Contracted Services,265,11/10/2022,2210-000097,0.00,100.00,R,A Star Couriers Ltd,No
Http://opendatacommunities.org/id/metropolitan-district-council/leeds,Leeds City Council,31/10/2022,Resources,Shared Services,Supplies and Services,Other Hired and Contracted Services,265,28/10/2022,2210-000098,0.00,270.00,R,A Star Couriers Ltd,No
Http://opendatacommunities.org/id/metropolitan-district-council/leeds,Leeds City Council,31/10/2022,Communities Housing and Environment,Waste Management,Employees,Training & Development,70,07/10/2022,2210-000099,0.00,403.80,R,A T Nerac Ltd,No
Http://opendatacommunities.org/id/metropolitan-district-council/leeds,Leeds City Council,31/10/2022,Children and Families,Social Care,Agency Payments,Services Rendered By Other Organisations,511,05/10/2022,2210-000100,0.00,334.20,R,REDACTED PERSONAL DATA,No
Http://opendatacommunities.org/id/metropolitan-district-council/leeds,Leeds City Council,31/10/2022,Children and Families,Social Care,Agency Payments,Services Rendered By Other Organisations,511,07/10/2022,2210-000101,0.00,543.72,R,REDACTED PERSONAL DATA,No
Http://opendatacommunities.org/id/metropolitan-district-council/leeds,Leeds City Council,31/10/2022,Communities Housing and Environment,Waste Management,Capital,FURNITURE and EQUIPMENT,5,18/10/2022,2210-000102,0.00,5616.00,C,A&C Weber Uk Ltd,No
Http://opendatacommunities.org/id/metropolitan-district-council/leeds,Leeds City Council,31/10/2022,Communities Housing and Environment,Waste Management,Capital,FURNITURE and EQUIPMENT,5,18/10/2022,2210-000103,0.00,7080.00,C,A&C Weber Uk Ltd,No
Http://opendatacommunities.org/id/metropolitan-district-council/leeds,Leeds City Council,31/10/2022,Communities Housing and Environment,Waste Management,Capital,FURNITURE and EQUIPMENT,5,28/10/2022,2210-000104,0.00,12220.00,C,A&C Weber Uk Ltd,No
Http://opendatacommunities.org/id/metropolitan-district-council/leeds,Leeds City Council,31/10/2022,Resources,Leeds Building Services,Supplies and Services,Other Hired and Contracted Services,265,17/10/2022,2210-000105,0.00,796.75,R,A1 Access Lifts Ltd,No
Http://opendatacommunities.org/id/metropolitan-district-council/leeds,Leeds City Council,31/10/2022,Communities Housing and Environment,Communities,Supplies and Services,Non-Recurring Grants,227,10/10/2022,2210-000106,0.00,5000.00,R,Aalfy Ltd,No
Http://opendatacommunities.org/id/metropolitan-district-council/leeds,Leeds City Council,31/10/2022,Communities Housing and Environment,Communities,Supplies and Services,Non-Recurring Grants,227,31/10/2022,2210-000107,0.00,5000.00,R,Aalfy Ltd,No
Http://opendatacommunities.org/id/metropolitan-district-council/leeds,Leeds City Council,31/10/2022,Children and Families,Social Care,Internal Recharges,Legal Disbursements,411,21/10/2022,2210-000108,0.00,375.00,R,Aaqib Javed,No
Http://opendatacommunities.org/id/metropolitan-district-council/leeds,Leeds City Council,31/10/2022,Children and Families,Social Care,Internal Recharges,Legal Disbursements,411,21/10/2022,2210-000109,0.00,455.00,R,Aaqib Javed,No
Http://opendatacommunities.org/id/metropolitan-district-council/leeds,Leeds City Council,31/10/2022,Children and Families,Social Care ,Supplies and Services,Operational Materials,205,09/09/2022,2210-000110,0.00,61.98,R,Aardvark Archery,Yes
Http://opendatacommunities.org/id/metropolitan-district-council/leeds,Leeds City Council,31/10/2022,Children and Families,Social Care,Appropriations,Leaving Care Allowances,634,14/10/2022,2210-000111,0.00,100.00,R,REDACTED PERSONAL DATA,No
Http://opendatacommunities.org/id/metropolitan-district-council/leeds,Leeds City Council,31/10/2022,Adults and Health,Services For Older People - 65 and Over,Agency Payments,Residential Care Dementia,571,12/10/2022,2210-000112,0.00,2177.12,R,Aaron Court Care Home,No
Http://opendatacommunities.org/id/metropolitan-district-council/leeds,Leeds City Council,31/10/2022,Insurance,Insurance,Supplies and Services,Insurance Claims,248,17/10/2022,2210-000113,0.00,285.00,R,: AAUICL Claims - Household Recoveries,No
Http://opendatacommunities.org/id/metropolitan-district-council/leeds,Leeds City Council,31/10/2022,Communities Housing and Environment,Elections Licensing and Registration,External Income,Admissions Booking Fees & Ticket Sales,933,19/10/2022,2210-000114,0.00,325.00,R,REDACTED PERSONAL DATA,No
Http://opendatacommunities.org/id/metropolitan-district-council/leeds,Leeds City Council as Accountable Body,31/10/2022,Social Services Pooled Budgets,Jcs For People With Learning Disabilitie,Agency Payments,Residential,580,12/10/2022,2210-000115,0.00,11720.20,R,Abbey Care and Education,No
Http://opendatacommunities.org/id/metropolitan-district-council/leeds,Leeds City Council,31/10/2022,Adults and Health,Public Health,Agency Payments,Public Health Commissioned Services,526,28/10/2022,2210-000116,0.00,2053.04,R,Abbey Grange Medical Practice,No
Http://opendatacommunities.org/id/metropolitan-district-council/leeds,Leeds City Council,31/10/2022,Children and Families,Learning,Supplies and Services,Other Hired and Contracted Services,265,06/10/2022,2210-000117,0.00,1050.00,R,Abbey Multi Academy Trust,No
Http://opendatacommunities.org/id/metropolitan-district-council/leeds,Leeds City Council,31/10/2022,Children and Families,Learning,Internal Recharges,reallocation of DfE grants,474,10/10/2022,2210-000118,0.00,17215.00,R,Abbey Multi Academy Trust,No
Http://opendatacommunities.org/id/metropolitan-district-council/leeds,Leeds City Council,31/10/2022,Communities Housing and Environment,Communities,Supplies and Services,Other Hired and Contracted Services,265,07/10/2022,2210-000119,0.00,600.00,R,Abbey Travel Coach Hire Ltd,No
Http://opendatacommunities.org/id/metropolitan-district-council/leeds,Leeds City Council,31/10/2022,Children and Families,Social Care,Agency Payments,Allowances,546,26/10/2022,2210-000120,0.00,577.65,R,ABBIE O MAHONY,No
Http://opendatacommunities.org/id/metropolitan-district-council/leeds,Leeds City Council,31/10/2022,Children and Families,Social Care,Agency Payments,Services Rendered By Other Organisations,511,07/10/2022,2210-000121,0.00,1004.40,R,REDACTED PERSONAL DATA,No
Http://opendatacommunities.org/id/metropolitan-district-council/leeds,Leeds City Council,31/10/2022,Children and Families,Social Care,Internal Recharges,Legal Disbursements,411,07/10/2022,2210-000122,0.00,527.00,R,Abbott Toxicology Ltd.,No
Http://opendatacommunities.org/id/metropolitan-district-council/leeds,Leeds City Council,31/10/2022,Communities Housing and Environment,Parks and Countryside,Supplies and Services,Other Hired and Contracted Services,265,06/10/2022,2210-000123,0.00,2500.00,R,Abbotts Memorials,No
Http://opendatacommunities.org/id/metropolitan-district-council/leeds,Leeds City Council,31/10/2022,Communities Housing and Environment,Parks and Countryside,Supplies and Services,Other Hired and Contracted Services,265,13/10/2022,2210-000124,0.00,600.00,R,Abbotts Memorials,No
Http://opendatacommunities.org/id/metropolitan-district-council/leeds,Leeds City Council,31/10/2022,Communities Housing and Environment,Parks and Countryside,Supplies and Services,Other Hired and Contracted Services,265,27/10/2022,2210-000125,0.00,3950.00,R,Abbotts Memorials,No
Http://opendatacommunities.org/id/metropolitan-district-council/leeds,Leeds City Council,31/10/2022,Children and Families,Social Care,Agency Payments,General External Residential Placements,507,18/10/2022,2210-000126,0.00,15274.41,R,Abc Care and Education Ltd,No
Http://opendatacommunities.org/id/metropolitan-district-council/leeds,Leeds City Council,31/10/2022,Children and Families,Social Care,Agency Payments,Services Rendered By Other Organisations,511,04/10/2022,2210-000127,0.00,2986.91,R,ABC NURSERY AT LUFC,No
Http://opendatacommunities.org/id/metropolitan-district-council/leeds,Leeds City Council,31/10/2022,Children and Families,Social Care,Agency Payments,Services Rendered By Voluntary Sector,505,05/10/2022,2210-000128,0.00,2166.67,R,ABC NURSERY AT LUFC,No
Http://opendatacommunities.org/id/metropolitan-district-council/leeds,Leeds City Council,31/10/2022,Children and Families,Social Care,Agency Payments,Services Rendered By Other Organisations,511,06/10/2022,2210-000129,0.00,6524.70,R,ABC NURSERY AT LUFC,No
Http://opendatacommunities.org/id/metropolitan-district-council/leeds,Leeds City Council,31/10/2022,Children and Families,Social Care,Agency Payments,Services Rendered By Voluntary Sector,505,07/10/2022,2210-000130,0.00,2600.00,R,ABC NURSERY AT LUFC,No
Http://opendatacommunities.org/id/metropolitan-district-council/leeds,Leeds City Council,31/10/2022,Children and Families,Social Care,Agency Payments,Services Rendered By Other Organisations,511,05/10/2022,2210-000131,0.00,1629.22,R,Abc@D'S Childcare,No
Http://opendatacommunities.org/id/metropolitan-district-council/leeds,Leeds City Council,31/10/2022,Children and Families,Social Care,Agency Payments,Services Rendered By Other Organisations,511,07/10/2022,2210-000132,0.00,4893.52,R,Abc@D'S Childcare,No
Http://opendatacommunities.org/id/metropolitan-district-council/leeds,Leeds City Council,31/10/2022,Communities Housing and Environment,Customer Access,Supplies and Services,Bought In Professional Services,277,12/10/2022,2210-000133,0.00,31.80,R,Abdiqafar Abdullahi,No
Http://opendatacommunities.org/id/metropolitan-district-council/leeds,Leeds City Council,31/10/2022,Communities Housing and Environment,Customer Access,Supplies and Services,Bought In Professional Services,277,12/10/2022,2210-000134,0.00,13.50,R,Abdiqafar Abdullahi,No
Http://opendatacommunities.org/id/metropolitan-district-council/leeds,Leeds City Council,31/10/2022,Communities Housing and Environment,Customer Access,Supplies and Services,Bought In Professional Services,277,12/10/2022,2210-000135,0.00,13.50,R,Abdiqafar Abdullahi,No
Http://opendatacommunities.org/id/metropolitan-district-council/leeds,Leeds City Council,31/10/2022,Communities Housing and Environment,Customer Access,Supplies and Services,Bought In Professional Services,277,12/10/2022,2210-000136,0.00,18.00,R,Abdiqafar Abdullahi,No
Http://opendatacommunities.org/id/metropolitan-district-council/leeds,Leeds City Council,31/10/2022,Communities Housing and Environment,Customer Access,Supplies and Services,Bought In Professional Services,277,19/10/2022,2210-000137,0.00,27.00,R,Abdiqafar Abdullahi,No
Http://opendatacommunities.org/id/metropolitan-district-council/leeds,Leeds City Council,31/10/2022,Communities Housing and Environment,Customer Access,Supplies and Services,Bought In Professional Services,277,19/10/2022,2210-000138,0.00,30.60,R,Abdiqafar Abdullahi,No
Http://opendatacommunities.org/id/metropolitan-district-council/leeds,Leeds City Council,31/10/2022,Communities Housing and Environment,Customer Access,Supplies and Services,Bought In Professional Services,277,19/10/2022,2210-000139,0.00,22.50,R,Abdiqafar Abdullahi,No
Http://opendatacommunities.org/id/metropolitan-district-council/leeds,Leeds City Council,31/10/2022,Children and Families,Social Care,Appropriations,Leaving Care Allowances,634,19/10/2022,2210-000140,0.00,122.10,R,REDACTED PERSONAL DATA,No
Http://opendatacommunities.org/id/metropolitan-district-council/leeds,Leeds City Council,31/10/2022,Communities Housing and Environment,Customer Access,Supplies and Services,Bought In Professional Services,277,05/10/2022,2210-000141,0.00,27.00,R,Abdulahad Denha,No
Http://opendatacommunities.org/id/metropolitan-district-council/leeds,Leeds City Council,31/10/2022,Communities Housing and Environment,Customer Access,Supplies and Services,Bought In Professional Services,277,05/10/2022,2210-000142,0.00,27.00,R,Abdulahad Denha,No
Http://opendatacommunities.org/id/metropolitan-district-council/leeds,Leeds City Council,31/10/2022,Communities Housing and Environment,Customer Access,Supplies and Services,Bought In Professional Services,277,12/10/2022,2210-000143,0.00,18.00,R,Abdulahad Denha,No
Http://opendatacommunities.org/id/metropolitan-district-council/leeds,Leeds City Council,31/10/2022,Communities Housing and Environment,Customer Access,Supplies and Services,Bought In Professional Services,277,19/10/2022,2210-000144,0.00,18.00,R,Abdulahad Denha,No
Http://opendatacommunities.org/id/metropolitan-district-council/leeds,Leeds City Council,31/10/2022,Communities Housing and Environment,Customer Access,Supplies and Services,Bought In Professional Services,277,19/10/2022,2210-000145,0.00,18.00,R,Abdulahad Denha,No
Http://opendatacommunities.org/id/metropolitan-district-council/leeds,Leeds City Council,31/10/2022,Communities Housing and Environment,Customer Access,Supplies and Services,Bought In Professional Services,277,19/10/2022,2210-000146,0.00,18.00,R,Abdulahad Denha,No
Http://opendatacommunities.org/id/metropolitan-district-council/leeds,Leeds City Council,31/10/2022,Communities Housing and Environment,Customer Access,Supplies and Services,Bought In Professional Services,277,19/10/2022,2210-000147,0.00,18.00,R,Abdulahad Denha,No
Http://opendatacommunities.org/id/metropolitan-district-council/leeds,Leeds City Council,31/10/2022,Communities Housing and Environment,Customer Access,Supplies and Services,Bought In Professional Services,277,19/10/2022,2210-000148,0.00,18.00,R,Abdulahad Denha,No
Http://opendatacommunities.org/id/metropolitan-district-council/leeds,Leeds City Council,31/10/2022,Communities Housing and Environment,Customer Access,Supplies and Services,Bought In Professional Services,277,26/10/2022,2210-000149,0.00,9.00,R,Abdulahad Denha,No
Http://opendatacommunities.org/id/metropolitan-district-council/leeds,Leeds City Council,31/10/2022,Communities Housing and Environment,Customer Access,Supplies and Services,Bought In Professional Services,277,26/10/2022,2210-000150,0.00,9.00,R,Abdulahad Denha,No
Http://opendatacommunities.org/id/metropolitan-district-council/leeds,Leeds City Council,31/10/2022,Communities Housing and Environment,Customer Access,Supplies and Services,Bought In Professional Services,277,26/10/2022,2210-000151,0.00,45.00,R,Abdulahad Denha,No
Http://opendatacommunities.org/id/metropolitan-district-council/leeds,Leeds City Council,31/10/2022,Communities Housing and Environment,Customer Access,Supplies and Services,Bought In Professional Services,277,26/10/2022,2210-000152,0.00,18.00,R,Abdulahad Denha,No
Http://opendatacommunities.org/id/metropolitan-district-council/leeds,Leeds City Council,31/10/2022,Communities Housing and Environment,Customer Access,Supplies and Services,Bought In Professional Services,277,26/10/2022,2210-000153,0.00,27.00,R,Abdulahad Denha,No
Http://opendatacommunities.org/id/metropolitan-district-council/leeds,Leeds City Council,31/10/2022,City Development,Libraries Arts & Heritage,Supplies and Services,Teaching Materials,202,26/10/2022,2210-000154,0.00,250.00,R,Abdullah Adekola,No
Http://opendatacommunities.org/id/metropolitan-district-council/leeds,Leeds City Council,31/10/2022,Communities Housing and Environment,Customer Access,Supplies and Services,Bought In Professional Services,277,05/10/2022,2210-000155,0.00,9.00,R,Abdulrahim Dastyar,No
Http://opendatacommunities.org/id/metropolitan-district-council/leeds,Leeds City Council,31/10/2022,Communities Housing and Environment,Customer Access,Supplies and Services,Bought In Professional Services,277,12/10/2022,2210-000156,0.00,13.50,R,Abdulrahim Dastyar,No
Http://opendatacommunities.org/id/metropolitan-district-council/leeds,Leeds City Council,31/10/2022,Adults and Health,Services For Older People - 65 and Over,Agency Payments,Nursing Home,570,12/10/2022,2210-000157,0.00,30661.62,R,Aberford Hall,No
Http://opendatacommunities.org/id/metropolitan-district-council/leeds,Leeds City Council,31/10/2022,Adults and Health,Services For Older People - 65 and Over,Agency Payments,Nursing Care Dementia,574,12/10/2022,2210-000158,0.00,1982.00,R,Aberford Hall,No
Http://opendatacommunities.org/id/metropolitan-district-council/leeds,Leeds City Council,31/10/2022,Adults and Health,Services For Older People - 65 and Over,Agency Payments,Residential,580,12/10/2022,2210-000159,0.00,888.10,R,Aberford Hall,No
Http://opendatacommunities.org/id/metropolitan-district-council/leeds,Leeds City Council,31/10/2022,Adults and Health,Services For Older People Under 65 P/Dis,Agency Payments,Nursing Home,570,12/10/2022,2210-000160,0.00,0.00,R,Aberford Hall,No
Http://opendatacommunities.org/id/metropolitan-district-council/leeds,Leeds City Council,31/10/2022,Resources,Leeds Building Services,Supplies and Services,Operational Materials,205,20/10/2022,2210-000161,0.00,8.75,R,ABI GARAGE DOORS LTD,No
Http://opendatacommunities.org/id/metropolitan-district-council/leeds,Leeds City Council,31/10/2022,Resources,Leeds Building Services,Supplies and Services,Operational Materials,205,21/10/2022,2210-000162,0.00,1346.16,R,ABI GARAGE DOORS LTD,No
Http://opendatacommunities.org/id/metropolitan-district-council/leeds,Leeds City Council,31/10/2022,Resources,Leeds Building Services,Supplies and Services,Operational Materials,205,21/10/2022,2210-000163,0.00,1346.16,R,ABI GARAGE DOORS LTD,No
Http://opendatacommunities.org/id/metropolitan-district-council/leeds,Leeds City Council,31/10/2022,Resources,Leeds Building Services,Supplies and Services,Operational Materials,205,28/10/2022,2210-000164,0.00,390.88,R,ABI GARAGE DOORS LTD,No
Http://opendatacommunities.org/id/metropolitan-district-council/leeds,Leeds City Council,31/10/2022,Resources,Leeds Building Services,Supplies and Services,Operational Materials,205,28/10/2022,2210-000165,0.00,390.88,R,ABI GARAGE DOORS LTD,No
Http://opendatacommunities.org/id/metropolitan-district-council/leeds,Leeds City Council,31/10/2022,Communities Housing and Environment,Customer Access,Supplies and Services,Bought In Professional Services,277,05/10/2022,2210-000166,0.00,43.50,R,Abida Begum,No
Http://opendatacommunities.org/id/metropolitan-district-council/leeds,Leeds City Council,31/10/2022,Strategic Landlord,Property and Contracts,Internal Recharges,Legal Disbursements,411,14/10/2022,2210-000167,0.00,450.00,R,Abigail Cheetham,No
Http://opendatacommunities.org/id/metropolitan-district-council/leeds,Leeds City Council,31/10/2022,Strategic Landlord,Property and Contracts,Internal Recharges,Legal Disbursements,411,14/10/2022,2210-000168,0.00,750.00,R,Abigail Cheetham,No
Http://opendatacommunities.org/id/metropolitan-district-council/leeds,Leeds City Council,31/10/2022,Strategic Landlord,Property and Contracts,Internal Recharges,Legal Disbursements,411,14/10/2022,2210-000169,0.00,750.00,R,Abigail Cheetham,No
Http://opendatacommunities.org/id/metropolitan-district-council/leeds,Leeds City Council,31/10/2022,Strategic Landlord,Property and Contracts,Internal Recharges,Legal Disbursements,411,14/10/2022,2210-000170,0.00,600.00,R,Abigail Cheetham,No
Http://opendatacommunities.org/id/metropolitan-district-council/leeds,Leeds City Council,31/10/2022,Adults and Health,Services For Older People Under 65 P/Dis,Appropriations,Direct Payments,626,05/10/2022,2210-000171,0.00,2554.56,R,REDACTED PERSONAL DATA,No
Http://opendatacommunities.org/id/metropolitan-district-council/leeds,Leeds City Council,31/10/2022,Children and Families,Social Care,Agency Payments,General External Residential Placements,507,28/10/2022,2210-000172,0.00,17121.30,R,Absolute Children's Services Ltd,No
Http://opendatacommunities.org/id/metropolitan-district-council/leeds,Leeds City Council,31/10/2022,Children and Families,Social Care ,Supplies and Services,Food & Drink,231,09/09/2022,2210-000173,0.00,15.17,R,Abu Bakar,Yes
Http://opendatacommunities.org/id/metropolitan-district-council/leeds,Leeds City Council,31/10/2022,Children and Families,Social Care ,Supplies and Services,Food & Drink,231,14/09/2022,2210-000174,0.00,2.50,R,Abu Bakar,Yes
Http://opendatacommunities.org/id/metropolitan-district-council/leeds,Leeds City Council,31/10/2022,Communities Housing and Environment,Strategic Housing Partnership & Support,Supplies and Services,Other Hired and Contracted Services,265,10/10/2022,2210-000175,0.00,343.07,R,Accent Foundation Ltd,No
Http://opendatacommunities.org/id/metropolitan-district-council/leeds,Leeds City Council,31/10/2022,Communities Housing and Environment,Strategic Housing Partnership & Support,Supplies and Services,Other Hired and Contracted Services,265,13/10/2022,2210-000176,0.00,595.98,R,Accent Foundation Ltd,No
Http://opendatacommunities.org/id/metropolitan-district-council/leeds,Leeds City Council,31/10/2022,Adults and Health,Services For Older People - 65 and Over ,Premises,Maintenance Of Buildings,101,14/09/2022,2210-000177,0.00,41.82,R,Access Locksmiths,Yes
Http://opendatacommunities.org/id/metropolitan-district-council/leeds,Leeds City Council,31/10/2022,Strategic Landlord,Housing Management,Supplies and Services,Resaleable Materials,204,04/10/2022,2210-000178,0.00,620.00,R,ACCESS LOCKSMITHS (LEEDS) LIMITED,No
Http://opendatacommunities.org/id/metropolitan-district-council/leeds,Leeds City Council,31/10/2022,Strategic Landlord,Property and Contracts,Premises,General Maintenance,104,04/10/2022,2210-000179,0.00,208.25,R,ACCESS LOCKSMITHS (LEEDS) LIMITED,No
Http://opendatacommunities.org/id/metropolitan-district-council/leeds,Leeds City Council,31/10/2022,Resources,Commercial Services,Supplies and Services,Operational Materials,205,07/10/2022,2210-000180,0.00,110.00,R,ACCESS LOCKSMITHS (LEEDS) LIMITED,No
Http://opendatacommunities.org/id/metropolitan-district-council/leeds,Leeds City Council,31/10/2022,Resources,Leeds Building Services,Supplies and Services,Operational Materials,205,19/10/2022,2210-000181,0.00,174.80,R,ACCESS LOCKSMITHS (LEEDS) LIMITED,No
Http://opendatacommunities.org/id/metropolitan-district-council/leeds,Leeds City Council,31/10/2022,Resources,Leeds Building Services,Supplies and Services,Operational Materials,205,19/10/2022,2210-000182,0.00,36.15,R,ACCESS LOCKSMITHS (LEEDS) LIMITED,No
Http://opendatacommunities.org/id/metropolitan-district-council/leeds,Leeds City Council,31/10/2022,Strategic Landlord,HRA Housing Leeds,Capital,OTHER COSTS,7,19/10/2022,2210-000183,0.00,2606.25,C,ACCESS LOCKSMITHS (LEEDS) LIMITED,No
Http://opendatacommunities.org/id/metropolitan-district-council/leeds,Leeds City Council,31/10/2022,Strategic Landlord,HRA Housing Leeds,Capital,OTHER COSTS,7,19/10/2022,2210-000184,0.00,192.52,C,ACCESS LOCKSMITHS (LEEDS) LIMITED,No
Http://opendatacommunities.org/id/metropolitan-district-council/leeds,Leeds City Council,31/10/2022,Strategic Landlord,HRA Housing Leeds,Capital,OTHER COSTS,7,19/10/2022,2210-000185,0.00,378.30,C,ACCESS LOCKSMITHS (LEEDS) LIMITED,No
Http://opendatacommunities.org/id/metropolitan-district-council/leeds,Leeds City Council,31/10/2022,Strategic Landlord,Property and Contracts,Premises,General Maintenance,104,19/10/2022,2210-000186,0.00,221.04,R,ACCESS LOCKSMITHS (LEEDS) LIMITED,No
Http://opendatacommunities.org/id/metropolitan-district-council/leeds,Leeds City Council,31/10/2022,Strategic Landlord,Property and Contracts,Premises,General Maintenance,104,19/10/2022,2210-000187,0.00,50.40,R,ACCESS LOCKSMITHS (LEEDS) LIMITED,No
Http://opendatacommunities.org/id/metropolitan-district-council/leeds,Leeds City Council,31/10/2022,Resources,Leeds Building Services,Supplies and Services,Operational Materials,205,28/10/2022,2210-000188,0.00,165.00,R,ACCESS LOCKSMITHS (LEEDS) LIMITED,No
Http://opendatacommunities.org/id/metropolitan-district-council/leeds,Leeds City Council,31/10/2022,Resources,Leeds Building Services,Supplies and Services,Operational Materials,205,28/10/2022,2210-000189,0.00,79.28,R,ACCESS LOCKSMITHS (LEEDS) LIMITED,No
Http://opendatacommunities.org/id/metropolitan-district-council/leeds,Leeds City Council,31/10/2022,Resources,Leeds Building Services,Supplies and Services,Operational Materials,205,28/10/2022,2210-000190,0.00,26.15,R,ACCESS LOCKSMITHS (LEEDS) LIMITED,No
Http://opendatacommunities.org/id/metropolitan-district-council/leeds,Leeds City Council,31/10/2022,Resources,Leeds Building Services,Supplies and Services,Operational Materials,205,28/10/2022,2210-000191,0.00,165.00,R,ACCESS LOCKSMITHS (LEEDS) LIMITED,No
Http://opendatacommunities.org/id/metropolitan-district-council/leeds,Leeds City Council,31/10/2022,Resources,Leeds Building Services,Supplies and Services,Operational Materials,205,28/10/2022,2210-000192,0.00,7.76,R,ACCESS LOCKSMITHS (LEEDS) LIMITED,No
Http://opendatacommunities.org/id/metropolitan-district-council/leeds,Leeds City Council,31/10/2022,Resources,Leeds Building Services,Supplies and Services,Operational Materials,205,28/10/2022,2210-000193,0.00,7.76,R,ACCESS LOCKSMITHS (LEEDS) LIMITED,No
Http://opendatacommunities.org/id/metropolitan-district-council/leeds,Leeds City Council,31/10/2022,Resources,Leeds Building Services,Supplies and Services,Operational Materials,205,28/10/2022,2210-000194,0.00,37.40,R,ACCESS LOCKSMITHS (LEEDS) LIMITED,No
Http://opendatacommunities.org/id/metropolitan-district-council/leeds,Leeds City Council,31/10/2022,City Development,Libraries Arts & Heritage,Supplies and Services,Bought In Professional Services,277,20/10/2022,2210-000195,0.00,7000.00,R,ACCESS MOVING IMAGE LTD,No
Http://opendatacommunities.org/id/metropolitan-district-council/leeds,Leeds City Council,31/10/2022,Resources,Technology,Supplies and Services,Computer Software & Equipment,214,14/10/2022,2210-000196,0.00,12800.00,R,Access Uk Ltd,No
Http://opendatacommunities.org/id/metropolitan-district-council/leeds,Leeds City Council,31/10/2022,Children and Families,Social Care,Supplies and Services,Computer Software & Equipment,214,28/10/2022,2210-000197,0.00,6437.00,R,Access Uk Ltd,No
Http://opendatacommunities.org/id/metropolitan-district-council/leeds,Leeds City Council,31/10/2022,Communities Housing and Environment,Environmental Action (City Centre),Supplies and Services,CCTV,252,21/10/2022,2210-000198,0.00,495.00,R,AccessCCTV,No
Http://opendatacommunities.org/id/metropolitan-district-council/leeds,Leeds City Council,31/10/2022,City Development,Libraries Arts & Heritage,Supplies and Services,Bought In Professional Services,277,12/10/2022,2210-000199,0.00,2100.00,R,Accessible By Design Ltd,No
Http://opendatacommunities.org/id/metropolitan-district-council/leeds,Leeds City Council,31/10/2022,City Development,Libraries Arts & Heritage,Supplies and Services,Other Hired and Contracted Services,265,31/10/2022,2210-000200,0.00,820.00,R,ACE CONTAINER SERVICES LIMITED,No
Http://opendatacommunities.org/id/metropolitan-district-council/leeds,Leeds City Council,31/10/2022,Children and Families,Social Care,Supplies and Services,Operational Furniture and Equipment,203,28/10/2022,2210-000201,0.00,6000.00,R,Ace Shelters Ltd,No
Http://opendatacommunities.org/id/metropolitan-district-council/leeds,Leeds City Council,31/10/2022,Children and Families,Learning,Agency Payments,SEN Placements,566,13/10/2022,2210-000202,0.00,20455.00,R,ACKWORTH SCHOOL,No
Http://opendatacommunities.org/id/metropolitan-district-council/leeds,Leeds City Council,31/10/2022,Children and Families,Learning,Agency Payments,SEN Placements,566,13/10/2022,2210-000203,0.00,-20283.92,R,ACKWORTH SCHOOL,No
Http://opendatacommunities.org/id/metropolitan-district-council/leeds,Leeds City Council,31/10/2022,Children and Families,Learning,Agency Payments,SEN Placements,566,13/10/2022,2210-000204,0.00,20455.00,R,ACKWORTH SCHOOL,No
Http://opendatacommunities.org/id/metropolitan-district-council/leeds,Leeds City Council,31/10/2022,Communities Housing and Environment,Parks and Countryside ,Supplies and Services,Other Hired and Contracted Services,265,01/09/2022,2210-000205,0.00,1565.60,R,Acme Facilities Group,Yes
Http://opendatacommunities.org/id/metropolitan-district-council/leeds,Leeds City Council,31/10/2022,Children and Families,Social Care,Agency Payments,General External Residential Placements,507,05/10/2022,2210-000206,0.00,20904.20,R,Acorn Care & Education Ltd (Sales),No
Http://opendatacommunities.org/id/metropolitan-district-council/leeds,Leeds City Council,31/10/2022,Children and Families,Social Care,Agency Payments,General External Residential Placements,507,05/10/2022,2210-000207,0.00,20904.20,R,Acorn Care & Education Ltd (Sales),No
Http://opendatacommunities.org/id/metropolitan-district-council/leeds,Leeds City Council,31/10/2022,Children and Families,Social Care,Agency Payments,General External Residential Placements,507,05/10/2022,2210-000208,0.00,24744.48,R,Acorn Care & Education Ltd (Sales),No
Http://opendatacommunities.org/id/metropolitan-district-council/leeds,Leeds City Council,31/10/2022,Children and Families,Social Care,Agency Payments,General External Residential Placements,507,05/10/2022,2210-000209,0.00,24744.48,R,Acorn Care & Education Ltd (Sales),No
Http://opendatacommunities.org/id/metropolitan-district-council/leeds,Leeds City Council,31/10/2022,Children and Families,Social Care,Agency Payments,General External Residential Placements,507,05/10/2022,2210-000210,0.00,17249.29,R,Acorn Care & Education Ltd (Sales),No
Http://opendatacommunities.org/id/metropolitan-district-council/leeds,Leeds City Council,31/10/2022,Children and Families,Social Care,Agency Payments,General External Residential Placements,507,05/10/2022,2210-000211,0.00,17249.29,R,Acorn Care & Education Ltd (Sales),No
Http://opendatacommunities.org/id/metropolitan-district-council/leeds,Leeds City Council,31/10/2022,Children and Families,Social Care,Agency Payments,General External Residential Placements,507,05/10/2022,2210-000212,0.00,17680.58,R,Acorn Care & Education Ltd (Sales),No
Http://opendatacommunities.org/id/metropolitan-district-council/leeds,Leeds City Council,31/10/2022,Children and Families,Social Care,Agency Payments,General External Residential Placements,507,05/10/2022,2210-000213,0.00,17680.58,R,Acorn Care & Education Ltd (Sales),No
Http://opendatacommunities.org/id/metropolitan-district-council/leeds,Leeds City Council,31/10/2022,Children and Families,Social Care,Agency Payments,General External Residential Placements,507,12/10/2022,2210-000214,0.00,17249.29,R,Acorn Care & Education Ltd (Sales),No
Http://opendatacommunities.org/id/metropolitan-district-council/leeds,Leeds City Council,31/10/2022,Children and Families,Social Care,Agency Payments,General External Residential Placements,507,28/10/2022,2210-000215,0.00,16692.86,R,Acorn Care & Education Ltd (Sales),No
Http://opendatacommunities.org/id/metropolitan-district-council/leeds,Leeds City Council,31/10/2022,Children and Families,Social Care,Agency Payments,General External Residential Placements,507,28/10/2022,2210-000216,0.00,16692.86,R,Acorn Care & Education Ltd (Sales),No
Http://opendatacommunities.org/id/metropolitan-district-council/leeds,Leeds City Council,31/10/2022,Children and Families,Social Care,Agency Payments,General External Residential Placements,507,28/10/2022,2210-000217,0.00,20229.87,R,Acorn Care & Education Ltd (Sales),No
Http://opendatacommunities.org/id/metropolitan-district-council/leeds,Leeds City Council,31/10/2022,Children and Families,Social Care,Agency Payments,General External Residential Placements,507,28/10/2022,2210-000218,0.00,23946.27,R,Acorn Care & Education Ltd (Sales),No
Http://opendatacommunities.org/id/metropolitan-district-council/leeds,Leeds City Council,31/10/2022,Children and Families,Social Care,Agency Payments,General External Residential Placements,507,28/10/2022,2210-000219,0.00,17110.24,R,Acorn Care & Education Ltd (Sales),No
Http://opendatacommunities.org/id/metropolitan-district-council/leeds,Leeds City Council,31/10/2022,Adults and Health,Services For Older People Under 65 P/Dis,Agency Payments,Nursing Home,570,12/10/2022,2210-000220,0.00,3500.00,R,Acorn Care Home,No
Http://opendatacommunities.org/id/metropolitan-district-council/leeds,Leeds City Council,31/10/2022,Adults and Health,Other Adult Services,Agency Payments,Residential - Drugs & Alcohol,583,07/10/2022,2210-000221,0.00,-1783.80,R,Acorn Recovery Projects,No
Http://opendatacommunities.org/id/metropolitan-district-council/leeds,Leeds City Council,31/10/2022,Adults and Health,Other Adult Services,Agency Payments,Residential - Drugs & Alcohol,583,07/10/2022,2210-000222,0.00,1690.00,R,Acorn Recovery Projects,No
Http://opendatacommunities.org/id/metropolitan-district-council/leeds,Leeds City Council,31/10/2022,Adults and Health,Other Adult Services,Agency Payments,Residential - Drugs & Alcohol,583,07/10/2022,2210-000223,0.00,-1100.00,R,Acorn Recovery Projects,No
Http://opendatacommunities.org/id/metropolitan-district-council/leeds,Leeds City Council,31/10/2022,Adults and Health,Other Adult Services,Agency Payments,Residential - Drugs & Alcohol,583,07/10/2022,2210-000224,0.00,1783.00,R,Acorn Recovery Projects,No
Http://opendatacommunities.org/id/metropolitan-district-council/leeds,Leeds City Council,31/10/2022,Adults and Health,Other Adult Services,Agency Payments,Residential - Drugs & Alcohol,583,07/10/2022,2210-000225,0.00,1100.00,R,Acorn Recovery Projects,No
Http://opendatacommunities.org/id/metropolitan-district-council/leeds,Leeds City Council,31/10/2022,Adults and Health,Other Adult Services,Agency Payments,Residential - Drugs & Alcohol,583,07/10/2022,2210-000226,0.00,2435.00,R,Acorn Recovery Projects,No
Http://opendatacommunities.org/id/metropolitan-district-council/leeds,Leeds City Council,31/10/2022,Children and Families,Social Care,Agency Payments,Services Rendered By Other Organisations,511,05/10/2022,2210-000227,0.00,271.54,R,ACORNS NURSERY,No
Http://opendatacommunities.org/id/metropolitan-district-council/leeds,Leeds City Council,31/10/2022,Children and Families,Social Care,Agency Payments,Services Rendered By Other Organisations,511,07/10/2022,2210-000228,0.00,9464.40,R,ACORNS NURSERY,No
Http://opendatacommunities.org/id/metropolitan-district-council/leeds,Leeds City Council,31/10/2022,Adults and Health,Services For Older People - 65 and Over,Agency Payments,Nursing Home,570,12/10/2022,2210-000229,0.00,35365.18,R,Acre Green,No
Http://opendatacommunities.org/id/metropolitan-district-council/leeds,Leeds City Council,31/10/2022,Adults and Health,Services For Older People - 65 and Over,Agency Payments,Residential,580,12/10/2022,2210-000230,0.00,4180.20,R,Acre Green,No
Http://opendatacommunities.org/id/metropolitan-district-council/leeds,Leeds City Council,31/10/2022,Adults and Health,Services For Older People Under 65 P/Dis,Agency Payments,Residential,580,12/10/2022,2210-000231,0.00,1892.20,R,Acre Green,No
Http://opendatacommunities.org/id/metropolitan-district-council/leeds,Leeds City Council,31/10/2022,Children and Families,Social Care,Agency Payments,Services Rendered By Other Organisations,511,05/10/2022,2210-000232,0.00,375.97,R,Acre Wood Day Nursery,No
Http://opendatacommunities.org/id/metropolitan-district-council/leeds,Leeds City Council,31/10/2022,Children and Families,Social Care,Agency Payments,Services Rendered By Other Organisations,511,07/10/2022,2210-000233,0.00,11651.25,R,Acre Wood Day Nursery,No
Http://opendatacommunities.org/id/metropolitan-district-council/leeds,Leeds City Council,31/10/2022,Children and Families,Learning,Supplies and Services,Bought In Professional Services,277,28/10/2022,2210-000234,0.00,510.00,R,Acrecliffe Equestrian Centre,No
Http://opendatacommunities.org/id/metropolitan-district-council/leeds,Leeds City Council,31/10/2022,Resources,Technology ,Supplies and Services,Computer Software & Equipment,214,15/09/2022,2210-000235,0.00,2710.45,R,Acs Group,Yes
Http://opendatacommunities.org/id/metropolitan-district-council/leeds,Leeds City Council,31/10/2022,Children and Families,Learning,Agency Payments,SEN Placements,566,28/10/2022,2210-000236,0.00,4899.42,R,Act Fast NL Ltd,No
Http://opendatacommunities.org/id/metropolitan-district-council/leeds,Leeds City Council as Accountable Body,31/10/2022,Social Services Pooled Budgets,Jcs For People With Learning Disabilitie,Agency Payments,Residential,580,12/10/2022,2210-000237,0.00,10702.60,R,Action For Care Contracts Limited,No
Http://opendatacommunities.org/id/metropolitan-district-council/leeds,Leeds City Council,31/10/2022,Children and Families,Social Care,Agency Payments,Services Rendered By Other Organisations,511,05/10/2022,2210-000238,0.00,814.61,R,ACTIVE KIDS YEADON LLP,No
Http://opendatacommunities.org/id/metropolitan-district-council/leeds,Leeds City Council,31/10/2022,Children and Families,Social Care,Agency Payments,Services Rendered By Other Organisations,511,07/10/2022,2210-000239,0.00,5344.04,R,ACTIVE KIDS YEADON LLP,No
Http://opendatacommunities.org/id/metropolitan-district-council/leeds,Leeds City Council,31/10/2022,Adults and Health,Services For Adults Under 65 Mental/Dis,Agency Payments,Sheltered Accommodation,569,12/10/2022,2210-000240,0.00,12867.60,R,Active Pathways,No
Http://opendatacommunities.org/id/metropolitan-district-council/leeds,Leeds City Council,31/10/2022,Adults and Health,Services For Older People - 65 and Over,Agency Payments,Sheltered Accommodation,569,12/10/2022,2210-000241,0.00,4154.84,R,Active Pathways,No
Http://opendatacommunities.org/id/metropolitan-district-council/leeds,Leeds City Council as Accountable Body,31/10/2022,Social Services Pooled Budgets,Jcs For People With Learning Disabilitie,Agency Payments,Sheltered Accommodation,569,12/10/2022,2210-000242,0.00,12452.52,R,Active Pathways,No
Http://opendatacommunities.org/id/metropolitan-district-council/leeds,Leeds City Council,31/10/2022,Adults and Health,Services For Older People - 65 and Over,Agency Payments,Residential,580,12/10/2022,2210-000243,0.00,8649.20,R,Active Pathways Limited,No
Http://opendatacommunities.org/id/metropolitan-district-council/leeds,Leeds City Council,31/10/2022,Communities Housing and Environment,Waste Management,Supplies and Services,Recycling & Reuse Charges,234,06/10/2022,2210-000244,0.00,1010.16,R,Acumen Waste Services Ltd,No
Http://opendatacommunities.org/id/metropolitan-district-council/leeds,Leeds City Council,31/10/2022,Communities Housing and Environment,Waste Management,Supplies and Services,Recycling & Reuse Charges,234,06/10/2022,2210-000245,0.00,1013.76,R,Acumen Waste Services Ltd,No
Http://opendatacommunities.org/id/metropolitan-district-council/leeds,Leeds City Council,31/10/2022,Communities Housing and Environment,Waste Management,Supplies and Services,Recycling & Reuse Charges,234,06/10/2022,2210-000246,0.00,990.72,R,Acumen Waste Services Ltd,No
Http://opendatacommunities.org/id/metropolitan-district-council/leeds,Leeds City Council,31/10/2022,Communities Housing and Environment,Waste Management,Supplies and Services,Recycling & Reuse Charges,234,06/10/2022,2210-000247,0.00,997.92,R,Acumen Waste Services Ltd,No
Http://opendatacommunities.org/id/metropolitan-district-council/leeds,Leeds City Council,31/10/2022,Communities Housing and Environment,Waste Management,Supplies and Services,Recycling & Reuse Charges,234,06/10/2022,2210-000248,0.00,998.64,R,Acumen Waste Services Ltd,No
Http://opendatacommunities.org/id/metropolitan-district-council/leeds,Leeds City Council,31/10/2022,Communities Housing and Environment,Waste Management,Supplies and Services,Waste Disposal Charges,236,06/10/2022,2210-000249,0.00,275.00,R,Acumen Waste Services Ltd,No
Http://opendatacommunities.org/id/metropolitan-district-council/leeds,Leeds City Council,31/10/2022,Communities Housing and Environment,Waste Management,Supplies and Services,Waste Disposal Charges,236,06/10/2022,2210-000250,0.00,275.00,R,Acumen Waste Services Ltd,No
Http://opendatacommunities.org/id/metropolitan-district-council/leeds,Leeds City Council,31/10/2022,Communities Housing and Environment,Waste Management,Supplies and Services,Recycling & Reuse Charges,234,12/10/2022,2210-000251,0.00,1006.56,R,Acumen Waste Services Ltd,No
Http://opendatacommunities.org/id/metropolitan-district-council/leeds,Leeds City Council,31/10/2022,Communities Housing and Environment,Waste Management,Supplies and Services,Recycling & Reuse Charges,234,14/10/2022,2210-000252,0.00,997.20,R,Acumen Waste Services Ltd,No
Http://opendatacommunities.org/id/metropolitan-district-council/leeds,Leeds City Council,31/10/2022,Communities Housing and Environment,Waste Management,Supplies and Services,Recycling & Reuse Charges,234,14/10/2022,2210-000253,0.00,995.04,R,Acumen Waste Services Ltd,No
Http://opendatacommunities.org/id/metropolitan-district-council/leeds,Leeds City Council,31/10/2022,Communities Housing and Environment,Waste Management,Supplies and Services,Recycling & Reuse Charges,234,14/10/2022,2210-000254,0.00,988.56,R,Acumen Waste Services Ltd,No
Http://opendatacommunities.org/id/metropolitan-district-council/leeds,Leeds City Council,31/10/2022,Communities Housing and Environment,Waste Management,Supplies and Services,Recycling & Reuse Charges,234,14/10/2022,2210-000255,0.00,990.00,R,Acumen Waste Services Ltd,No
Http://opendatacommunities.org/id/metropolitan-district-council/leeds,Leeds City Council,31/10/2022,Communities Housing and Environment,Waste Management,Supplies and Services,Waste Disposal Charges,236,14/10/2022,2210-000256,0.00,793.10,R,Acumen Waste Services Ltd,No
Http://opendatacommunities.org/id/metropolitan-district-council/leeds,Leeds City Council,31/10/2022,Communities Housing and Environment,Waste Management,Supplies and Services,Recycling & Reuse Charges,234,21/10/2022,2210-000257,0.00,1010.16,R,Acumen Waste Services Ltd,No
Http://opendatacommunities.org/id/metropolitan-district-council/leeds,Leeds City Council,31/10/2022,Communities Housing and Environment,Waste Management,Supplies and Services,Recycling & Reuse Charges,234,26/10/2022,2210-000258,0.00,984.24,R,Acumen Waste Services Ltd,No
Http://opendatacommunities.org/id/metropolitan-district-council/leeds,Leeds City Council,31/10/2022,Communities Housing and Environment,Waste Management,Supplies and Services,Waste Disposal Charges,236,27/10/2022,2210-000259,0.00,1289.90,R,Acumen Waste Services Ltd,No
Http://opendatacommunities.org/id/metropolitan-district-council/leeds,Leeds City Council,31/10/2022,Communities Housing and Environment,Waste Management,Supplies and Services,Waste Disposal Charges,236,27/10/2022,2210-000260,0.00,1268.75,R,Acumen Waste Services Ltd,No
Http://opendatacommunities.org/id/metropolitan-district-council/leeds,Leeds City Council,31/10/2022,Resources,Shared Services,Supplies and Services,Operational Materials,205,07/10/2022,2210-000261,0.00,1497.00,R,AD3 Envelope Printers Limited,No
Http://opendatacommunities.org/id/metropolitan-district-council/leeds,Leeds City Council,31/10/2022,Resources,Shared Services,Supplies and Services,Operational Materials,205,28/10/2022,2210-000262,0.00,1497.00,R,AD3 Envelope Printers Limited,No
Http://opendatacommunities.org/id/metropolitan-district-council/leeds,Leeds City Council,31/10/2022,Strategic Landlord,HRA Housing Leeds,Capital,OTHER COSTS,7,27/10/2022,2210-000263,0.00,100.00,C,REDACTED PERSONAL DATA,No
Http://opendatacommunities.org/id/metropolitan-district-council/leeds,Leeds City Council,31/10/2022,Children and Families,Social Care,Appropriations,Leaving Care Allowances,634,04/10/2022,2210-000264,0.00,25.00,R,REDACTED PERSONAL DATA,No
Http://opendatacommunities.org/id/metropolitan-district-council/leeds,Leeds City Council,31/10/2022,Children and Families,Social Care,Appropriations,Leaving Care Allowances,634,21/10/2022,2210-000265,0.00,30.00,R,REDACTED PERSONAL DATA,No
Http://opendatacommunities.org/id/metropolitan-district-council/leeds,Leeds City Council,31/10/2022,Children and Families,Social Care,Appropriations,Leaving Care Allowances,634,26/10/2022,2210-000266,0.00,52.07,R,REDACTED PERSONAL DATA,No
Http://opendatacommunities.org/id/metropolitan-district-council/leeds,Leeds City Council,31/10/2022,Children and Families,Social Care,Agency Payments,Contact,548,05/10/2022,2210-000267,0.00,31.20,R,REDACTED PERSONAL DATA,No
Http://opendatacommunities.org/id/metropolitan-district-council/leeds,Leeds City Council,31/10/2022,Children and Families,Social Care,Agency Payments,Contact,548,21/10/2022,2210-000268,0.00,10.40,R,REDACTED PERSONAL DATA,No
Http://opendatacommunities.org/id/metropolitan-district-council/leeds,Leeds City Council,31/10/2022,Children and Families,Social Care,Agency Payments,Contact,548,28/10/2022,2210-000269,0.00,10.40,R,REDACTED PERSONAL DATA,No
Http://opendatacommunities.org/id/metropolitan-district-council/leeds,Leeds City Council,31/10/2022,City Development,Libraries Arts & Heritage,Supplies and Services,Food & Drink,231,13/10/2022,2210-000270,0.00,8.60,R,REDACTED PERSONAL DATA,No
Http://opendatacommunities.org/id/metropolitan-district-council/leeds,Leeds City Council,31/10/2022,City Development,Libraries Arts & Heritage,Supplies and Services,Other Hired and Contracted Services,265,13/10/2022,2210-000271,0.00,11.53,R,REDACTED PERSONAL DATA,No
Http://opendatacommunities.org/id/metropolitan-district-council/leeds,Leeds City Council,31/10/2022,Children and Families,Social Care ,Appropriations,Payments To Residents,622,07/09/2022,2210-000272,0.00,215.00,R,Adams Phones,Yes
Http://opendatacommunities.org/id/metropolitan-district-council/leeds,Leeds City Council,31/10/2022,City Development,Asset Management Services,Internal Recharges,Legal Disbursements,411,05/10/2022,2210-000273,0.00,5504.50,R,Addleshaw Goddard LLP,No
Http://opendatacommunities.org/id/metropolitan-district-council/leeds,Leeds City Council,31/10/2022,City Development,Libraries Arts & Heritage,Supplies and Services,Other Hired and Contracted Services,265,26/10/2022,2210-000274,0.00,5195.00,R,ADDPLANT Limited,No
Http://opendatacommunities.org/id/metropolitan-district-council/leeds,Leeds City Council,31/10/2022,Children and Families,Social Care,Agency Payments,Services Rendered By Voluntary Sector,505,05/10/2022,2210-000275,0.00,271.54,R,ADEL PRE SCHOOL,No
Http://opendatacommunities.org/id/metropolitan-district-council/leeds,Leeds City Council,31/10/2022,Children and Families,Social Care,Agency Payments,Services Rendered By Voluntary Sector,505,07/10/2022,2210-000276,0.00,2330.25,R,ADEL PRE SCHOOL,No
Http://opendatacommunities.org/id/metropolitan-district-council/leeds,Leeds City Council,31/10/2022,City Development,Recreation,Supplies and Services,Bought In Professional Services,277,27/10/2022,2210-000277,0.00,96.00,R,Adele Battersby,No
Http://opendatacommunities.org/id/metropolitan-district-council/leeds,Leeds City Council,31/10/2022,City Development,Recreation,Supplies and Services,Bought In Professional Services,277,27/10/2022,2210-000278,0.00,120.00,R,Adele Battersby,No
Http://opendatacommunities.org/id/metropolitan-district-council/leeds,Leeds City Council,31/10/2022,Children and Families,Social Care,Agency Payments,Services Rendered By Other Organisations,511,05/10/2022,2210-000279,0.00,271.54,R,REDACTED PERSONAL DATA,No
Http://opendatacommunities.org/id/metropolitan-district-council/leeds,Leeds City Council,31/10/2022,Children and Families,Social Care,Agency Payments,Services Rendered By Other Organisations,511,07/10/2022,2210-000280,0.00,1631.17,R,REDACTED PERSONAL DATA,No
Http://opendatacommunities.org/id/metropolitan-district-council/leeds,Leeds City Council,31/10/2022,Resources,Commercial Services,Supplies and Services,Other Hired and Contracted Services,265,07/10/2022,2210-000281,0.00,61.57,R,REDACTED PERSONAL DATA,No
Http://opendatacommunities.org/id/metropolitan-district-council/leeds,Leeds City Council,31/10/2022,Resources,Commercial Services,Supplies and Services,Other Hired and Contracted Services,265,12/10/2022,2210-000282,0.00,94.36,R,REDACTED PERSONAL DATA,No
Http://opendatacommunities.org/id/metropolitan-district-council/leeds,Leeds City Council,31/10/2022,Resources,Commercial Services,Supplies and Services,Other Hired and Contracted Services,265,28/10/2022,2210-000283,0.00,60.96,R,REDACTED PERSONAL DATA,No
Http://opendatacommunities.org/id/metropolitan-district-council/leeds,Leeds City Council,31/10/2022,Children and Families,Social Care,Agency Payments,Contact,548,21/10/2022,2210-000284,0.00,32.00,R,REDACTED PERSONAL DATA,No
Http://opendatacommunities.org/id/metropolitan-district-council/leeds,Leeds City Council,31/10/2022,Children and Families,Social Care ,Appropriations,Children's Homes Clothing Allowance,608,17/09/2022,2210-000285,0.00,16.00,R,Adidas (U.K.) Limited,Yes
Http://opendatacommunities.org/id/metropolitan-district-council/leeds,Leeds City Council,31/10/2022,Communities Housing and Environment,Community Safety ,Supplies and Services,Other Hired and Contracted Services,265,07/09/2022,2210-000286,0.00,635.88,R,Adi-Gardiner Ltd,Yes
Http://opendatacommunities.org/id/metropolitan-district-council/leeds,Leeds City Council,31/10/2022,Resources,Leeds Building Services,Supplies and Services,Operational Materials,205,10/10/2022,2210-000287,0.00,182.76,R,ADI-Gardiner Ltd,No
Http://opendatacommunities.org/id/metropolitan-district-council/leeds,Leeds City Council,31/10/2022,Resources,Leeds Building Services,Supplies and Services,Operational Materials,205,10/10/2022,2210-000288,0.00,1190.79,R,ADI-Gardiner Ltd,No
Http://opendatacommunities.org/id/metropolitan-district-council/leeds,Leeds City Council,31/10/2022,Resources,Leeds Building Services,Supplies and Services,Operational Materials,205,10/10/2022,2210-000289,0.00,12.89,R,ADI-Gardiner Ltd,No
Http://opendatacommunities.org/id/metropolitan-district-council/leeds,Leeds City Council,31/10/2022,Resources,Leeds Building Services,Supplies and Services,Operational Materials,205,10/10/2022,2210-000290,0.00,9.58,R,ADI-Gardiner Ltd,No
Http://opendatacommunities.org/id/metropolitan-district-council/leeds,Leeds City Council,31/10/2022,Resources,Leeds Building Services,Supplies and Services,Operational Materials,205,10/10/2022,2210-000291,0.00,4.79,R,ADI-Gardiner Ltd,No
Http://opendatacommunities.org/id/metropolitan-district-council/leeds,Leeds City Council,31/10/2022,Resources,Leeds Building Services,Supplies and Services,Operational Materials,205,10/10/2022,2210-000292,0.00,7.95,R,ADI-Gardiner Ltd,No
Http://opendatacommunities.org/id/metropolitan-district-council/leeds,Leeds City Council,31/10/2022,Resources,Leeds Building Services,Supplies and Services,Operational Materials,205,10/10/2022,2210-000293,0.00,12.89,R,ADI-Gardiner Ltd,No
Http://opendatacommunities.org/id/metropolitan-district-council/leeds,Leeds City Council,31/10/2022,Resources,Leeds Building Services,Supplies and Services,Operational Materials,205,10/10/2022,2210-000294,0.00,2664.14,R,ADI-Gardiner Ltd,No
Http://opendatacommunities.org/id/metropolitan-district-council/leeds,Leeds City Council,31/10/2022,Resources,Leeds Building Services,Supplies and Services,Operational Materials,205,10/10/2022,2210-000295,0.00,983.53,R,ADI-Gardiner Ltd,No
Http://opendatacommunities.org/id/metropolitan-district-council/leeds,Leeds City Council,31/10/2022,Resources,Leeds Building Services,Supplies and Services,Operational Materials,205,10/10/2022,2210-000296,0.00,1047.50,R,ADI-Gardiner Ltd,No
Http://opendatacommunities.org/id/metropolitan-district-council/leeds,Leeds City Council,31/10/2022,Resources,Leeds Building Services,Supplies and Services,Operational Materials,205,10/10/2022,2210-000297,0.00,643.87,R,ADI-Gardiner Ltd,No
Http://opendatacommunities.org/id/metropolitan-district-council/leeds,Leeds City Council,31/10/2022,Resources,Leeds Building Services,Supplies and Services,Operational Materials,205,10/10/2022,2210-000298,0.00,280.88,R,ADI-Gardiner Ltd,No
Http://opendatacommunities.org/id/metropolitan-district-council/leeds,Leeds City Council,31/10/2022,Resources,Leeds Building Services,Supplies and Services,Operational Materials,205,10/10/2022,2210-000299,0.00,47.90,R,ADI-Gardiner Ltd,No
Http://opendatacommunities.org/id/metropolitan-district-council/leeds,Leeds City Council,31/10/2022,Resources,Leeds Building Services,Supplies and Services,Operational Materials,205,10/10/2022,2210-000300,0.00,996.00,R,ADI-Gardiner Ltd,No
Http://opendatacommunities.org/id/metropolitan-district-council/leeds,Leeds City Council,31/10/2022,Resources,Leeds Building Services,Supplies and Services,Operational Materials,205,10/10/2022,2210-000301,0.00,72.13,R,ADI-Gardiner Ltd,No
Http://opendatacommunities.org/id/metropolitan-district-council/leeds,Leeds City Council,31/10/2022,Resources,Leeds Building Services,Supplies and Services,Operational Materials,205,10/10/2022,2210-000302,0.00,-465.41,R,ADI-Gardiner Ltd,No
Http://opendatacommunities.org/id/metropolitan-district-council/leeds,Leeds City Council,31/10/2022,Resources,Leeds Building Services,Supplies and Services,Operational Materials,205,10/10/2022,2210-000303,0.00,925.42,R,ADI-Gardiner Ltd,No
Http://opendatacommunities.org/id/metropolitan-district-council/leeds,Leeds City Council,31/10/2022,Resources,Leeds Building Services,Supplies and Services,Operational Materials,205,10/10/2022,2210-000304,0.00,12.89,R,ADI-Gardiner Ltd,No
Http://opendatacommunities.org/id/metropolitan-district-council/leeds,Leeds City Council,31/10/2022,Resources,Leeds Building Services,Supplies and Services,Operational Materials,205,10/10/2022,2210-000305,0.00,8.56,R,ADI-Gardiner Ltd,No
Http://opendatacommunities.org/id/metropolitan-district-council/leeds,Leeds City Council,31/10/2022,Resources,Leeds Building Services,Supplies and Services,Operational Materials,205,10/10/2022,2210-000306,0.00,91.38,R,ADI-Gardiner Ltd,No
Http://opendatacommunities.org/id/metropolitan-district-council/leeds,Leeds City Council,31/10/2022,Resources,Leeds Building Services,Supplies and Services,Operational Materials,205,10/10/2022,2210-000307,0.00,5176.57,R,ADI-Gardiner Ltd,No
Http://opendatacommunities.org/id/metropolitan-district-council/leeds,Leeds City Council,31/10/2022,Resources,Leeds Building Services,Supplies and Services,Operational Materials,205,10/10/2022,2210-000308,0.00,299.54,R,ADI-Gardiner Ltd,No
Http://opendatacommunities.org/id/metropolitan-district-council/leeds,Leeds City Council,31/10/2022,Resources,Leeds Building Services,Supplies and Services,Operational Materials,205,10/10/2022,2210-000309,0.00,751.01,R,ADI-Gardiner Ltd,No
Http://opendatacommunities.org/id/metropolitan-district-council/leeds,Leeds City Council,31/10/2022,Resources,Leeds Building Services,Supplies and Services,Operational Materials,205,10/10/2022,2210-000310,0.00,4120.67,R,ADI-Gardiner Ltd,No
Http://opendatacommunities.org/id/metropolitan-district-council/leeds,Leeds City Council,31/10/2022,Resources,Leeds Building Services,Supplies and Services,Operational Materials,205,10/10/2022,2210-000311,0.00,918.86,R,ADI-Gardiner Ltd,No
Http://opendatacommunities.org/id/metropolitan-district-council/leeds,Leeds City Council,31/10/2022,Resources,Leeds Building Services,Supplies and Services,Operational Materials,205,10/10/2022,2210-000312,0.00,12.30,R,ADI-Gardiner Ltd,No
Http://opendatacommunities.org/id/metropolitan-district-council/leeds,Leeds City Council,31/10/2022,Resources,Leeds Building Services,Supplies and Services,Operational Materials,205,10/10/2022,2210-000313,0.00,135.10,R,ADI-Gardiner Ltd,No
Http://opendatacommunities.org/id/metropolitan-district-council/leeds,Leeds City Council,31/10/2022,Resources,Leeds Building Services,Supplies and Services,Operational Materials,205,10/10/2022,2210-000314,0.00,1379.70,R,ADI-Gardiner Ltd,No
Http://opendatacommunities.org/id/metropolitan-district-council/leeds,Leeds City Council,31/10/2022,Resources,Leeds Building Services,Supplies and Services,Operational Materials,205,10/10/2022,2210-000315,0.00,63.45,R,ADI-Gardiner Ltd,No
Http://opendatacommunities.org/id/metropolitan-district-council/leeds,Leeds City Council,31/10/2022,Resources,Leeds Building Services,Supplies and Services,Operational Materials,205,17/10/2022,2210-000316,0.00,22.99,R,ADI-Gardiner Ltd,No
Http://opendatacommunities.org/id/metropolitan-district-council/leeds,Leeds City Council,31/10/2022,Resources,Leeds Building Services,Supplies and Services,Operational Materials,205,17/10/2022,2210-000317,0.00,916.36,R,ADI-Gardiner Ltd,No
Http://opendatacommunities.org/id/metropolitan-district-council/leeds,Leeds City Council,31/10/2022,Resources,Leeds Building Services,Supplies and Services,Operational Materials,205,17/10/2022,2210-000318,0.00,458.18,R,ADI-Gardiner Ltd,No
Http://opendatacommunities.org/id/metropolitan-district-council/leeds,Leeds City Council,31/10/2022,Resources,Leeds Building Services,Supplies and Services,Operational Materials,205,17/10/2022,2210-000319,0.00,160.45,R,ADI-Gardiner Ltd,No
Http://opendatacommunities.org/id/metropolitan-district-council/leeds,Leeds City Council,31/10/2022,Resources,Leeds Building Services,Supplies and Services,Operational Materials,205,17/10/2022,2210-000320,0.00,45.99,R,ADI-Gardiner Ltd,No
Http://opendatacommunities.org/id/metropolitan-district-council/leeds,Leeds City Council,31/10/2022,Resources,Leeds Building Services,Supplies and Services,Operational Materials,205,17/10/2022,2210-000321,0.00,339.54,R,ADI-Gardiner Ltd,No
Http://opendatacommunities.org/id/metropolitan-district-council/leeds,Leeds City Council,31/10/2022,Resources,Leeds Building Services,Supplies and Services,Operational Materials,205,17/10/2022,2210-000322,0.00,20.85,R,ADI-Gardiner Ltd,No
Http://opendatacommunities.org/id/metropolitan-district-council/leeds,Leeds City Council,31/10/2022,Resources,Leeds Building Services,Supplies and Services,Operational Materials,205,20/10/2022,2210-000323,0.00,22.49,R,ADI-Gardiner Ltd,No
Http://opendatacommunities.org/id/metropolitan-district-council/leeds,Leeds City Council,31/10/2022,Resources,Leeds Building Services,Supplies and Services,Operational Materials,205,26/10/2022,2210-000324,0.00,691.46,R,ADI-Gardiner Ltd,No
Http://opendatacommunities.org/id/metropolitan-district-council/leeds,Leeds City Council,31/10/2022,Resources,Leeds Building Services,Supplies and Services,Operational Materials,205,28/10/2022,2210-000325,0.00,144.78,R,ADI-Gardiner Ltd,No
Http://opendatacommunities.org/id/metropolitan-district-council/leeds,Leeds City Council,31/10/2022,Resources,Leeds Building Services,Supplies and Services,Operational Materials,205,28/10/2022,2210-000326,0.00,112.00,R,ADI-Gardiner Ltd,No
Http://opendatacommunities.org/id/metropolitan-district-council/leeds,Leeds City Council,31/10/2022,Resources,Leeds Building Services,Supplies and Services,Operational Materials,205,28/10/2022,2210-000327,0.00,112.00,R,ADI-Gardiner Ltd,No
Http://opendatacommunities.org/id/metropolitan-district-council/leeds,Leeds City Council,31/10/2022,City Development,Recreation ,Supplies and Services,Computer Software & Equipment,214,21/09/2022,2210-000328,0.00,298.02,R,Adobe Creative Cloud,Yes
Http://opendatacommunities.org/id/metropolitan-district-council/leeds,Leeds City Council,31/10/2022,Children and Families,Social Care,Agency Payments,Independent Fostering Agencies,509,07/10/2022,2210-000329,0.00,3661.00,R,Adolescent and Childrens Trust,No
Http://opendatacommunities.org/id/metropolitan-district-council/leeds,Leeds City Council,31/10/2022,Children and Families,Social Care,Agency Payments,Independent Fostering Agencies,509,07/10/2022,2210-000330,0.00,3565.00,R,Adolescent and Childrens Trust,No
Http://opendatacommunities.org/id/metropolitan-district-council/leeds,Leeds City Council,31/10/2022,Children and Families,Social Care,Agency Payments,Independent Fostering Agencies,509,07/10/2022,2210-000331,0.00,3751.00,R,Adolescent and Childrens Trust,No
Http://opendatacommunities.org/id/metropolitan-district-council/leeds,Leeds City Council,31/10/2022,Children and Families,Social Care,Agency Payments,Independent Fostering Agencies,509,07/10/2022,2210-000332,0.00,3551.67,R,Adolescent and Childrens Trust,No
Http://opendatacommunities.org/id/metropolitan-district-council/leeds,Leeds City Council,31/10/2022,Children and Families,Social Care,Agency Payments,Independent Fostering Agencies,509,07/10/2022,2210-000333,0.00,3658.00,R,Adolescent and Childrens Trust,No
Http://opendatacommunities.org/id/metropolitan-district-council/leeds,Leeds City Council,31/10/2022,Children and Families,Social Care,Agency Payments,Independent Fostering Agencies,509,07/10/2022,2210-000334,0.00,123.57,R,Adolescent and Childrens Trust,No
Http://opendatacommunities.org/id/metropolitan-district-council/leeds,Leeds City Council,31/10/2022,Children and Families,Social Care,Agency Payments,Independent Fostering Agencies,509,07/10/2022,2210-000335,0.00,3658.00,R,Adolescent and Childrens Trust,No
Http://opendatacommunities.org/id/metropolitan-district-council/leeds,Leeds City Council,31/10/2022,Children and Families,Social Care,Agency Payments,Independent Fostering Agencies,509,07/10/2022,2210-000336,0.00,2052.00,R,Adolescent and Childrens Trust,No
Http://opendatacommunities.org/id/metropolitan-district-council/leeds,Leeds City Council,31/10/2022,Children and Families,Social Care,Agency Payments,Independent Fostering Agencies,509,07/10/2022,2210-000337,0.00,741.42,R,Adolescent and Childrens Trust,No
Http://opendatacommunities.org/id/metropolitan-district-council/leeds,Leeds City Council,31/10/2022,Children and Families,Social Care,Agency Payments,Independent Fostering Agencies,509,07/10/2022,2210-000338,0.00,3565.00,R,Adolescent and Childrens Trust,No
Http://opendatacommunities.org/id/metropolitan-district-council/leeds,Leeds City Council,31/10/2022,Children and Families,Social Care,Agency Payments,Independent Fostering Agencies,509,07/10/2022,2210-000339,0.00,3751.00,R,Adolescent and Childrens Trust,No
Http://opendatacommunities.org/id/metropolitan-district-council/leeds,Leeds City Council,31/10/2022,Children and Families,Social Care,Agency Payments,Independent Fostering Agencies,509,07/10/2022,2210-000340,0.00,3751.00,R,Adolescent and Childrens Trust,No
Http://opendatacommunities.org/id/metropolitan-district-council/leeds,Leeds City Council,31/10/2022,Children and Families,Social Care,Agency Payments,Independent Fostering Agencies,509,07/10/2022,2210-000341,0.00,3565.00,R,Adolescent and Childrens Trust,No
Http://opendatacommunities.org/id/metropolitan-district-council/leeds,Leeds City Council,31/10/2022,Children and Families,Social Care,Agency Payments,Independent Fostering Agencies,509,07/10/2022,2210-000342,0.00,3830.67,R,Adolescent and Childrens Trust,No
Http://opendatacommunities.org/id/metropolitan-district-council/leeds,Leeds City Council,31/10/2022,Children and Families,Social Care,Agency Payments,Independent Fostering Agencies,509,07/10/2022,2210-000343,0.00,3534.00,R,Adolescent and Childrens Trust,No
Http://opendatacommunities.org/id/metropolitan-district-council/leeds,Leeds City Council,31/10/2022,Adults and Health,Services For Adults Under 65 Mental/Dis,Agency Payments,Home Care,568,05/10/2022,2210-000344,0.00,410.25,R,Adopt Healthcare,No
Http://opendatacommunities.org/id/metropolitan-district-council/leeds,Leeds City Council,31/10/2022,Adults and Health,Services For Adults Under 65 Mental/Dis,Agency Payments,Home Care,568,05/10/2022,2210-000345,0.00,148.50,R,Adopt Healthcare,No
Http://opendatacommunities.org/id/metropolitan-district-council/leeds,Leeds City Council,31/10/2022,Adults and Health,Services For Adults Under 65 Mental/Dis,Agency Payments,Home Care,568,05/10/2022,2210-000346,0.00,189.00,R,Adopt Healthcare,No
Http://opendatacommunities.org/id/metropolitan-district-council/leeds,Leeds City Council,31/10/2022,Adults and Health,Services For Adults Under 65 Mental/Dis,Agency Payments,Home Care,568,12/10/2022,2210-000347,0.00,205.50,R,Adopt Healthcare,No
Http://opendatacommunities.org/id/metropolitan-district-council/leeds,Leeds City Council,31/10/2022,Adults and Health,Services For Adults Under 65 Mental/Dis,Agency Payments,Home Care,568,14/10/2022,2210-000348,0.00,426.75,R,Adopt Healthcare,No
Http://opendatacommunities.org/id/metropolitan-district-council/leeds,Leeds City Council,31/10/2022,Adults and Health,Services For Adults Under 65 Mental/Dis,Agency Payments,Home Care,568,14/10/2022,2210-000349,0.00,165.00,R,Adopt Healthcare,No
Http://opendatacommunities.org/id/metropolitan-district-council/leeds,Leeds City Council,31/10/2022,Adults and Health,Services For Adults Under 65 Mental/Dis,Agency Payments,Home Care,568,19/10/2022,2210-000350,0.00,492.75,R,Adopt Healthcare,No
Http://opendatacommunities.org/id/metropolitan-district-council/leeds,Leeds City Council,31/10/2022,Adults and Health,Services For Adults Under 65 Mental/Dis,Agency Payments,Home Care,568,19/10/2022,2210-000351,0.00,234.00,R,Adopt Healthcare,No
Http://opendatacommunities.org/id/metropolitan-district-council/leeds,Leeds City Council,31/10/2022,Adults and Health,Services For Adults Under 65 Mental/Dis,Agency Payments,Home Care,568,19/10/2022,2210-000352,0.00,148.50,R,Adopt Healthcare,No
Http://opendatacommunities.org/id/metropolitan-district-council/leeds,Leeds City Council,31/10/2022,Adults and Health,Services For Adults Under 65 Mental/Dis,Agency Payments,Home Care,568,26/10/2022,2210-000353,0.00,250.50,R,Adopt Healthcare,No
Http://opendatacommunities.org/id/metropolitan-district-council/leeds,Leeds City Council,31/10/2022,Adults and Health,Services For Adults Under 65 Mental/Dis,Agency Payments,Home Care,568,26/10/2022,2210-000354,0.00,148.50,R,Adopt Healthcare,No
Http://opendatacommunities.org/id/metropolitan-district-council/leeds,Leeds City Council,31/10/2022,Adults and Health,Services For Adults Under 65 Mental/Dis,Agency Payments,Home Care,568,26/10/2022,2210-000355,0.00,410.25,R,Adopt Healthcare,No
Http://opendatacommunities.org/id/metropolitan-district-council/leeds,Leeds City Council,31/10/2022,Children and Families,Social Care,Agency Payments,Placement Support,550,07/10/2022,2210-000356,0.00,21.15,R,REDACTED PERSONAL DATA,No
Http://opendatacommunities.org/id/metropolitan-district-council/leeds,Leeds City Council,31/10/2022,Children and Families,Social Care,Agency Payments,Placement Support,550,14/10/2022,2210-000357,0.00,21.15,R,REDACTED PERSONAL DATA,No
Http://opendatacommunities.org/id/metropolitan-district-council/leeds,Leeds City Council,31/10/2022,Children and Families,Social Care,Agency Payments,Placement Support,550,21/10/2022,2210-000358,0.00,21.15,R,REDACTED PERSONAL DATA,No
Http://opendatacommunities.org/id/metropolitan-district-council/leeds,Leeds City Council as Accountable Body,31/10/2022,Social Services Pooled Budgets,Jcs For People With Learning Disabilitie,Agency Payments,Residential,580,26/10/2022,2210-000359,0.00,2609.36,R,ADRIAN HOUSE,No
Http://opendatacommunities.org/id/metropolitan-district-council/leeds,Leeds City Council,31/10/2022,City Development,Libraries Arts & Heritage,Supplies and Services,External Audit Fees,261,14/10/2022,2210-000360,0.00,100.00,R,ADVANCE STOCKS LTD,No
Http://opendatacommunities.org/id/metropolitan-district-council/leeds,Leeds City Council,31/10/2022,City Development,Recreation,Supplies and Services,External Audit Fees,261,14/10/2022,2210-000361,0.00,135.00,R,ADVANCE STOCKS LTD,No
Http://opendatacommunities.org/id/metropolitan-district-council/leeds,Leeds City Council,31/10/2022,Children and Families,Social Care,Internal Recharges,Legal Disbursements,411,07/10/2022,2210-000362,0.00,49.50,R,ADVANCED CHILD CARE ASSESSMENTS LTD,No
Http://opendatacommunities.org/id/metropolitan-district-council/leeds,Leeds City Council,31/10/2022,Children and Families,Social Care,Internal Recharges,Legal Disbursements,411,12/10/2022,2210-000363,0.00,1225.30,R,ADVANCED CHILD CARE ASSESSMENTS LTD,No
Http://opendatacommunities.org/id/metropolitan-district-council/leeds,Leeds City Council,31/10/2022,Adults and Health,Assessment and Care Management,Agency Payments,Home Care,568,12/10/2022,2210-000364,0.00,573.72,R,Advanced Medcare Ltd,No
Http://opendatacommunities.org/id/metropolitan-district-council/leeds,Leeds City Council,31/10/2022,Adults and Health,Services For Adults Under 65 Learn/Dis,Agency Payments,Home Care,568,12/10/2022,2210-000365,0.00,573.72,R,Advanced Medcare Ltd,No
Http://opendatacommunities.org/id/metropolitan-district-council/leeds,Leeds City Council,31/10/2022,Adults and Health,Services For Older People - 65 and Over,Agency Payments,Home Care,568,12/10/2022,2210-000366,0.00,25897.31,R,Advanced Medcare Ltd,No
Http://opendatacommunities.org/id/metropolitan-district-council/leeds,Leeds City Council,31/10/2022,Adults and Health,Services For Older People - 65 and Over,Agency Payments,HCAIT Community Support,575,12/10/2022,2210-000367,0.00,1270.38,R,Advanced Medcare Ltd,No
Http://opendatacommunities.org/id/metropolitan-district-council/leeds,Leeds City Council,31/10/2022,Adults and Health,Services For Older People Under 65 P/Dis,Agency Payments,Home Care,568,12/10/2022,2210-000368,0.00,3165.71,R,Advanced Medcare Ltd,No
Http://opendatacommunities.org/id/metropolitan-district-council/leeds,Leeds City Council as Accountable Body,31/10/2022,Social Services Pooled Budgets,Jcs For People With Learning Disabilitie,Agency Payments,Home Care,568,12/10/2022,2210-000369,0.00,1311.36,R,Advanced Medcare Ltd,No
Http://opendatacommunities.org/id/metropolitan-district-council/leeds,Leeds City Council,31/10/2022,City Development,Recreation ,Employees,Recruitment Advertising,80,01/09/2022,2210-000370,0.00,48.00,R,Advertising Charges To Ju,Yes
Http://opendatacommunities.org/id/metropolitan-district-council/leeds,Leeds City Council,31/10/2022,Resources,Technology ,Employees,Agency Staff,8,01/09/2022,2210-000371,0.00,38.13,R,Advertising Charges To Se,Yes
Http://opendatacommunities.org/id/metropolitan-district-council/leeds,Leeds City Council,31/10/2022,City Development,Highways,Capital,OTHER COSTS,7,04/10/2022,2210-000372,0.00,65201.27,C,Aecom Limited,No
Http://opendatacommunities.org/id/metropolitan-district-council/leeds,Leeds City Council,31/10/2022,City Development,Asset Management,Capital,OTHER COSTS,7,06/10/2022,2210-000373,0.00,3961.84,C,Aecom Limited,No
Http://opendatacommunities.org/id/metropolitan-district-council/leeds,Leeds City Council,31/10/2022,City Development,Highways,Capital,OTHER COSTS,7,06/10/2022,2210-000374,0.00,83879.29,C,Aecom Limited,No
Http://opendatacommunities.org/id/metropolitan-district-council/leeds,Leeds City Council,31/10/2022,City Development,Highways,Capital,OTHER COSTS,7,24/10/2022,2210-000375,0.00,11125.35,C,Aecom Limited,No
Http://opendatacommunities.org/id/metropolitan-district-council/leeds,Leeds City Council,31/10/2022,City Development,Highways,Capital,OTHER COSTS,7,28/10/2022,2210-000376,0.00,67230.58,C,Aecom Limited,No
Http://opendatacommunities.org/id/metropolitan-district-council/leeds,Leeds City Council,31/10/2022,Children and Families,Learning,Supplies and Services,Conference Meetings,253,20/10/2022,2210-000377,0.00,237.50,R,Aesculap Academia,No
Http://opendatacommunities.org/id/metropolitan-district-council/leeds,Leeds City Council,31/10/2022,City Development,Libraries Arts & Heritage,Supplies and Services,Other Hired and Contracted Services,265,27/10/2022,2210-000378,0.00,492.50,R,Aesg Ltd,No
Http://opendatacommunities.org/id/metropolitan-district-council/leeds,Leeds City Council,31/10/2022,Adults and Health,Assessment and Care Management,Agency Payments,Home Care,568,19/10/2022,2210-000379,0.00,141.92,R,Affinity Trust,No
Http://opendatacommunities.org/id/metropolitan-district-council/leeds,Leeds City Council,31/10/2022,Adults and Health,Services For Adults Under 65 Mental/Dis,Agency Payments,Home Care,568,19/10/2022,2210-000380,0.00,567.68,R,Affinity Trust,No
Http://opendatacommunities.org/id/metropolitan-district-council/leeds,Leeds City Council,31/10/2022,Adults and Health,Services For Adults Under 65 Mental/Dis,Agency Payments,HCAIT Community Support,575,19/10/2022,2210-000381,0.00,354.80,R,Affinity Trust,No
Http://opendatacommunities.org/id/metropolitan-district-council/leeds,Leeds City Council,31/10/2022,Adults and Health,Services For Older People - 65 and Over,Agency Payments,HCAIT Community Support,575,19/10/2022,2210-000382,0.00,638.64,R,Affinity Trust,No
Http://opendatacommunities.org/id/metropolitan-district-council/leeds,Leeds City Council,31/10/2022,Adults and Health,Services For Older People Under 65 P/Dis,Agency Payments,Home Care,568,19/10/2022,2210-000383,0.00,212.88,R,Affinity Trust,No
Http://opendatacommunities.org/id/metropolitan-district-council/leeds,Leeds City Council,31/10/2022,Adults and Health,Services For Older People Under 65 P/Dis,Agency Payments,HCAIT Community Support,575,19/10/2022,2210-000384,0.00,780.56,R,Affinity Trust,No
Http://opendatacommunities.org/id/metropolitan-district-council/leeds,Leeds City Council as Accountable Body,31/10/2022,Social Services Pooled Budgets,Jcs For People With Learning Disabilitie,Agency Payments,Day Centre,564,21/10/2022,2210-000385,0.00,20999.48,R,Affinity Trust,No
Http://opendatacommunities.org/id/metropolitan-district-council/leeds,Leeds City Council as Accountable Body,31/10/2022,Social Services Pooled Budgets,Jcs For People With Learning Disabilitie,Agency Payments,Home Care,568,21/10/2022,2210-000386,0.00,20999.48,R,Affinity Trust,No
Http://opendatacommunities.org/id/metropolitan-district-council/leeds,Leeds City Council as Accountable Body,31/10/2022,Social Services Pooled Budgets,Jcs For People With Learning Disabilitie,Agency Payments,Sheltered Accommodation,569,12/10/2022,2210-000387,0.00,120477.86,R,Affinity Trust North Divisional Office,No
Http://opendatacommunities.org/id/metropolitan-district-council/leeds,Leeds City Council,31/10/2022,Communities Housing and Environment,Parks and Countryside ,Supplies and Services,Other Hired and Contracted Services,265,10/08/2022,2210-000388,0.00,-330.00,R,Afi Uplift,Yes
Http://opendatacommunities.org/id/metropolitan-district-council/leeds,Leeds City Council,31/10/2022,Communities Housing and Environment,Parks and Countryside ,Transport,Hire Of Movable Plant & Machinery,315,22/09/2022,2210-000389,0.00,3800.00,R,Afi Uplift,Yes
Http://opendatacommunities.org/id/metropolitan-district-council/leeds,Leeds City Council,31/10/2022,City Development,Employment & Skills,Agency Payments,Contributions To Partnerships,544,21/10/2022,2210-000390,0.00,545.00,R,Age Uk Leeds,No
Http://opendatacommunities.org/id/metropolitan-district-council/leeds,Leeds City Council,31/10/2022,City Development,Highways,Supplies and Services,Operational Materials,205,05/10/2022,2210-000391,0.00,830.08,R,AGGREGATE INDUSTRIES UK LTD,No
Http://opendatacommunities.org/id/metropolitan-district-council/leeds,Leeds City Council,31/10/2022,City Development,Highways,Supplies and Services,Operational Materials,205,13/10/2022,2210-000392,0.00,3830.63,R,AGGREGATE INDUSTRIES UK LTD,No
Http://opendatacommunities.org/id/metropolitan-district-council/leeds,Leeds City Council,31/10/2022,City Development,Highways,Supplies and Services,Operational Materials,205,13/10/2022,2210-000393,0.00,1594.30,R,AGGREGATE INDUSTRIES UK LTD,No
Http://opendatacommunities.org/id/metropolitan-district-council/leeds,Leeds City Council,31/10/2022,City Development,Highways,Supplies and Services,Operational Materials,205,26/10/2022,2210-000394,0.00,3822.88,R,AGGREGATE INDUSTRIES UK LTD,No
Http://opendatacommunities.org/id/metropolitan-district-council/leeds,Leeds City Council,31/10/2022,City Development,Highways,Supplies and Services,Operational Materials,205,26/10/2022,2210-000395,0.00,648.37,R,AGGREGATE INDUSTRIES UK LTD,No
Http://opendatacommunities.org/id/metropolitan-district-council/leeds,Leeds City Council,31/10/2022,City Development,Highways,Supplies and Services,Operational Materials,205,27/10/2022,2210-000396,0.00,6373.25,R,AGGREGATE INDUSTRIES UK LTD,No
Http://opendatacommunities.org/id/metropolitan-district-council/leeds,Leeds City Council,31/10/2022,City Development,Highways,Supplies and Services,Operational Materials,205,27/10/2022,2210-000397,0.00,844.88,R,AGGREGATE INDUSTRIES UK LTD,No
Http://opendatacommunities.org/id/metropolitan-district-council/leeds,Leeds City Council,31/10/2022,City Development,Highways,Supplies and Services,Operational Materials,205,27/10/2022,2210-000398,0.00,778.11,R,AGGREGATE INDUSTRIES UK LTD,No
Http://opendatacommunities.org/id/metropolitan-district-council/leeds,Leeds City Council,31/10/2022,City Development,Highways,Supplies and Services,Operational Materials,205,28/10/2022,2210-000399,0.00,1490.22,R,AGGREGATE INDUSTRIES UK LTD,No
Http://opendatacommunities.org/id/metropolitan-district-council/leeds,Leeds City Council,31/10/2022,City Development,Highways,Supplies and Services,Operational Materials,205,28/10/2022,2210-000400,0.00,2010.71,R,AGGREGATE INDUSTRIES UK LTD,No
Http://opendatacommunities.org/id/metropolitan-district-council/leeds,Leeds City Council,31/10/2022,City Development,Highways,Supplies and Services,Operational Materials,205,28/10/2022,2210-000401,0.00,1156.32,R,AGGREGATE INDUSTRIES UK LTD,No
Http://opendatacommunities.org/id/metropolitan-district-council/leeds,Leeds City Council,31/10/2022,City Development,Highways,Supplies and Services,Operational Materials,205,28/10/2022,2210-000402,0.00,1679.54,R,AGGREGATE INDUSTRIES UK LTD,No
Http://opendatacommunities.org/id/metropolitan-district-council/leeds,Leeds City Council,31/10/2022,City Development,Highways,Supplies and Services,Operational Materials,205,28/10/2022,2210-000403,0.00,305.48,R,AGGREGATE INDUSTRIES UK LTD,No
Http://opendatacommunities.org/id/metropolitan-district-council/leeds,Leeds City Council,31/10/2022,City Development,Highways,Supplies and Services,Operational Materials,205,28/10/2022,2210-000404,0.00,1479.54,R,AGGREGATE INDUSTRIES UK LTD,No
Http://opendatacommunities.org/id/metropolitan-district-council/leeds,Leeds City Council,31/10/2022,Communities Housing and Environment,Customer Access,Supplies and Services,Bought In Professional Services,277,05/10/2022,2210-000405,0.00,27.00,R,Agnieszka J Collier,No
Http://opendatacommunities.org/id/metropolitan-district-council/leeds,Leeds City Council,31/10/2022,Communities Housing and Environment,Customer Access,Supplies and Services,Bought In Professional Services,277,05/10/2022,2210-000406,0.00,9.00,R,Agnieszka J Collier,No
Http://opendatacommunities.org/id/metropolitan-district-council/leeds,Leeds City Council,31/10/2022,Communities Housing and Environment,Customer Access,Supplies and Services,Bought In Professional Services,277,05/10/2022,2210-000407,0.00,25.50,R,Agnieszka J Collier,No
Http://opendatacommunities.org/id/metropolitan-district-council/leeds,Leeds City Council,31/10/2022,Communities Housing and Environment,Customer Access,Supplies and Services,Bought In Professional Services,277,05/10/2022,2210-000408,0.00,12.30,R,Agnieszka J Collier,No
Http://opendatacommunities.org/id/metropolitan-district-council/leeds,Leeds City Council,31/10/2022,Communities Housing and Environment,Customer Access,Supplies and Services,Bought In Professional Services,277,05/10/2022,2210-000409,0.00,9.00,R,Agnieszka J Collier,No
Http://opendatacommunities.org/id/metropolitan-district-council/leeds,Leeds City Council,31/10/2022,Communities Housing and Environment,Customer Access,Supplies and Services,Bought In Professional Services,277,05/10/2022,2210-000410,0.00,9.00,R,Agnieszka J Collier,No
Http://opendatacommunities.org/id/metropolitan-district-council/leeds,Leeds City Council,31/10/2022,Communities Housing and Environment,Customer Access,Supplies and Services,Bought In Professional Services,277,05/10/2022,2210-000411,0.00,9.00,R,Agnieszka J Collier,No
Http://opendatacommunities.org/id/metropolitan-district-council/leeds,Leeds City Council,31/10/2022,Communities Housing and Environment,Customer Access,Supplies and Services,Bought In Professional Services,277,05/10/2022,2210-000412,0.00,18.00,R,Agnieszka J Collier,No
Http://opendatacommunities.org/id/metropolitan-district-council/leeds,Leeds City Council,31/10/2022,Communities Housing and Environment,Customer Access,Supplies and Services,Bought In Professional Services,277,12/10/2022,2210-000413,0.00,13.50,R,Agnieszka J Collier,No
Http://opendatacommunities.org/id/metropolitan-district-council/leeds,Leeds City Council,31/10/2022,Communities Housing and Environment,Customer Access,Supplies and Services,Bought In Professional Services,277,12/10/2022,2210-000414,0.00,13.50,R,Agnieszka J Collier,No
Http://opendatacommunities.org/id/metropolitan-district-council/leeds,Leeds City Council,31/10/2022,Communities Housing and Environment,Customer Access,Supplies and Services,Bought In Professional Services,277,12/10/2022,2210-000415,0.00,18.00,R,Agnieszka J Collier,No
Http://opendatacommunities.org/id/metropolitan-district-council/leeds,Leeds City Council,31/10/2022,Communities Housing and Environment,Customer Access,Supplies and Services,Bought In Professional Services,277,12/10/2022,2210-000416,0.00,9.00,R,Agnieszka J Collier,No
Http://opendatacommunities.org/id/metropolitan-district-council/leeds,Leeds City Council,31/10/2022,Communities Housing and Environment,Customer Access,Supplies and Services,Bought In Professional Services,277,12/10/2022,2210-000417,0.00,18.00,R,Agnieszka J Collier,No
Http://opendatacommunities.org/id/metropolitan-district-council/leeds,Leeds City Council,31/10/2022,Communities Housing and Environment,Customer Access,Supplies and Services,Bought In Professional Services,277,19/10/2022,2210-000418,0.00,9.00,R,Agnieszka J Collier,No
Http://opendatacommunities.org/id/metropolitan-district-council/leeds,Leeds City Council,31/10/2022,Communities Housing and Environment,Customer Access,Supplies and Services,Bought In Professional Services,277,19/10/2022,2210-000419,0.00,18.00,R,Agnieszka J Collier,No
Http://opendatacommunities.org/id/metropolitan-district-council/leeds,Leeds City Council,31/10/2022,Communities Housing and Environment,Customer Access,Supplies and Services,Bought In Professional Services,277,19/10/2022,2210-000420,0.00,12.00,R,Agnieszka J Collier,No
Http://opendatacommunities.org/id/metropolitan-district-council/leeds,Leeds City Council,31/10/2022,Communities Housing and Environment,Customer Access,Supplies and Services,Bought In Professional Services,277,19/10/2022,2210-000421,0.00,9.00,R,Agnieszka J Collier,No
Http://opendatacommunities.org/id/metropolitan-district-council/leeds,Leeds City Council,31/10/2022,Communities Housing and Environment,Customer Access,Supplies and Services,Bought In Professional Services,277,19/10/2022,2210-000422,0.00,9.00,R,Agnieszka J Collier,No
Http://opendatacommunities.org/id/metropolitan-district-council/leeds,Leeds City Council,31/10/2022,Communities Housing and Environment,Customer Access,Supplies and Services,Bought In Professional Services,277,19/10/2022,2210-000423,0.00,18.00,R,Agnieszka J Collier,No
Http://opendatacommunities.org/id/metropolitan-district-council/leeds,Leeds City Council,31/10/2022,Communities Housing and Environment,Customer Access,Supplies and Services,Bought In Professional Services,277,19/10/2022,2210-000424,0.00,9.00,R,Agnieszka J Collier,No
Http://opendatacommunities.org/id/metropolitan-district-council/leeds,Leeds City Council,31/10/2022,Communities Housing and Environment,Customer Access,Supplies and Services,Bought In Professional Services,277,26/10/2022,2210-000425,0.00,18.00,R,Agnieszka J Collier,No
Http://opendatacommunities.org/id/metropolitan-district-council/leeds,Leeds City Council,31/10/2022,Communities Housing and Environment,Customer Access,Supplies and Services,Bought In Professional Services,277,26/10/2022,2210-000426,0.00,10.50,R,Agnieszka J Collier,No
Http://opendatacommunities.org/id/metropolitan-district-council/leeds,Leeds City Council,31/10/2022,Communities Housing and Environment,Customer Access,Supplies and Services,Bought In Professional Services,277,26/10/2022,2210-000427,0.00,116.00,R,Agnieszka J Collier,No
Http://opendatacommunities.org/id/metropolitan-district-council/leeds,Leeds City Council,31/10/2022,Communities Housing and Environment,Customer Access,Supplies and Services,Bought In Professional Services,277,26/10/2022,2210-000428,0.00,18.00,R,Agnieszka J Collier,No
Http://opendatacommunities.org/id/metropolitan-district-council/leeds,Leeds City Council,31/10/2022,Communities Housing and Environment,Customer Access,Supplies and Services,Bought In Professional Services,277,26/10/2022,2210-000429,0.00,18.00,R,Agnieszka J Collier,No
Http://opendatacommunities.org/id/metropolitan-district-council/leeds,Leeds City Council,31/10/2022,Communities Housing and Environment,Customer Access,Supplies and Services,Bought In Professional Services,277,26/10/2022,2210-000430,0.00,9.00,R,Agnieszka J Collier,No
Http://opendatacommunities.org/id/metropolitan-district-council/leeds,Leeds City Council,31/10/2022,City Development,Recreation,Premises,Grounds Maintenance Work,111,26/10/2022,2210-000431,0.00,1730.00,R,Agrigem Ltd,No
Http://opendatacommunities.org/id/metropolitan-district-council/leeds,Leeds City Council,31/10/2022,City Development,Recreation,Premises,Grounds Maintenance Work,111,26/10/2022,2210-000432,0.00,706.46,R,Agrigem Ltd,No
Http://opendatacommunities.org/id/metropolitan-district-council/leeds,Leeds City Council,31/10/2022,City Development,Recreation,Premises,Grounds Maintenance Work,111,26/10/2022,2210-000433,0.00,304.00,R,Agrigem Ltd,No
Http://opendatacommunities.org/id/metropolitan-district-council/leeds,Leeds City Council,31/10/2022,Communities Housing and Environment,Parks and Countryside,Supplies and Services,Operational Materials,205,26/10/2022,2210-000434,0.00,1333.12,R,Agrovista UK Ltd,No
Http://opendatacommunities.org/id/metropolitan-district-council/leeds,Leeds City Council,31/10/2022,Communities Housing and Environment,Customer Access,Supplies and Services,Bought In Professional Services,277,05/10/2022,2210-000435,0.00,22.50,R,Ahamat Hassan,No
Http://opendatacommunities.org/id/metropolitan-district-council/leeds,Leeds City Council,31/10/2022,Communities Housing and Environment,Customer Access,Supplies and Services,Bought In Professional Services,277,05/10/2022,2210-000436,0.00,18.00,R,Ahmed Moustafa Moustafa Mousa,No
Http://opendatacommunities.org/id/metropolitan-district-council/leeds,Leeds City Council,31/10/2022,Communities Housing and Environment,Customer Access,Supplies and Services,Bought In Professional Services,277,19/10/2022,2210-000437,0.00,9.00,R,Ahmed Moustafa Moustafa Mousa,No
Http://opendatacommunities.org/id/metropolitan-district-council/leeds,Leeds City Council,31/10/2022,Communities Housing and Environment,Customer Access,Supplies and Services,Bought In Professional Services,277,26/10/2022,2210-000438,0.00,73.40,R,Ahmed T. Al-Hamdi,No
Http://opendatacommunities.org/id/metropolitan-district-council/leeds,Leeds City Council,31/10/2022,Children and Families,Social Care ,Appropriations,Leaving Care Allowances,634,31/08/2022,2210-000439,0.00,37.00,R,Ahs Store Ltd,Yes
Http://opendatacommunities.org/id/metropolitan-district-council/leeds,Leeds City Council as Accountable Body,31/10/2022,Social Services Pooled Budgets,Leeds Community Equip Store Pooled Budgt,Supplies and Services,Other Equipment,203,03/10/2022,2210-000440,0.00,325.00,R,AIDAPT BATHROOMS LTD,No
Http://opendatacommunities.org/id/metropolitan-district-council/leeds,Leeds City Council as Accountable Body,31/10/2022,Social Services Pooled Budgets,Leeds Community Equip Store Pooled Budgt,Supplies and Services,Other Equipment,203,07/10/2022,2210-000441,0.00,260.00,R,AIDAPT BATHROOMS LTD,No
Http://opendatacommunities.org/id/metropolitan-district-council/leeds,Leeds City Council as Accountable Body,31/10/2022,Social Services Pooled Budgets,Leeds Community Equip Store Pooled Budgt,Supplies and Services,Other Equipment,203,07/10/2022,2210-000442,0.00,2031.50,R,AIDAPT BATHROOMS LTD,No
Http://opendatacommunities.org/id/metropolitan-district-council/leeds,Leeds City Council as Accountable Body,31/10/2022,Social Services Pooled Budgets,Leeds Community Equip Store Pooled Budgt,Supplies and Services,Other Equipment,203,07/10/2022,2210-000443,0.00,142.50,R,AIDAPT BATHROOMS LTD,No
Http://opendatacommunities.org/id/metropolitan-district-council/leeds,Leeds City Council as Accountable Body,31/10/2022,Social Services Pooled Budgets,Leeds Community Equip Store Pooled Budgt,Supplies and Services,Other Equipment,203,13/10/2022,2210-000444,0.00,1800.00,R,AIDAPT BATHROOMS LTD,No
Http://opendatacommunities.org/id/metropolitan-district-council/leeds,Leeds City Council as Accountable Body,31/10/2022,Social Services Pooled Budgets,Leeds Community Equip Store Pooled Budgt,Supplies and Services,Other Equipment,203,13/10/2022,2210-000445,0.00,130.00,R,AIDAPT BATHROOMS LTD,No
Http://opendatacommunities.org/id/metropolitan-district-council/leeds,Leeds City Council as Accountable Body,31/10/2022,Social Services Pooled Budgets,Leeds Community Equip Store Pooled Budgt,Supplies and Services,Other Equipment,203,13/10/2022,2210-000446,0.00,1044.00,R,AIDAPT BATHROOMS LTD,No
Http://opendatacommunities.org/id/metropolitan-district-council/leeds,Leeds City Council as Accountable Body,31/10/2022,Social Services Pooled Budgets,Leeds Community Equip Store Pooled Budgt,Supplies and Services,Other Equipment,203,19/10/2022,2210-000447,0.00,862.75,R,AIDAPT BATHROOMS LTD,No
Http://opendatacommunities.org/id/metropolitan-district-council/leeds,Leeds City Council as Accountable Body,31/10/2022,Social Services Pooled Budgets,Leeds Community Equip Store Pooled Budgt,Supplies and Services,Other Equipment,203,20/10/2022,2210-000448,0.00,3600.00,R,AIDAPT BATHROOMS LTD,No
Http://opendatacommunities.org/id/metropolitan-district-council/leeds,Leeds City Council as Accountable Body,31/10/2022,Social Services Pooled Budgets,Leeds Community Equip Store Pooled Budgt,Supplies and Services,Other Equipment,203,20/10/2022,2210-000449,0.00,72.00,R,AIDAPT BATHROOMS LTD,No
Http://opendatacommunities.org/id/metropolitan-district-council/leeds,Leeds City Council as Accountable Body,31/10/2022,Social Services Pooled Budgets,Leeds Community Equip Store Pooled Budgt,Supplies and Services,Other Equipment,203,24/10/2022,2210-000450,0.00,690.00,R,AIDAPT BATHROOMS LTD,No
Http://opendatacommunities.org/id/metropolitan-district-council/leeds,Leeds City Council as Accountable Body,31/10/2022,Social Services Pooled Budgets,Leeds Community Equip Store Pooled Budgt,Supplies and Services,Other Equipment,203,26/10/2022,2210-000451,0.00,810.00,R,AIDAPT BATHROOMS LTD,No
Http://opendatacommunities.org/id/metropolitan-district-council/leeds,Leeds City Council,31/10/2022,Children and Families,Social Care,Agency Payments, Direct Work,549,04/10/2022,2210-000452,0.00,16.49,R,REDACTED PERSONAL DATA,No
Http://opendatacommunities.org/id/metropolitan-district-council/leeds,Leeds City Council,31/10/2022,City Development,Highways,Supplies and Services,Computer Software & Equipment,214,17/10/2022,2210-000453,0.00,9072.00,R,Aimsun Ltd,No
Http://opendatacommunities.org/id/metropolitan-district-council/leeds,Leeds City Council,31/10/2022,Resources,Commercial Services ,Supplies and Services,Operational Materials,205,21/09/2022,2210-000454,0.00,41.50,R,Air Force Pneumatics and,Yes
Http://opendatacommunities.org/id/metropolitan-district-council/leeds,Leeds City Council,31/10/2022,Children and Families,Social Care ,Agency Payments,Placement Support,550,15/09/2022,2210-000455,0.00,672.42,R,Airbnb * Hmn2w2f45r,Yes
Http://opendatacommunities.org/id/metropolitan-district-council/leeds,Leeds City Council,31/10/2022,Children and Families,Social Care ,Supplies and Services,Holidays-  Service Users,284,18/09/2022,2210-000456,0.00,105.25,R,Airbnb * Hmybfp2zyp,Yes
Http://opendatacommunities.org/id/metropolitan-district-council/leeds,Leeds City Council,31/10/2022,Children and Families,Social Care ,Transport,Public Transport Expenses,310,01/09/2022,2210-000457,0.00,660.72,R,Airbnb * Hmyr4few5x,Yes
Http://opendatacommunities.org/id/metropolitan-district-council/leeds,Leeds City Council,31/10/2022,Adults and Health,Public Health,Agency Payments,Public Health Commissioned Services,526,28/10/2022,2210-000458,0.00,2439.60,R,Aire Valley Surgery,No
Http://opendatacommunities.org/id/metropolitan-district-council/leeds,Leeds City Council,31/10/2022,Communities Housing and Environment,Parks and Countryside,Supplies and Services,Other Hired and Contracted Services,265,06/10/2022,2210-000459,0.00,829.00,R,Aire Valley Tree Services Ltd,No
Http://opendatacommunities.org/id/metropolitan-district-council/leeds,Leeds City Council,31/10/2022,Communities Housing and Environment,Parks and Countryside,Supplies and Services,Other Hired and Contracted Services,265,06/10/2022,2210-000460,0.00,250.00,R,Aire Valley Tree Services Ltd,No
Http://opendatacommunities.org/id/metropolitan-district-council/leeds,Leeds City Council,31/10/2022,Communities Housing and Environment,Parks and Countryside,Supplies and Services,Other Hired and Contracted Services,265,06/10/2022,2210-000461,0.00,225.00,R,Aire Valley Tree Services Ltd,No
Http://opendatacommunities.org/id/metropolitan-district-council/leeds,Leeds City Council,31/10/2022,Communities Housing and Environment,Parks and Countryside,Supplies and Services,Other Hired and Contracted Services,265,06/10/2022,2210-000462,0.00,1724.00,R,Aire Valley Tree Services Ltd,No
Http://opendatacommunities.org/id/metropolitan-district-council/leeds,Leeds City Council,31/10/2022,Strategic Landlord,Housing Management,Supplies and Services,Grant Related Expenditure,298,06/10/2022,2210-000463,0.00,525.00,R,Aire Valley Tree Services Ltd,No
Http://opendatacommunities.org/id/metropolitan-district-council/leeds,Leeds City Council,31/10/2022,Communities Housing and Environment,Parks and Countryside,Supplies and Services,Other Hired and Contracted Services,265,12/10/2022,2210-000464,0.00,1665.00,R,Aire Valley Tree Services Ltd,No
Http://opendatacommunities.org/id/metropolitan-district-council/leeds,Leeds City Council,31/10/2022,Communities Housing and Environment,Parks and Countryside,Supplies and Services,Other Hired and Contracted Services,265,12/10/2022,2210-000465,0.00,820.00,R,Aire Valley Tree Services Ltd,No
Http://opendatacommunities.org/id/metropolitan-district-council/leeds,Leeds City Council,31/10/2022,Communities Housing and Environment,Parks and Countryside,Supplies and Services,Other Hired and Contracted Services,265,14/10/2022,2210-000466,0.00,475.00,R,Aire Valley Tree Services Ltd,No
Http://opendatacommunities.org/id/metropolitan-district-council/leeds,Leeds City Council,31/10/2022,Communities Housing and Environment,Parks and Countryside,Supplies and Services,Other Hired and Contracted Services,265,21/10/2022,2210-000467,0.00,1638.00,R,Aire Valley Tree Services Ltd,No
Http://opendatacommunities.org/id/metropolitan-district-council/leeds,Leeds City Council,31/10/2022,Communities Housing and Environment,Parks and Countryside,Supplies and Services,Other Hired and Contracted Services,265,24/10/2022,2210-000468,0.00,495.00,R,Aire Valley Tree Services Ltd,No
Http://opendatacommunities.org/id/metropolitan-district-council/leeds,Leeds City Council,31/10/2022,Adults and Health,Services For Older People - 65 and Over,Agency Payments,Residential Care Dementia,571,12/10/2022,2210-000469,0.00,45550.08,R,Aire View Residential Home,No
Http://opendatacommunities.org/id/metropolitan-district-council/leeds,Leeds City Council,31/10/2022,Adults and Health,Services For Older People - 65 and Over,Agency Payments,Residential,580,12/10/2022,2210-000470,0.00,8469.52,R,Aire View Residential Home,No
Http://opendatacommunities.org/id/metropolitan-district-council/leeds,Leeds City Council,31/10/2022,Adults and Health,Public Health,Agency Payments,Public Health Commissioned Services,526,28/10/2022,2210-000471,0.00,1958.12,R,Aireborough Family Practice,No
Http://opendatacommunities.org/id/metropolitan-district-council/leeds,Leeds City Council,31/10/2022,City Development,Recreation ,Supplies and Services,Hospitality,255,15/09/2022,2210-000472,0.00,2.25,R,Aireborough Leisure Centr,Yes
Http://opendatacommunities.org/id/metropolitan-district-council/leeds,Leeds City Council,31/10/2022,City Development,Recreation ,Supplies and Services,Hospitality,255,15/09/2022,2210-000473,0.00,5.00,R,Aireborough Leisure Centr,Yes
Http://opendatacommunities.org/id/metropolitan-district-council/leeds,Leeds City Council,31/10/2022,City Development,Recreation ,Supplies and Services,Subsistence,256,15/09/2022,2210-000474,0.00,4.08,R,Aireborough Leisure Centr,Yes
Http://opendatacommunities.org/id/metropolitan-district-council/leeds,Leeds City Council,31/10/2022,Strategic Accounts,Miscellaneous,Supplies and Services,Non-Recurring Grants,227,17/10/2022,2210-000475,0.00,350.00,R,Aireborough Neighbourhood Development,No
Http://opendatacommunities.org/id/metropolitan-district-council/leeds,Leeds City Council,31/10/2022,Children and Families,Social Care,Agency Payments,Services Rendered By Voluntary Sector,505,26/10/2022,2210-000476,0.00,30000.00,R,Aireborough Supported Activities Scheme,No
Http://opendatacommunities.org/id/metropolitan-district-council/leeds,Leeds City Council,31/10/2022,Children and Families,Social Care,Agency Payments,Services Rendered By Voluntary Sector,505,26/10/2022,2210-000477,0.00,25631.00,R,Aireborough Supported Activities Scheme,No
Http://opendatacommunities.org/id/metropolitan-district-council/leeds,Leeds City Council,31/10/2022,Resources,Commercial Services,Supplies and Services,Operational Furniture and Equipment,203,13/10/2022,2210-000478,0.00,4380.00,R,AIREDALE CATERING EQUIPMENT LTD,No
Http://opendatacommunities.org/id/metropolitan-district-council/leeds,Leeds City Council,31/10/2022,Adults and Health,Services For Older People - 65 and Over,Agency Payments,Residential Care Dementia,571,12/10/2022,2210-000479,0.00,25004.34,R,Airedale Residential Home,No
Http://opendatacommunities.org/id/metropolitan-district-council/leeds,Leeds City Council,31/10/2022,Adults and Health,Services For Older People - 65 and Over,Agency Payments,Residential,580,12/10/2022,2210-000480,0.00,22064.68,R,Airedale Residential Home,No
Http://opendatacommunities.org/id/metropolitan-district-council/leeds,Leeds City Council,31/10/2022,Adults and Health,Services For Older People Under 65 P/Dis,Agency Payments,Residential,580,12/10/2022,2210-000481,0.00,-7631.49,R,Airedale Residential Home,No
Http://opendatacommunities.org/id/metropolitan-district-council/leeds,Leeds City Council,31/10/2022,Children and Families,Social Care ,Agency Payments,Section 17,551,03/09/2022,2210-000482,0.00,7.85,R,Airpay 43205330-Amber Car,Yes
Http://opendatacommunities.org/id/metropolitan-district-council/leeds,Leeds City Council,31/10/2022,Children and Families,Social Care ,Agency Payments,Placement Support,550,07/09/2022,2210-000483,0.00,38.95,R,Airpay 43243595-Amber Car,Yes
Http://opendatacommunities.org/id/metropolitan-district-council/leeds,Leeds City Council,31/10/2022,Children and Families,Social Care ,Agency Payments,Placement Support,550,08/09/2022,2210-000484,0.00,40.05,R,Airpay 43256259-Amber Car,Yes
Http://opendatacommunities.org/id/metropolitan-district-council/leeds,Leeds City Council,31/10/2022,Children and Families,Social Care ,Appropriations,Leaving Care Allowances,634,29/09/2022,2210-000485,0.00,14.35,R,Airpay 43549820-Amber Car,Yes
Http://opendatacommunities.org/id/metropolitan-district-council/leeds,Leeds City Council,31/10/2022,Children and Families,Social Care ,Appropriations,Leaving Care Allowances,634,29/09/2022,2210-000486,0.00,12.15,R,Airpay 43551757-Amber Car,Yes
Http://opendatacommunities.org/id/metropolitan-district-council/leeds,Leeds City Council,31/10/2022,Adults and Health,Social Services Support Services,Internal Recharges,Legal Disbursements,411,10/10/2022,2210-000487,0.00,850.00,R,Aisling Campbell,No
Http://opendatacommunities.org/id/metropolitan-district-council/leeds,Leeds City Council,31/10/2022,Adults and Health,Services For Adults Under 65 Mental/Dis,Internal Recharges,Legal Disbursements,411,26/10/2022,2210-000488,0.00,325.00,R,Aisling Campbell,No
Http://opendatacommunities.org/id/metropolitan-district-council/leeds,Leeds City Council,31/10/2022,Adults and Health,Social Services Support Services,Internal Recharges,Legal Disbursements,411,28/10/2022,2210-000489,0.00,2850.00,R,Aisling Campbell,No
Http://opendatacommunities.org/id/metropolitan-district-council/leeds,Leeds City Council,31/10/2022,Adults and Health,Services For Adults Under 65 Mental/Dis,Agency Payments,Fees - Level 4,520,14/10/2022,2210-000490,0.00,175.00,R,AIT Mitra Limited,No
Http://opendatacommunities.org/id/metropolitan-district-council/leeds,Leeds City Council,31/10/2022,Adults and Health,Services For Adults Under 65 Mental/Dis,Agency Payments,Fees - Level 4,520,14/10/2022,2210-000491,0.00,175.00,R,AIT Mitra Limited,No
Http://opendatacommunities.org/id/metropolitan-district-council/leeds,Leeds City Council,31/10/2022,Adults and Health,Services For Adults Under 65 Mental/Dis,Agency Payments,Fees - Level 4,520,14/10/2022,2210-000492,0.00,175.00,R,AIT Mitra Limited,No
Http://opendatacommunities.org/id/metropolitan-district-council/leeds,Leeds City Council,31/10/2022,Adults and Health,Services For Adults Under 65 Mental/Dis,Agency Payments,Fees - Level 4,520,27/10/2022,2210-000493,0.00,175.00,R,AIT Mitra Limited,No
Http://opendatacommunities.org/id/metropolitan-district-council/leeds,Leeds City Council as Accountable Body,31/10/2022,Social Services Pooled Budgets,Jcs For People With Learning Disabilitie,Agency Payments,Residential,580,12/10/2022,2210-000494,0.00,7082.20,R,AITCH care homes,No
Http://opendatacommunities.org/id/metropolitan-district-council/leeds,Leeds City Council,31/10/2022,Communities Housing and Environment,Parks and Countryside ,Supplies and Services,Operational Materials,205,06/09/2022,2210-000495,0.00,99.17,R,Aitkens Sportsturf Limite,Yes
Http://opendatacommunities.org/id/metropolitan-district-council/leeds,Leeds City Council,31/10/2022,Resources,Leeds Building Services,Premises,Cleaning Maintenance & Toiletries,127,04/10/2022,2210-000496,0.00,1013.14,R,AJM FIXINGS & POWER TOOLS LTD,No
Http://opendatacommunities.org/id/metropolitan-district-council/leeds,Leeds City Council,31/10/2022,Resources,Leeds Building Services,Premises,Cleaning Maintenance & Toiletries,127,04/10/2022,2210-000497,0.00,261.97,R,AJM FIXINGS & POWER TOOLS LTD,No
Http://opendatacommunities.org/id/metropolitan-district-council/leeds,Leeds City Council,31/10/2022,Resources,Leeds Building Services,Premises,Cleaning Maintenance & Toiletries,127,04/10/2022,2210-000498,0.00,29.25,R,AJM FIXINGS & POWER TOOLS LTD,No
Http://opendatacommunities.org/id/metropolitan-district-council/leeds,Leeds City Council,31/10/2022,Resources,Leeds Building Services,Premises,Cleaning Maintenance & Toiletries,127,04/10/2022,2210-000499,0.00,127.60,R,AJM FIXINGS & POWER TOOLS LTD,No
Http://opendatacommunities.org/id/metropolitan-district-council/leeds,Leeds City Council,31/10/2022,Resources,Leeds Building Services,Premises,Cleaning Maintenance & Toiletries,127,04/10/2022,2210-000500,0.00,259.95,R,AJM FIXINGS & POWER TOOLS LTD,No
Http://opendatacommunities.org/id/metropolitan-district-council/leeds,Leeds City Council,31/10/2022,Resources,Leeds Building Services,Supplies and Services,Operational Furniture and Equipment,203,04/10/2022,2210-000501,0.00,1098.48,R,AJM FIXINGS & POWER TOOLS LTD,No
Http://opendatacommunities.org/id/metropolitan-district-council/leeds,Leeds City Council,31/10/2022,Resources,Leeds Building Services,Supplies and Services,Operational Furniture and Equipment,203,04/10/2022,2210-000502,0.00,166.77,R,AJM FIXINGS & POWER TOOLS LTD,No
Http://opendatacommunities.org/id/metropolitan-district-council/leeds,Leeds City Council,31/10/2022,Resources,Leeds Building Services,Supplies and Services,Operational Furniture and Equipment,203,04/10/2022,2210-000503,0.00,162.79,R,AJM FIXINGS & POWER TOOLS LTD,No
Http://opendatacommunities.org/id/metropolitan-district-council/leeds,Leeds City Council,31/10/2022,Resources,Leeds Building Services,Supplies and Services,Operational Furniture and Equipment,203,04/10/2022,2210-000504,0.00,436.65,R,AJM FIXINGS & POWER TOOLS LTD,No
Http://opendatacommunities.org/id/metropolitan-district-council/leeds,Leeds City Council,31/10/2022,Resources,Leeds Building Services,Supplies and Services,Operational Furniture and Equipment,203,04/10/2022,2210-000505,0.00,157.94,R,AJM FIXINGS & POWER TOOLS LTD,No
Http://opendatacommunities.org/id/metropolitan-district-council/leeds,Leeds City Council,31/10/2022,Resources,Leeds Building Services,Supplies and Services,Operational Furniture and Equipment,203,04/10/2022,2210-000506,0.00,122.46,R,AJM FIXINGS & POWER TOOLS LTD,No
Http://opendatacommunities.org/id/metropolitan-district-council/leeds,Leeds City Council,31/10/2022,Resources,Leeds Building Services,Supplies and Services,Operational Furniture and Equipment,203,04/10/2022,2210-000507,0.00,338.28,R,AJM FIXINGS & POWER TOOLS LTD,No
Http://opendatacommunities.org/id/metropolitan-district-council/leeds,Leeds City Council,31/10/2022,Resources,Leeds Building Services,Supplies and Services,Operational Furniture and Equipment,203,04/10/2022,2210-000508,0.00,209.00,R,AJM FIXINGS & POWER TOOLS LTD,No
Http://opendatacommunities.org/id/metropolitan-district-council/leeds,Leeds City Council,31/10/2022,Resources,Leeds Building Services,Supplies and Services,Operational Furniture and Equipment,203,04/10/2022,2210-000509,0.00,148.99,R,AJM FIXINGS & POWER TOOLS LTD,No
Http://opendatacommunities.org/id/metropolitan-district-council/leeds,Leeds City Council,31/10/2022,Resources,Leeds Building Services,Supplies and Services,Operational Furniture and Equipment,203,04/10/2022,2210-000510,0.00,165.40,R,AJM FIXINGS & POWER TOOLS LTD,No
Http://opendatacommunities.org/id/metropolitan-district-council/leeds,Leeds City Council,31/10/2022,Resources,Leeds Building Services,Supplies and Services,Operational Furniture and Equipment,203,04/10/2022,2210-000511,0.00,30.99,R,AJM FIXINGS & POWER TOOLS LTD,No
Http://opendatacommunities.org/id/metropolitan-district-council/leeds,Leeds City Council,31/10/2022,Resources,Leeds Building Services,Supplies and Services,Operational Furniture and Equipment,203,04/10/2022,2210-000512,0.00,446.00,R,AJM FIXINGS & POWER TOOLS LTD,No
Http://opendatacommunities.org/id/metropolitan-district-council/leeds,Leeds City Council,31/10/2022,Resources,Leeds Building Services,Supplies and Services,Operational Furniture and Equipment,203,04/10/2022,2210-000513,0.00,614.82,R,AJM FIXINGS & POWER TOOLS LTD,No
Http://opendatacommunities.org/id/metropolitan-district-council/leeds,Leeds City Council,31/10/2022,Resources,Leeds Building Services,Supplies and Services,Operational Furniture and Equipment,203,04/10/2022,2210-000514,0.00,359.16,R,AJM FIXINGS & POWER TOOLS LTD,No
Http://opendatacommunities.org/id/metropolitan-district-council/leeds,Leeds City Council,31/10/2022,Resources,Leeds Building Services,Supplies and Services,Operational Furniture and Equipment,203,04/10/2022,2210-000515,0.00,76.00,R,AJM FIXINGS & POWER TOOLS LTD,No
Http://opendatacommunities.org/id/metropolitan-district-council/leeds,Leeds City Council,31/10/2022,Resources,Leeds Building Services,Supplies and Services,Operational Materials,205,04/10/2022,2210-000516,0.00,323.70,R,AJM FIXINGS & POWER TOOLS LTD,No
Http://opendatacommunities.org/id/metropolitan-district-council/leeds,Leeds City Council,31/10/2022,Resources,Leeds Building Services,Supplies and Services,STORES - CENTRAL and OTHER DEPOTS,5,05/10/2022,2210-000517,0.00,441.00,R,AJM FIXINGS & POWER TOOLS LTD,No
Http://opendatacommunities.org/id/metropolitan-district-council/leeds,Leeds City Council,31/10/2022,Resources,Leeds Building Services,Premises,Cleaning Maintenance & Toiletries,127,07/10/2022,2210-000518,0.00,20.90,R,AJM FIXINGS & POWER TOOLS LTD,No
Http://opendatacommunities.org/id/metropolitan-district-council/leeds,Leeds City Council,31/10/2022,Resources,Leeds Building Services,Premises,Cleaning Maintenance & Toiletries,127,07/10/2022,2210-000519,0.00,146.25,R,AJM FIXINGS & POWER TOOLS LTD,No
Http://opendatacommunities.org/id/metropolitan-district-council/leeds,Leeds City Council,31/10/2022,Resources,Leeds Building Services,Premises,Cleaning Maintenance & Toiletries,127,07/10/2022,2210-000520,0.00,178.60,R,AJM FIXINGS & POWER TOOLS LTD,No
Http://opendatacommunities.org/id/metropolitan-district-council/leeds,Leeds City Council,31/10/2022,Resources,Leeds Building Services,Supplies and Services,Operational Furniture and Equipment,203,07/10/2022,2210-000521,0.00,197.99,R,AJM FIXINGS & POWER TOOLS LTD,No
Http://opendatacommunities.org/id/metropolitan-district-council/leeds,Leeds City Council,31/10/2022,Resources,Leeds Building Services,Supplies and Services,Operational Furniture and Equipment,203,07/10/2022,2210-000522,0.00,97.11,R,AJM FIXINGS & POWER TOOLS LTD,No
Http://opendatacommunities.org/id/metropolitan-district-council/leeds,Leeds City Council,31/10/2022,Resources,Leeds Building Services,Supplies and Services,Operational Furniture and Equipment,203,07/10/2022,2210-000523,0.00,436.65,R,AJM FIXINGS & POWER TOOLS LTD,No
Http://opendatacommunities.org/id/metropolitan-district-council/leeds,Leeds City Council,31/10/2022,Resources,Leeds Building Services,Supplies and Services,Operational Furniture and Equipment,203,07/10/2022,2210-000524,0.00,589.00,R,AJM FIXINGS & POWER TOOLS LTD,No
Http://opendatacommunities.org/id/metropolitan-district-council/leeds,Leeds City Council,31/10/2022,Resources,Leeds Building Services,Supplies and Services,Operational Furniture and Equipment,203,07/10/2022,2210-000525,0.00,324.95,R,AJM FIXINGS & POWER TOOLS LTD,No
Http://opendatacommunities.org/id/metropolitan-district-council/leeds,Leeds City Council,31/10/2022,Resources,Leeds Building Services,Supplies and Services,Operational Furniture and Equipment,203,07/10/2022,2210-000526,0.00,525.00,R,AJM FIXINGS & POWER TOOLS LTD,No
Http://opendatacommunities.org/id/metropolitan-district-council/leeds,Leeds City Council,31/10/2022,Resources,Leeds Building Services,Supplies and Services,Operational Furniture and Equipment,203,07/10/2022,2210-000527,0.00,58.00,R,AJM FIXINGS & POWER TOOLS LTD,No
Http://opendatacommunities.org/id/metropolitan-district-council/leeds,Leeds City Council,31/10/2022,Resources,Leeds Building Services,Supplies and Services,Operational Furniture and Equipment,203,07/10/2022,2210-000528,0.00,10.99,R,AJM FIXINGS & POWER TOOLS LTD,No
Http://opendatacommunities.org/id/metropolitan-district-council/leeds,Leeds City Council,31/10/2022,Resources,Leeds Building Services,Premises,Cleaning Maintenance & Toiletries,127,11/10/2022,2210-000529,0.00,126.30,R,AJM FIXINGS & POWER TOOLS LTD,No
Http://opendatacommunities.org/id/metropolitan-district-council/leeds,Leeds City Council,31/10/2022,Resources,Leeds Building Services,Supplies and Services,Operational Furniture and Equipment,203,11/10/2022,2210-000530,0.00,396.74,R,AJM FIXINGS & POWER TOOLS LTD,No
Http://opendatacommunities.org/id/metropolitan-district-council/leeds,Leeds City Council,31/10/2022,Resources,Leeds Building Services,Supplies and Services,Operational Furniture and Equipment,203,11/10/2022,2210-000531,0.00,160.26,R,AJM FIXINGS & POWER TOOLS LTD,No
Http://opendatacommunities.org/id/metropolitan-district-council/leeds,Leeds City Council,31/10/2022,Resources,Leeds Building Services,Supplies and Services,Operational Furniture and Equipment,203,11/10/2022,2210-000532,0.00,19.09,R,AJM FIXINGS & POWER TOOLS LTD,No
Http://opendatacommunities.org/id/metropolitan-district-council/leeds,Leeds City Council,31/10/2022,Resources,Leeds Building Services,Premises,Cleaning Maintenance & Toiletries,127,13/10/2022,2210-000533,0.00,199.00,R,AJM FIXINGS & POWER TOOLS LTD,No
Http://opendatacommunities.org/id/metropolitan-district-council/leeds,Leeds City Council,31/10/2022,Resources,Leeds Building Services,Supplies and Services,Operational Furniture and Equipment,203,13/10/2022,2210-000534,0.00,259.00,R,AJM FIXINGS & POWER TOOLS LTD,No
Http://opendatacommunities.org/id/metropolitan-district-council/leeds,Leeds City Council,31/10/2022,Resources,Leeds Building Services,Supplies and Services,Operational Furniture and Equipment,203,13/10/2022,2210-000535,0.00,359.16,R,AJM FIXINGS & POWER TOOLS LTD,No
Http://opendatacommunities.org/id/metropolitan-district-council/leeds,Leeds City Council,31/10/2022,Resources,Leeds Building Services,Premises,Cleaning Maintenance & Toiletries,127,17/10/2022,2210-000536,0.00,179.50,R,AJM FIXINGS & POWER TOOLS LTD,No
Http://opendatacommunities.org/id/metropolitan-district-council/leeds,Leeds City Council,31/10/2022,Resources,Leeds Building Services,Supplies and Services,Operational Furniture and Equipment,203,17/10/2022,2210-000537,0.00,1710.57,R,AJM FIXINGS & POWER TOOLS LTD,No
Http://opendatacommunities.org/id/metropolitan-district-council/leeds,Leeds City Council,31/10/2022,Resources,Leeds Building Services,Supplies and Services,Operational Furniture and Equipment,203,17/10/2022,2210-000538,0.00,2178.50,R,AJM FIXINGS & POWER TOOLS LTD,No
Http://opendatacommunities.org/id/metropolitan-district-council/leeds,Leeds City Council,31/10/2022,Resources,Leeds Building Services,Supplies and Services,Operational Furniture and Equipment,203,17/10/2022,2210-000539,0.00,2500.00,R,AJM FIXINGS & POWER TOOLS LTD,No
Http://opendatacommunities.org/id/metropolitan-district-council/leeds,Leeds City Council,31/10/2022,Resources,Leeds Building Services,Supplies and Services,STORES - CENTRAL and OTHER DEPOTS,5,26/10/2022,2210-000540,0.00,-882.40,R,AJM FIXINGS & POWER TOOLS LTD,No
Http://opendatacommunities.org/id/metropolitan-district-council/leeds,Leeds City Council,31/10/2022,Resources,Leeds Building Services,Premises,Cleaning Maintenance & Toiletries,127,26/10/2022,2210-000541,0.00,487.50,R,AJM FIXINGS & POWER TOOLS LTD,No
Http://opendatacommunities.org/id/metropolitan-district-council/leeds,Leeds City Council,31/10/2022,Resources,Leeds Building Services,Premises,Cleaning Maintenance & Toiletries,127,26/10/2022,2210-000542,0.00,1027.47,R,AJM FIXINGS & POWER TOOLS LTD,No
Http://opendatacommunities.org/id/metropolitan-district-council/leeds,Leeds City Council,31/10/2022,Resources,Leeds Building Services,Premises,Cleaning Maintenance & Toiletries,127,26/10/2022,2210-000543,0.00,126.20,R,AJM FIXINGS & POWER TOOLS LTD,No
Http://opendatacommunities.org/id/metropolitan-district-council/leeds,Leeds City Council,31/10/2022,Resources,Leeds Building Services,Premises,Cleaning Maintenance & Toiletries,127,26/10/2022,2210-000544,0.00,119.95,R,AJM FIXINGS & POWER TOOLS LTD,No
Http://opendatacommunities.org/id/metropolitan-district-council/leeds,Leeds City Council,31/10/2022,Resources,Leeds Building Services,Premises,Cleaning Maintenance & Toiletries,127,26/10/2022,2210-000545,0.00,387.45,R,AJM FIXINGS & POWER TOOLS LTD,No
Http://opendatacommunities.org/id/metropolitan-district-council/leeds,Leeds City Council,31/10/2022,Resources,Leeds Building Services,Premises,Cleaning Maintenance & Toiletries,127,26/10/2022,2210-000546,0.00,30.05,R,AJM FIXINGS & POWER TOOLS LTD,No
Http://opendatacommunities.org/id/metropolitan-district-council/leeds,Leeds City Council,31/10/2022,Resources,Leeds Building Services,Premises,Cleaning Maintenance & Toiletries,127,26/10/2022,2210-000547,0.00,245.25,R,AJM FIXINGS & POWER TOOLS LTD,No
Http://opendatacommunities.org/id/metropolitan-district-council/leeds,Leeds City Council,31/10/2022,Resources,Leeds Building Services,Premises,Cleaning Maintenance & Toiletries,127,26/10/2022,2210-000548,0.00,223.77,R,AJM FIXINGS & POWER TOOLS LTD,No
Http://opendatacommunities.org/id/metropolitan-district-council/leeds,Leeds City Council,31/10/2022,Resources,Leeds Building Services,Supplies and Services,Operational Furniture and Equipment,203,26/10/2022,2210-000549,0.00,1450.57,R,AJM FIXINGS & POWER TOOLS LTD,No
Http://opendatacommunities.org/id/metropolitan-district-council/leeds,Leeds City Council,31/10/2022,Resources,Leeds Building Services,Supplies and Services,Operational Furniture and Equipment,203,26/10/2022,2210-000550,0.00,55.00,R,AJM FIXINGS & POWER TOOLS LTD,No
Http://opendatacommunities.org/id/metropolitan-district-council/leeds,Leeds City Council,31/10/2022,Resources,Leeds Building Services,Supplies and Services,Operational Furniture and Equipment,203,26/10/2022,2210-000551,0.00,164.99,R,AJM FIXINGS & POWER TOOLS LTD,No
Http://opendatacommunities.org/id/metropolitan-district-council/leeds,Leeds City Council,31/10/2022,Resources,Leeds Building Services,Supplies and Services,Operational Furniture and Equipment,203,26/10/2022,2210-000552,0.00,95.00,R,AJM FIXINGS & POWER TOOLS LTD,No
Http://opendatacommunities.org/id/metropolitan-district-council/leeds,Leeds City Council,31/10/2022,Resources,Leeds Building Services,Supplies and Services,Operational Furniture and Equipment,203,26/10/2022,2210-000553,0.00,259.00,R,AJM FIXINGS & POWER TOOLS LTD,No
Http://opendatacommunities.org/id/metropolitan-district-council/leeds,Leeds City Council,31/10/2022,Resources,Leeds Building Services,Supplies and Services,Operational Furniture and Equipment,203,26/10/2022,2210-000554,0.00,335.93,R,AJM FIXINGS & POWER TOOLS LTD,No
Http://opendatacommunities.org/id/metropolitan-district-council/leeds,Leeds City Council,31/10/2022,Resources,Leeds Building Services,Supplies and Services,Operational Furniture and Equipment,203,26/10/2022,2210-000555,0.00,324.95,R,AJM FIXINGS & POWER TOOLS LTD,No
Http://opendatacommunities.org/id/metropolitan-district-council/leeds,Leeds City Council,31/10/2022,Resources,Leeds Building Services,Supplies and Services,Operational Furniture and Equipment,203,26/10/2022,2210-000556,0.00,21.25,R,AJM FIXINGS & POWER TOOLS LTD,No
Http://opendatacommunities.org/id/metropolitan-district-council/leeds,Leeds City Council,31/10/2022,Resources,Leeds Building Services,Supplies and Services,Operational Furniture and Equipment,203,26/10/2022,2210-000557,0.00,761.60,R,AJM FIXINGS & POWER TOOLS LTD,No
Http://opendatacommunities.org/id/metropolitan-district-council/leeds,Leeds City Council,31/10/2022,Resources,Leeds Building Services,Supplies and Services,Operational Furniture and Equipment,203,26/10/2022,2210-000558,0.00,303.33,R,AJM FIXINGS & POWER TOOLS LTD,No
Http://opendatacommunities.org/id/metropolitan-district-council/leeds,Leeds City Council,31/10/2022,Resources,Leeds Building Services,Supplies and Services,Operational Furniture and Equipment,203,26/10/2022,2210-000559,0.00,6.30,R,AJM FIXINGS & POWER TOOLS LTD,No
Http://opendatacommunities.org/id/metropolitan-district-council/leeds,Leeds City Council,31/10/2022,Resources,Leeds Building Services,Supplies and Services,Operational Furniture and Equipment,203,26/10/2022,2210-000560,0.00,303.33,R,AJM FIXINGS & POWER TOOLS LTD,No
Http://opendatacommunities.org/id/metropolitan-district-council/leeds,Leeds City Council,31/10/2022,Resources,Leeds Building Services,Premises,Cleaning Maintenance & Toiletries,127,28/10/2022,2210-000561,0.00,135.00,R,AJM FIXINGS & POWER TOOLS LTD,No
Http://opendatacommunities.org/id/metropolitan-district-council/leeds,Leeds City Council,31/10/2022,Resources,Leeds Building Services,Premises,Cleaning Maintenance & Toiletries,127,28/10/2022,2210-000562,0.00,668.42,R,AJM FIXINGS & POWER TOOLS LTD,No
Http://opendatacommunities.org/id/metropolitan-district-council/leeds,Leeds City Council,31/10/2022,Resources,Leeds Building Services,Premises,Cleaning Maintenance & Toiletries,127,28/10/2022,2210-000563,0.00,457.59,R,AJM FIXINGS & POWER TOOLS LTD,No
Http://opendatacommunities.org/id/metropolitan-district-council/leeds,Leeds City Council,31/10/2022,Resources,Leeds Building Services,Supplies and Services,Operational Furniture and Equipment,203,28/10/2022,2210-000564,0.00,146.26,R,AJM FIXINGS & POWER TOOLS LTD,No
Http://opendatacommunities.org/id/metropolitan-district-council/leeds,Leeds City Council,31/10/2022,Resources,Leeds Building Services,Supplies and Services,Operational Furniture and Equipment,203,28/10/2022,2210-000565,0.00,784.00,R,AJM FIXINGS & POWER TOOLS LTD,No
Http://opendatacommunities.org/id/metropolitan-district-council/leeds,Leeds City Council,31/10/2022,Resources,Leeds Building Services,Supplies and Services,Operational Furniture and Equipment,203,28/10/2022,2210-000566,0.00,665.82,R,AJM FIXINGS & POWER TOOLS LTD,No
Http://opendatacommunities.org/id/metropolitan-district-council/leeds,Leeds City Council,31/10/2022,Resources,Leeds Building Services,Supplies and Services,Operational Furniture and Equipment,203,28/10/2022,2210-000567,0.00,29.99,R,AJM FIXINGS & POWER TOOLS LTD,No
Http://opendatacommunities.org/id/metropolitan-district-council/leeds,Leeds City Council,31/10/2022,Resources,Leeds Building Services,Supplies and Services,Operational Furniture and Equipment,203,28/10/2022,2210-000568,0.00,62.99,R,AJM FIXINGS & POWER TOOLS LTD,No
Http://opendatacommunities.org/id/metropolitan-district-council/leeds,Leeds City Council,31/10/2022,Resources,Leeds Building Services,Supplies and Services,Operational Furniture and Equipment,203,28/10/2022,2210-000569,0.00,99.83,R,AJM FIXINGS & POWER TOOLS LTD,No
Http://opendatacommunities.org/id/metropolitan-district-council/leeds,Leeds City Council,31/10/2022,Resources,Leeds Building Services,Supplies and Services,Operational Furniture and Equipment,203,28/10/2022,2210-000570,0.00,179.19,R,AJM FIXINGS & POWER TOOLS LTD,No
Http://opendatacommunities.org/id/metropolitan-district-council/leeds,Leeds City Council,31/10/2022,Resources,Leeds Building Services,Supplies and Services,Operational Furniture and Equipment,203,28/10/2022,2210-000571,0.00,919.00,R,AJM FIXINGS & POWER TOOLS LTD,No
Http://opendatacommunities.org/id/metropolitan-district-council/leeds,Leeds City Council,31/10/2022,Resources,Leeds Building Services,Supplies and Services,Operational Furniture and Equipment,203,28/10/2022,2210-000572,0.00,359.16,R,AJM FIXINGS & POWER TOOLS LTD,No
Http://opendatacommunities.org/id/metropolitan-district-council/leeds,Leeds City Council,31/10/2022,Resources,Leeds Building Services,Supplies and Services,Operational Furniture and Equipment,203,28/10/2022,2210-000573,0.00,91.60,R,AJM FIXINGS & POWER TOOLS LTD,No
Http://opendatacommunities.org/id/metropolitan-district-council/leeds,Leeds City Council,31/10/2022,Resources,Leeds Building Services,Supplies and Services,Operational Furniture and Equipment,203,28/10/2022,2210-000574,0.00,324.95,R,AJM FIXINGS & POWER TOOLS LTD,No
Http://opendatacommunities.org/id/metropolitan-district-council/leeds,Leeds City Council,31/10/2022,Communities Housing and Environment,Communities,Supplies and Services,Other Hired and Contracted Services,265,07/10/2022,2210-000575,0.00,2405.00,R,Akkawi Leeds,No
Http://opendatacommunities.org/id/metropolitan-district-council/leeds,Leeds City Council,31/10/2022,Communities Housing and Environment,Strategic Housing Partnership & Support,Capital,CONSTRUCTION,3,07/10/2022,2210-000576,0.00,4000.00,C,AKR Construction Ltd,No
Http://opendatacommunities.org/id/metropolitan-district-council/leeds,Leeds City Council,31/10/2022,Communities Housing and Environment,Strategic Housing Partnership & Support,Capital,CONSTRUCTION,3,14/10/2022,2210-000577,0.00,4500.00,C,AKR Construction Ltd,No
Http://opendatacommunities.org/id/metropolitan-district-council/leeds,Leeds City Council,31/10/2022,Communities Housing and Environment,Strategic Housing Partnership & Support,Capital,CONSTRUCTION,3,14/10/2022,2210-000578,0.00,10000.00,C,AKR Construction Ltd,No
Http://opendatacommunities.org/id/metropolitan-district-council/leeds,Leeds City Council,31/10/2022,Communities Housing and Environment,Strategic Housing Partnership & Support,Capital,CONSTRUCTION,3,21/10/2022,2210-000579,0.00,4000.00,C,AKR Construction Ltd,No
Http://opendatacommunities.org/id/metropolitan-district-council/leeds,Leeds City Council,31/10/2022,Children and Families,Social Care,Agency Payments,Allowances,546,06/10/2022,2210-000580,0.00,100.00,R,REDACTED PERSONAL DATA,No
Http://opendatacommunities.org/id/metropolitan-district-council/leeds,Leeds City Council,31/10/2022,Children and Families,Social Care ,Supplies and Services,Computer Software & Equipment,214,14/09/2022,2210-000581,0.00,33.12,R,Albelli Bonusprint,Yes
Http://opendatacommunities.org/id/metropolitan-district-council/leeds,Leeds City Council,31/10/2022,Communities Housing and Environment,Communities,Supplies and Services,Computer Software & Equipment,214,14/10/2022,2210-000582,0.00,1228.33,R,Alcium Software Ltd,No
Http://opendatacommunities.org/id/metropolitan-district-council/leeds,Leeds City Council,31/10/2022,Children and Families,Resources & Strategy ,Supplies and Services,Food & Drink,231,23/09/2022,2210-000583,0.00,3.65,R,Aldi,Yes
Http://opendatacommunities.org/id/metropolitan-district-council/leeds,Leeds City Council,31/10/2022,Children and Families,Social Care ,Appropriations,Leaving Care Allowances,634,26/09/2022,2210-000584,0.00,33.10,R,Aldi,Yes
Http://opendatacommunities.org/id/metropolitan-district-council/leeds,Leeds City Council,31/10/2022,Children and Families,Social Care ,Supplies and Services,Food & Drink,231,05/09/2022,2210-000585,0.00,12.18,R,Aldi 40 779,Yes
Http://opendatacommunities.org/id/metropolitan-district-council/leeds,Leeds City Council,31/10/2022,Children and Families,Social Care ,Supplies and Services,Food & Drink,231,10/09/2022,2210-000586,0.00,35.63,R,Aldi 40 779,Yes
Http://opendatacommunities.org/id/metropolitan-district-council/leeds,Leeds City Council,31/10/2022,Children and Families,Social Care ,Appropriations,Leaving Care Allowances,634,16/09/2022,2210-000587,0.00,30.75,R,Aldi 46 779,Yes
Http://opendatacommunities.org/id/metropolitan-district-council/leeds,Leeds City Council,31/10/2022,Children and Families,Social Care ,Appropriations,Leaving Care Allowances,634,16/09/2022,2210-000588,0.00,50.00,R,Aldi 46 779,Yes
Http://opendatacommunities.org/id/metropolitan-district-council/leeds,Leeds City Council,31/10/2022,Children and Families,Social Care ,Supplies and Services,Food & Drink,231,05/09/2022,2210-000589,0.00,12.93,R,Aldi 49 779,Yes
Http://opendatacommunities.org/id/metropolitan-district-council/leeds,Leeds City Council,31/10/2022,Children and Families,Social Care ,Appropriations,Young Peoples Rewards,653,10/09/2022,2210-000590,0.00,100.00,R,Aldi 49 779,Yes
Http://opendatacommunities.org/id/metropolitan-district-council/leeds,Leeds City Council,31/10/2022,Children and Families,Social Care ,Agency Payments,Section 17,551,21/09/2022,2210-000591,0.00,34.14,R,Aldi 49 779,Yes
Http://opendatacommunities.org/id/metropolitan-district-council/leeds,Leeds City Council,31/10/2022,Children and Families,Social Care ,Agency Payments,Placement Support,550,08/09/2022,2210-000592,0.00,39.03,R,Aldi 71 779,Yes
Http://opendatacommunities.org/id/metropolitan-district-council/leeds,Leeds City Council,31/10/2022,Children and Families,Social Care ,Supplies and Services,Food & Drink,231,09/09/2022,2210-000593,0.00,22.56,R,Aldi 71 779,Yes
Http://opendatacommunities.org/id/metropolitan-district-council/leeds,Leeds City Council,31/10/2022,Children and Families,Social Care ,Agency Payments,Placement Support,550,09/09/2022,2210-000594,0.00,14.25,R,Aldi 71 779,Yes
Http://opendatacommunities.org/id/metropolitan-district-council/leeds,Leeds City Council,31/10/2022,Children and Families,Social Care ,Agency Payments,Placement Support,550,09/09/2022,2210-000595,0.00,12.19,R,Aldi 71 779,Yes
Http://opendatacommunities.org/id/metropolitan-district-council/leeds,Leeds City Council,31/10/2022,Children and Families,Social Care ,Agency Payments,Section 17,551,09/09/2022,2210-000596,0.00,12.19,R,Aldi 71 779,Yes
Http://opendatacommunities.org/id/metropolitan-district-council/leeds,Leeds City Council,31/10/2022,Children and Families,Social Care ,Agency Payments,Section 17,551,12/09/2022,2210-000597,0.00,10.61,R,Aldi 71 779,Yes
Http://opendatacommunities.org/id/metropolitan-district-council/leeds,Leeds City Council,31/10/2022,Communities Housing and Environment,Customer Access ,Supplies and Services,Grant Related Expenditure,290,12/09/2022,2210-000598,0.00,100.00,R,Aldi 71 779,Yes
Http://opendatacommunities.org/id/metropolitan-district-council/leeds,Leeds City Council,31/10/2022,Children and Families,Social Care ,Agency Payments,Section 17,551,23/09/2022,2210-000599,0.00,21.16,R,Aldi 71 779,Yes
Http://opendatacommunities.org/id/metropolitan-district-council/leeds,Leeds City Council,31/10/2022,Communities Housing and Environment,Customer Access ,Supplies and Services,Grant Related Expenditure,290,26/09/2022,2210-000600,0.00,100.00,R,Aldi 71 779,Yes
Http://opendatacommunities.org/id/metropolitan-district-council/leeds,Leeds City Council,31/10/2022,Adults and Health,Services For Older People - 65 and Over ,Supplies and Services,Operational Materials,205,25/09/2022,2210-000601,0.00,14.17,R,Aldi 779-126,Yes
Http://opendatacommunities.org/id/metropolitan-district-council/leeds,Leeds City Council,31/10/2022,Children and Families,Social Care ,Appropriations,Leaving Care Allowances,634,15/09/2022,2210-000602,0.00,50.00,R,Aldi 779148,Yes
Http://opendatacommunities.org/id/metropolitan-district-council/leeds,Leeds City Council,31/10/2022,Children and Families,Social Care ,Supplies and Services,Food & Drink,231,31/08/2022,2210-000603,0.00,24.09,R,Aldi 85 779,Yes
Http://opendatacommunities.org/id/metropolitan-district-council/leeds,Leeds City Council,31/10/2022,Children and Families,Social Care ,Appropriations,Leaving Care Allowances,634,08/09/2022,2210-000604,0.00,48.00,R,Aldi 85 779,Yes
Http://opendatacommunities.org/id/metropolitan-district-council/leeds,Leeds City Council,31/10/2022,Children and Families,Social Care ,Premises,Cleaning Maintenance & Toiletries,127,14/09/2022,2210-000605,0.00,6.65,R,Aldi 85 779,Yes
Http://opendatacommunities.org/id/metropolitan-district-council/leeds,Leeds City Council,31/10/2022,Children and Families,Social Care ,Supplies and Services,Food & Drink,231,21/09/2022,2210-000606,0.00,32.21,R,Aldi 85 779,Yes
Http://opendatacommunities.org/id/metropolitan-district-council/leeds,Leeds City Council,31/10/2022,Children and Families,Social Care ,Supplies and Services,Food & Drink,231,22/09/2022,2210-000607,0.00,11.89,R,Aldi 85 779,Yes
Http://opendatacommunities.org/id/metropolitan-district-council/leeds,Leeds City Council,31/10/2022,Children and Families,Social Care ,Supplies and Services,Food & Drink,231,27/09/2022,2210-000608,0.00,115.95,R,Aldi 85 779,Yes
Http://opendatacommunities.org/id/metropolitan-district-council/leeds,Leeds City Council,31/10/2022,Children and Families,Social Care ,Supplies and Services,Food & Drink,231,28/09/2022,2210-000609,0.00,21.72,R,Aldi 85 779,Yes
Http://opendatacommunities.org/id/metropolitan-district-council/leeds,Leeds City Council,31/10/2022,Children and Families,Social Care ,Supplies and Services,Food & Drink,231,20/09/2022,2210-000610,0.00,16.35,R,Aldi 88 779,Yes
Http://opendatacommunities.org/id/metropolitan-district-council/leeds,Leeds City Council,31/10/2022,Children and Families,Social Care ,Supplies and Services,Food & Drink,231,02/09/2022,2210-000611,0.00,15.59,R,Aldi 89 779,Yes
Http://opendatacommunities.org/id/metropolitan-district-council/leeds,Leeds City Council,31/10/2022,Children and Families,Social Care ,Supplies and Services,Food & Drink,231,05/09/2022,2210-000612,0.00,106.21,R,Aldi 89 779,Yes
Http://opendatacommunities.org/id/metropolitan-district-council/leeds,Leeds City Council,31/10/2022,City Development,Libraries Arts & Heritage ,Supplies and Services,Other Hired and Contracted Services,265,10/09/2022,2210-000613,0.00,3.38,R,Aldi 89 779,Yes
Http://opendatacommunities.org/id/metropolitan-district-council/leeds,Leeds City Council,31/10/2022,Children and Families,Social Care ,Supplies and Services,Food & Drink,231,12/09/2022,2210-000614,0.00,167.85,R,Aldi 89 779,Yes
Http://opendatacommunities.org/id/metropolitan-district-council/leeds,Leeds City Council,31/10/2022,Children and Families,Social Care ,Supplies and Services,Food & Drink,231,13/09/2022,2210-000615,0.00,13.16,R,Aldi 89 779,Yes
Http://opendatacommunities.org/id/metropolitan-district-council/leeds,Leeds City Council,31/10/2022,Children and Families,Social Care ,Supplies and Services,Food & Drink,231,24/09/2022,2210-000616,0.00,6.04,R,Aldi 89 779,Yes
Http://opendatacommunities.org/id/metropolitan-district-council/leeds,Leeds City Council,31/10/2022,Children and Families,Social Care ,Supplies and Services,Food & Drink,231,26/09/2022,2210-000617,0.00,188.99,R,Aldi 89 779,Yes
Http://opendatacommunities.org/id/metropolitan-district-council/leeds,Leeds City Council,31/10/2022,Communities Housing and Environment,Parks and Countryside ,Supplies and Services,Food & Drink,231,24/09/2022,2210-000618,0.00,5.40,R,Aldi 99 779,Yes
Http://opendatacommunities.org/id/metropolitan-district-council/leeds,Leeds City Council,31/10/2022,Children and Families,Social Care ,Supplies and Services,Teaching Materials,202,12/09/2022,2210-000619,0.00,3.12,R,Aldi Stores,Yes
Http://opendatacommunities.org/id/metropolitan-district-council/leeds,Leeds City Council,31/10/2022,Children and Families,Social Care ,Supplies and Services,Operational Furniture and Equipment,203,21/09/2022,2210-000620,0.00,43.30,R,Aldi Stores,Yes
Http://opendatacommunities.org/id/metropolitan-district-council/leeds,Leeds City Council,31/10/2022,Children and Families,Social Care ,Appropriations,Leaving Care Allowances,634,23/09/2022,2210-000621,0.00,23.03,R,Aldi Stores,Yes
Http://opendatacommunities.org/id/metropolitan-district-council/leeds,Leeds City Council,31/10/2022,Children and Families,Social Care ,Appropriations,Leaving Care Allowances,634,27/09/2022,2210-000622,0.00,5.42,R,Aldi Stores,Yes
Http://opendatacommunities.org/id/metropolitan-district-council/leeds,Leeds City Council,31/10/2022,Children and Families,Social Care,Agency Payments,Contact,548,03/10/2022,2210-000623,0.00,36.90,R,REDACTED PERSONAL DATA,No
Http://opendatacommunities.org/id/metropolitan-district-council/leeds,Leeds City Council,31/10/2022,Children and Families,Social Care,Agency Payments,Contact,548,10/10/2022,2210-000624,0.00,36.90,R,REDACTED PERSONAL DATA,No
Http://opendatacommunities.org/id/metropolitan-district-council/leeds,Leeds City Council,31/10/2022,Children and Families,Social Care,Agency Payments,Contact,548,21/10/2022,2210-000625,0.00,36.90,R,REDACTED PERSONAL DATA,No
Http://opendatacommunities.org/id/metropolitan-district-council/leeds,Leeds City Council,31/10/2022,Children and Families,Social Care,Agency Payments,Contact,548,21/10/2022,2210-000626,0.00,36.90,R,REDACTED PERSONAL DATA,No
Http://opendatacommunities.org/id/metropolitan-district-council/leeds,Leeds City Council,31/10/2022,Children and Families,Social Care,Agency Payments,Contact,548,31/10/2022,2210-000627,0.00,36.90,R,REDACTED PERSONAL DATA,No
Http://opendatacommunities.org/id/metropolitan-district-council/leeds,Leeds City Council,31/10/2022,Children and Families,Social Care,Agency Payments,Allowances,546,17/10/2022,2210-000628,0.00,405.16,R,REDACTED PERSONAL DATA,No
Http://opendatacommunities.org/id/metropolitan-district-council/leeds,Leeds City Council,31/10/2022,Children and Families,Social Care,Agency Payments,Allowances,546,19/10/2022,2210-000629,0.00,405.16,R,REDACTED PERSONAL DATA,No
Http://opendatacommunities.org/id/metropolitan-district-council/leeds,Leeds City Council,31/10/2022,Children and Families,Social Care,Transport,Fuel (Non LCC Supplies),321,12/10/2022,2210-000630,0.00,65.00,R,REDACTED PERSONAL DATA,No
Http://opendatacommunities.org/id/metropolitan-district-council/leeds,Leeds City Council,31/10/2022,Children and Families,Social Care,Transport,Fuel (Non LCC Supplies),321,12/10/2022,2210-000631,0.00,75.00,R,REDACTED PERSONAL DATA,No
Http://opendatacommunities.org/id/metropolitan-district-council/leeds,Leeds City Council,31/10/2022,Resources,Commercial Services,Supplies and Services,Other Hired and Contracted Services,265,07/10/2022,2210-000632,0.00,280.00,R,ALEX WAGG,No
Http://opendatacommunities.org/id/metropolitan-district-council/leeds,Leeds City Council,31/10/2022,Resources,Commercial Services,Supplies and Services,Other Hired and Contracted Services,265,07/10/2022,2210-000633,0.00,120.00,R,ALEX WAGG,No
Http://opendatacommunities.org/id/metropolitan-district-council/leeds,Leeds City Council,31/10/2022,Resources,Commercial Services,Supplies and Services,Other Hired and Contracted Services,265,27/10/2022,2210-000634,0.00,100.00,R,ALEX WAGG,No
Http://opendatacommunities.org/id/metropolitan-district-council/leeds,Leeds City Council,31/10/2022,Adults and Health,Services For Older People - 65 and Over,Agency Payments,Residential Care Dementia,571,12/10/2022,2210-000635,0.00,11966.24,R,ALEXandER RESIDENTIAL HOME,No
Http://opendatacommunities.org/id/metropolitan-district-council/leeds,Leeds City Council,31/10/2022,Adults and Health,Services For Older People - 65 and Over,Agency Payments,Residential,580,12/10/2022,2210-000636,0.00,20201.24,R,ALEXandER RESIDENTIAL HOME,No
Http://opendatacommunities.org/id/metropolitan-district-council/leeds,Leeds City Council,31/10/2022,Children and Families,Social Care,Transport,Public Transport Expenses,310,27/10/2022,2210-000637,0.00,12.80,R,REDACTED PERSONAL DATA,No
Http://opendatacommunities.org/id/metropolitan-district-council/leeds,Leeds City Council,31/10/2022,Children and Families,Social Care,Appropriations,Leaving Care Grants,635,11/10/2022,2210-000638,0.00,649.95,R,REDACTED PERSONAL DATA,No
Http://opendatacommunities.org/id/metropolitan-district-council/leeds,Leeds City Council,31/10/2022,Communities Housing and Environment,Customer Access,Supplies and Services,Bought In Professional Services,277,26/10/2022,2210-000639,0.00,18.00,R,Alexandra Costenco,No
Http://opendatacommunities.org/id/metropolitan-district-council/leeds,Leeds City Council,31/10/2022,Adults and Health,Services For Older People - 65 and Over,Agency Payments,Residential Care Dementia,571,12/10/2022,2210-000640,0.00,6738.60,R,ALEXandRA COURT,No
Http://opendatacommunities.org/id/metropolitan-district-council/leeds,Leeds City Council,31/10/2022,Adults and Health,Services For Older People - 65 and Over,Agency Payments,Residential,580,12/10/2022,2210-000641,0.00,8730.24,R,ALEXandRA COURT,No
Http://opendatacommunities.org/id/metropolitan-district-council/leeds,Leeds City Council,31/10/2022,Communities Housing and Environment,Customer Access,Supplies and Services,Other Hired and Contracted Services,265,07/10/2022,2210-000642,0.00,440.00,R,Alexandra Garland,No
Http://opendatacommunities.org/id/metropolitan-district-council/leeds,Leeds City Council,31/10/2022,Children and Families,Social Care,Agency Payments,Services Rendered By Other Organisations,511,07/10/2022,2210-000643,0.00,233.02,R,REDACTED PERSONAL DATA,No
Http://opendatacommunities.org/id/metropolitan-district-council/leeds,Leeds City Council,31/10/2022,Adults and Health,Services For Older People - 65 and Over ,Supplies and Services,Clothing & Uniforms,241,09/09/2022,2210-000644,0.00,36.44,R,Alexandra Website,Yes
Http://opendatacommunities.org/id/metropolitan-district-council/leeds,Leeds City Council,31/10/2022,Adults and Health,Services For Older People - 65 and Over ,Supplies and Services,Clothing & Uniforms,241,09/09/2022,2210-000645,0.00,36.44,R,Alexandra Website,Yes
Http://opendatacommunities.org/id/metropolitan-district-council/leeds,Leeds City Council,31/10/2022,Adults and Health,Services For Older People - 65 and Over ,Supplies and Services,Clothing & Uniforms,241,21/09/2022,2210-000646,0.00,72.88,R,Alexandra Website,Yes
Http://opendatacommunities.org/id/metropolitan-district-council/leeds,Leeds City Council,31/10/2022,Adults and Health,Services For Older People - 65 and Over ,Supplies and Services,Clothing & Uniforms,241,21/09/2022,2210-000647,0.00,-21.86,R,Alexandra Website,Yes
Http://opendatacommunities.org/id/metropolitan-district-council/leeds,Leeds City Council,31/10/2022,Adults and Health,Services For Older People - 65 and Over ,Supplies and Services,Clothing & Uniforms,241,28/09/2022,2210-000648,0.00,244.80,R,Alexandra Website,Yes
Http://opendatacommunities.org/id/metropolitan-district-council/leeds,Leeds City Council,31/10/2022,Communities Housing and Environment,Customer Access,Supplies and Services,Bought In Professional Services,277,05/10/2022,2210-000649,0.00,130.00,R,ALEXIA BLOHM-PAIN,No
Http://opendatacommunities.org/id/metropolitan-district-council/leeds,Leeds City Council,31/10/2022,Communities Housing and Environment,Customer Access,Supplies and Services,Bought In Professional Services,277,19/10/2022,2210-000650,0.00,120.00,R,ALEXIA BLOHM-PAIN,No
Http://opendatacommunities.org/id/metropolitan-district-council/leeds,Leeds City Council,31/10/2022,Resources,Leeds Building Services,Supplies and Services,Other Hired and Contracted Services,265,05/10/2022,2210-000651,0.00,80.00,R,Alfred Bagnall & Sons (Leeds) Ltd,No
Http://opendatacommunities.org/id/metropolitan-district-council/leeds,Leeds City Council,31/10/2022,Resources,Leeds Building Services,Supplies and Services,Other Hired and Contracted Services,265,12/10/2022,2210-000652,0.00,1800.00,R,Alfred Bagnall & Sons (Leeds) Ltd,No
Http://opendatacommunities.org/id/metropolitan-district-council/leeds,Leeds City Council,31/10/2022,Resources,Leeds Building Services,Supplies and Services,Other Hired and Contracted Services,265,12/10/2022,2210-000653,0.00,250.00,R,Alfred Bagnall & Sons (Leeds) Ltd,No
Http://opendatacommunities.org/id/metropolitan-district-council/leeds,Leeds City Council,31/10/2022,Resources,Leeds Building Services,Supplies and Services,Other Hired and Contracted Services,265,12/10/2022,2210-000654,0.00,50.00,R,Alfred Bagnall & Sons (Leeds) Ltd,No
Http://opendatacommunities.org/id/metropolitan-district-council/leeds,Leeds City Council,31/10/2022,Resources,Leeds Building Services,Supplies and Services,Other Hired and Contracted Services,265,12/10/2022,2210-000655,0.00,1000.00,R,Alfred Bagnall & Sons (Leeds) Ltd,No
Http://opendatacommunities.org/id/metropolitan-district-council/leeds,Leeds City Council,31/10/2022,Communities Housing and Environment,Parks and Countryside,Supplies and Services,Other Hired and Contracted Services,265,13/10/2022,2210-000656,0.00,2350.00,R,Alfred Bagnall & Sons (Leeds) Ltd,No
Http://opendatacommunities.org/id/metropolitan-district-council/leeds,Leeds City Council,31/10/2022,Resources,Leeds Building Services,Supplies and Services,Other Hired and Contracted Services,265,13/10/2022,2210-000657,0.00,350.00,R,Alfred Bagnall & Sons (Leeds) Ltd,No
Http://opendatacommunities.org/id/metropolitan-district-council/leeds,Leeds City Council,31/10/2022,Resources,Leeds Building Services,Supplies and Services,Other Hired and Contracted Services,265,13/10/2022,2210-000658,0.00,400.00,R,Alfred Bagnall & Sons (Leeds) Ltd,No
Http://opendatacommunities.org/id/metropolitan-district-council/leeds,Leeds City Council,31/10/2022,Resources,Leeds Building Services,Supplies and Services,Other Hired and Contracted Services,265,13/10/2022,2210-000659,0.00,350.00,R,Alfred Bagnall & Sons (Leeds) Ltd,No
Http://opendatacommunities.org/id/metropolitan-district-council/leeds,Leeds City Council,31/10/2022,Resources,Leeds Building Services,Supplies and Services,Other Hired and Contracted Services,265,13/10/2022,2210-000660,0.00,500.00,R,Alfred Bagnall & Sons (Leeds) Ltd,No
Http://opendatacommunities.org/id/metropolitan-district-council/leeds,Leeds City Council,31/10/2022,Resources,Leeds Building Services,Supplies and Services,Other Hired and Contracted Services,265,13/10/2022,2210-000661,0.00,350.00,R,Alfred Bagnall & Sons (Leeds) Ltd,No
Http://opendatacommunities.org/id/metropolitan-district-council/leeds,Leeds City Council,31/10/2022,Resources,Leeds Building Services,Supplies and Services,Other Hired and Contracted Services,265,20/10/2022,2210-000662,0.00,390.00,R,Alfred Bagnall & Sons (Leeds) Ltd,No
Http://opendatacommunities.org/id/metropolitan-district-council/leeds,Leeds City Council,31/10/2022,Resources,Leeds Building Services,Supplies and Services,Other Hired and Contracted Services,265,21/10/2022,2210-000663,0.00,4789.18,R,Alfred Bagnall & Sons (Leeds) Ltd,No
Http://opendatacommunities.org/id/metropolitan-district-council/leeds,Leeds City Council,31/10/2022,Resources,Leeds Building Services,Supplies and Services,Other Hired and Contracted Services,265,21/10/2022,2210-000664,0.00,1995.00,R,Alfred Bagnall & Sons (Leeds) Ltd,No
Http://opendatacommunities.org/id/metropolitan-district-council/leeds,Leeds City Council,31/10/2022,Resources,Leeds Building Services,Supplies and Services,Other Hired and Contracted Services,265,21/10/2022,2210-000665,0.00,1190.00,R,Alfred Bagnall & Sons (Leeds) Ltd,No
Http://opendatacommunities.org/id/metropolitan-district-council/leeds,Leeds City Council,31/10/2022,Resources,Leeds Building Services,Supplies and Services,Other Hired and Contracted Services,265,21/10/2022,2210-000666,0.00,660.00,R,Alfred Bagnall & Sons (Leeds) Ltd,No
Http://opendatacommunities.org/id/metropolitan-district-council/leeds,Leeds City Council,31/10/2022,Resources,Leeds Building Services,Supplies and Services,Other Hired and Contracted Services,265,28/10/2022,2210-000667,0.00,7950.12,R,Alfred Bagnall & Sons (Leeds) Ltd,No
Http://opendatacommunities.org/id/metropolitan-district-council/leeds,Leeds City Council,31/10/2022,Resources,Leeds Building Services,Supplies and Services,Other Hired and Contracted Services,265,28/10/2022,2210-000668,0.00,24657.55,R,Alfred Bagnall & Sons (Leeds) Ltd,No
Http://opendatacommunities.org/id/metropolitan-district-council/leeds,Leeds City Council,31/10/2022,City Development,Libraries Arts & Heritage,Supplies and Services,Other Hired and Contracted Services,265,28/10/2022,2210-000669,0.00,500.00,R,ALGECO UK LIMITED,No
Http://opendatacommunities.org/id/metropolitan-district-council/leeds,Leeds City Council,31/10/2022,City Development,Libraries Arts & Heritage,Supplies and Services,Other Hired and Contracted Services,265,28/10/2022,2210-000670,0.00,2077.76,R,ALGECO UK LIMITED,No
Http://opendatacommunities.org/id/metropolitan-district-council/leeds,Leeds City Council,31/10/2022,City Development,Libraries Arts & Heritage,Supplies and Services,Other Hired and Contracted Services,265,28/10/2022,2210-000671,0.00,1100.52,R,ALGECO UK LIMITED,No
Http://opendatacommunities.org/id/metropolitan-district-council/leeds,Leeds City Council,31/10/2022,Communities Housing and Environment,Customer Access,Supplies and Services,Bought In Professional Services,277,05/10/2022,2210-000672,0.00,18.00,R,Ali Pourakaberian,No
Http://opendatacommunities.org/id/metropolitan-district-council/leeds,Leeds City Council,31/10/2022,Communities Housing and Environment,Customer Access,Supplies and Services,Bought In Professional Services,277,05/10/2022,2210-000673,0.00,9.00,R,Ali Pourakaberian,No
Http://opendatacommunities.org/id/metropolitan-district-council/leeds,Leeds City Council,31/10/2022,Communities Housing and Environment,Customer Access,Supplies and Services,Bought In Professional Services,277,05/10/2022,2210-000674,0.00,9.00,R,Ali Pourakaberian,No
Http://opendatacommunities.org/id/metropolitan-district-council/leeds,Leeds City Council,31/10/2022,Communities Housing and Environment,Customer Access,Supplies and Services,Bought In Professional Services,277,05/10/2022,2210-000675,0.00,18.00,R,Ali Pourakaberian,No
Http://opendatacommunities.org/id/metropolitan-district-council/leeds,Leeds City Council,31/10/2022,Communities Housing and Environment,Customer Access,Supplies and Services,Bought In Professional Services,277,12/10/2022,2210-000676,0.00,27.00,R,Ali Pourakaberian,No
Http://opendatacommunities.org/id/metropolitan-district-council/leeds,Leeds City Council,31/10/2022,Communities Housing and Environment,Customer Access,Supplies and Services,Bought In Professional Services,277,12/10/2022,2210-000677,0.00,18.00,R,Ali Pourakaberian,No
Http://opendatacommunities.org/id/metropolitan-district-council/leeds,Leeds City Council,31/10/2022,Communities Housing and Environment,Customer Access,Supplies and Services,Bought In Professional Services,277,19/10/2022,2210-000678,0.00,36.00,R,Ali Pourakaberian,No
Http://opendatacommunities.org/id/metropolitan-district-council/leeds,Leeds City Council,31/10/2022,Communities Housing and Environment,Customer Access,Supplies and Services,Bought In Professional Services,277,19/10/2022,2210-000679,0.00,27.00,R,Ali Pourakaberian,No
Http://opendatacommunities.org/id/metropolitan-district-council/leeds,Leeds City Council,31/10/2022,Communities Housing and Environment,Customer Access,Supplies and Services,Bought In Professional Services,277,19/10/2022,2210-000680,0.00,18.00,R,Ali Pourakaberian,No
Http://opendatacommunities.org/id/metropolitan-district-council/leeds,Leeds City Council,31/10/2022,Communities Housing and Environment,Customer Access,Supplies and Services,Bought In Professional Services,277,26/10/2022,2210-000681,0.00,18.00,R,Ali Pourakaberian,No
Http://opendatacommunities.org/id/metropolitan-district-council/leeds,Leeds City Council,31/10/2022,Communities Housing and Environment,Customer Access,Supplies and Services,Bought In Professional Services,277,26/10/2022,2210-000682,0.00,47.70,R,Ali Pourakaberian,No
Http://opendatacommunities.org/id/metropolitan-district-council/leeds,Leeds City Council,31/10/2022,Communities Housing and Environment,Customer Access,Supplies and Services,Bought In Professional Services,277,26/10/2022,2210-000683,0.00,18.00,R,Ali Pourakaberian,No
Http://opendatacommunities.org/id/metropolitan-district-council/leeds,Leeds City Council,31/10/2022,Communities Housing and Environment,Customer Access,Supplies and Services,Bought In Professional Services,277,26/10/2022,2210-000684,0.00,18.00,R,Ali Pourakaberian,No
Http://opendatacommunities.org/id/metropolitan-district-council/leeds,Leeds City Council,31/10/2022,Children and Families,Social Care,Appropriations,Leaving Care Allowances,634,14/10/2022,2210-000685,0.00,122.10,R,REDACTED PERSONAL DATA,No
Http://opendatacommunities.org/id/metropolitan-district-council/leeds,Leeds City Council,31/10/2022,Children and Families,Social Care,Agency Payments,Section 17,551,20/10/2022,2210-000686,0.00,127.00,R,REDACTED PERSONAL DATA,No
Http://opendatacommunities.org/id/metropolitan-district-council/leeds,Leeds City Council,31/10/2022,City Development,Libraries Arts & Heritage,Supplies and Services,Other Hired and Contracted Services,265,28/10/2022,2210-000687,0.00,946.97,R,Alice Jones,No
Http://opendatacommunities.org/id/metropolitan-district-council/leeds,Leeds City Council,31/10/2022,Adults and Health,Assessment and Care Management,Supplies and Services,Other Hired and Contracted Services,265,12/10/2022,2210-000688,0.00,13.19,R,REDACTED PERSONAL DATA,No
Http://opendatacommunities.org/id/metropolitan-district-council/leeds,Leeds City Council,31/10/2022,Adults and Health,Assessment and Care Management,Supplies and Services,Other Hired and Contracted Services,265,26/10/2022,2210-000689,0.00,8.72,R,REDACTED PERSONAL DATA,No
Http://opendatacommunities.org/id/metropolitan-district-council/leeds,Leeds City Council,31/10/2022,Children and Families,Social Care,Agency Payments,Contact,548,07/10/2022,2210-000690,0.00,10.40,R,REDACTED PERSONAL DATA,No
Http://opendatacommunities.org/id/metropolitan-district-council/leeds,Leeds City Council,31/10/2022,Children and Families,Social Care,Agency Payments,Contact,548,14/10/2022,2210-000691,0.00,10.40,R,REDACTED PERSONAL DATA,No
Http://opendatacommunities.org/id/metropolitan-district-council/leeds,Leeds City Council,31/10/2022,Children and Families,Social Care,Agency Payments,Contact,548,21/10/2022,2210-000692,0.00,10.40,R,REDACTED PERSONAL DATA,No
Http://opendatacommunities.org/id/metropolitan-district-council/leeds,Leeds City Council,31/10/2022,Children and Families,Social Care,Agency Payments,Contact,548,28/10/2022,2210-000693,0.00,10.40,R,REDACTED PERSONAL DATA,No
Http://opendatacommunities.org/id/metropolitan-district-council/leeds,Leeds City Council,31/10/2022,Children and Families,Social Care,Agency Payments,Services Rendered By Other Organisations,511,07/10/2022,2210-000694,0.00,466.05,R,REDACTED PERSONAL DATA,No
Http://opendatacommunities.org/id/metropolitan-district-council/leeds,Leeds City Council,31/10/2022,Strategic Landlord,Property and Contracts,Supplies and Services,Insurance Claims,248,26/10/2022,2210-000695,0.00,10559.00,R,Alison Law Solicitors,No
Http://opendatacommunities.org/id/metropolitan-district-council/leeds,Leeds City Council,31/10/2022,Strategic Landlord,Property and Contracts,Supplies and Services,Insurance Claims,248,26/10/2022,2210-000696,0.00,5559.00,R,Alison Law Solicitors,No
Http://opendatacommunities.org/id/metropolitan-district-council/leeds,Leeds City Council,31/10/2022,Resources,Commercial Services,Supplies and Services,Other Hired and Contracted Services,265,12/10/2022,2210-000697,0.00,588.00,R,REDACTED PERSONAL DATA,No
Http://opendatacommunities.org/id/metropolitan-district-council/leeds,Leeds City Council,31/10/2022,Resources,Commercial Services,Supplies and Services,Other Hired and Contracted Services,265,20/10/2022,2210-000698,0.00,352.80,R,REDACTED PERSONAL DATA,No
Http://opendatacommunities.org/id/metropolitan-district-council/leeds,Leeds City Council,31/10/2022,Insurance,Insurance,Supplies and Services,Insurance Claims,248,31/10/2022,2210-000699,0.00,1020.00,R,Alkers Solicitors,No
Http://opendatacommunities.org/id/metropolitan-district-council/leeds,Leeds City Council,31/10/2022,Children and Families,Social Care ,Supplies and Services,Operational Furniture and Equipment,203,16/09/2022,2210-000700,0.00,172.00,R,All Service,Yes
Http://opendatacommunities.org/id/metropolitan-district-council/leeds,Leeds City Council,31/10/2022,Children and Families,Social Care,Agency Payments,Services Rendered By Other Organisations,511,05/10/2022,2210-000701,0.00,2172.30,R,All Stars Childcare,No
Http://opendatacommunities.org/id/metropolitan-district-council/leeds,Leeds City Council,31/10/2022,Children and Families,Social Care,Agency Payments,Services Rendered By Other Organisations,511,07/10/2022,2210-000702,0.00,3013.79,R,All Stars Childcare,No
Http://opendatacommunities.org/id/metropolitan-district-council/leeds,Leeds City Council as Accountable Body,31/10/2022,Social Services Pooled Budgets,Jcs For People With Learning Disabilitie,Agency Payments,Sheltered Accommodation,569,12/10/2022,2210-000703,0.00,69482.96,R,Allerton Avenue,No
Http://opendatacommunities.org/id/metropolitan-district-council/leeds,Leeds City Council,31/10/2022,Communities Housing and Environment,Communities,Supplies and Services,'Well Being' Large Grants Projects,230,21/10/2022,2210-000704,0.00,699.00,R,Allerton Bywater Miners Football Club,No
Http://opendatacommunities.org/id/metropolitan-district-council/leeds,Leeds City Council,31/10/2022,Adults and Health,Public Health,Agency Payments,Public Health Commissioned Services,526,28/10/2022,2210-000705,0.00,1361.56,R,Allerton Medical Centre,No
Http://opendatacommunities.org/id/metropolitan-district-council/leeds,Leeds City Council,31/10/2022,Adults and Health,Services For Older People - 65 and Over,Agency Payments,Nursing Care Dementia,574,12/10/2022,2210-000706,0.00,990.00,R,ALLERTON PARK N H,No
Http://opendatacommunities.org/id/metropolitan-district-council/leeds,Leeds City Council,31/10/2022,Resources,Finance,Supplies and Services,Bank Charges,263,05/10/2022,2210-000707,0.00,100.19,R,ALLIANCE & LEICESTER COMMERCIAL BANK,No
Http://opendatacommunities.org/id/metropolitan-district-council/leeds,Leeds City Council,31/10/2022,Resources,Finance,Supplies and Services,Bank Charges,263,05/10/2022,2210-000708,0.00,99.60,R,ALLIANCE & LEICESTER COMMERCIAL BANK,No
Http://opendatacommunities.org/id/metropolitan-district-council/leeds,Leeds City Council,31/10/2022,Resources,Commercial Services,Supplies and Services,Operational Materials,205,07/10/2022,2210-000709,0.00,170.68,R,ALLIANCE DISPOSABLES LTD,No
Http://opendatacommunities.org/id/metropolitan-district-council/leeds,Leeds City Council,31/10/2022,Resources,Commercial Services,Supplies and Services,Operational Materials,205,07/10/2022,2210-000710,0.00,557.10,R,ALLIANCE DISPOSABLES LTD,No
Http://opendatacommunities.org/id/metropolitan-district-council/leeds,Leeds City Council,31/10/2022,Resources,Commercial Services,Supplies and Services,Operational Materials,205,13/10/2022,2210-000711,0.00,269.34,R,ALLIANCE DISPOSABLES LTD,No
Http://opendatacommunities.org/id/metropolitan-district-council/leeds,Leeds City Council,31/10/2022,Resources,Commercial Services,Supplies and Services,Operational Materials,205,21/10/2022,2210-000712,0.00,271.47,R,ALLIANCE DISPOSABLES LTD,No
Http://opendatacommunities.org/id/metropolitan-district-council/leeds,Leeds City Council,31/10/2022,Resources,Commercial Services,Supplies and Services,Operational Materials,205,26/10/2022,2210-000713,0.00,306.72,R,ALLIANCE DISPOSABLES LTD,No
Http://opendatacommunities.org/id/metropolitan-district-council/leeds,Leeds City Council,31/10/2022,Resources,Commercial Services,Supplies and Services,Operational Materials,205,26/10/2022,2210-000714,0.00,89.78,R,ALLIANCE DISPOSABLES LTD,No
Http://opendatacommunities.org/id/metropolitan-district-council/leeds,Leeds City Council,31/10/2022,Resources,Commercial Services,Supplies and Services,Operational Materials,205,28/10/2022,2210-000715,0.00,-195.95,R,ALLIANCE DISPOSABLES LTD,No
Http://opendatacommunities.org/id/metropolitan-district-council/leeds,Leeds City Council,31/10/2022,Resources,Commercial Services,Supplies and Services,Operational Materials,205,28/10/2022,2210-000716,0.00,134.67,R,ALLIANCE DISPOSABLES LTD,No
Http://opendatacommunities.org/id/metropolitan-district-council/leeds,Leeds City Council,31/10/2022,Resources,Commercial Services,Supplies and Services,Operational Materials,205,28/10/2022,2210-000717,0.00,89.78,R,ALLIANCE DISPOSABLES LTD,No
Http://opendatacommunities.org/id/metropolitan-district-council/leeds,Leeds City Council,31/10/2022,Resources,Commercial Services,Supplies and Services,Operational Materials,205,28/10/2022,2210-000718,0.00,44.89,R,ALLIANCE DISPOSABLES LTD,No
Http://opendatacommunities.org/id/metropolitan-district-council/leeds,Leeds City Council,31/10/2022,Resources,Leeds Building Services,Supplies and Services,Other Hired and Contracted Services,265,04/10/2022,2210-000719,0.00,1380.00,R,Alliance Steel Services Ltd,No
Http://opendatacommunities.org/id/metropolitan-district-council/leeds,Leeds City Council,31/10/2022,Resources,Leeds Building Services,Supplies and Services,Other Hired and Contracted Services,265,04/10/2022,2210-000720,0.00,6153.00,R,Alliance Steel Services Ltd,No
Http://opendatacommunities.org/id/metropolitan-district-council/leeds,Leeds City Council,31/10/2022,Resources,Commercial Services,Transport,Vehicle Spares,345,21/10/2022,2210-000721,0.00,660.00,R,Alliance Transport Technologies Ltd,No
Http://opendatacommunities.org/id/metropolitan-district-council/leeds,Leeds City Council,31/10/2022,Adults and Health,Services For Adults Under 65 Mental/Dis,Agency Payments,Home Care,568,05/10/2022,2210-000722,0.00,973.29,R,Allied Healthcare,No
Http://opendatacommunities.org/id/metropolitan-district-council/leeds,Leeds City Council,31/10/2022,Adults and Health,Services For Older People - 65 and Over,Agency Payments,Home Care,568,05/10/2022,2210-000723,0.00,38.10,R,Allied Healthcare,No
Http://opendatacommunities.org/id/metropolitan-district-council/leeds,Leeds City Council,31/10/2022,Adults and Health,Services For Older People - 65 and Over,Agency Payments,Home Care,568,05/10/2022,2210-000724,0.00,42590.11,R,Allied Healthcare,No
Http://opendatacommunities.org/id/metropolitan-district-council/leeds,Leeds City Council,31/10/2022,Adults and Health,Services For Older People - 65 and Over,Agency Payments,Home Care,568,05/10/2022,2210-000725,0.00,1828.80,R,Allied Healthcare,No
Http://opendatacommunities.org/id/metropolitan-district-council/leeds,Leeds City Council,31/10/2022,Adults and Health,Services For Older People - 65 and Over,Agency Payments,HCAIT Community Support,575,05/10/2022,2210-000726,0.00,61.47,R,Allied Healthcare,No
Http://opendatacommunities.org/id/metropolitan-district-council/leeds,Leeds City Council,31/10/2022,Adults and Health,Services For Older People - 65 and Over,Agency Payments,HCAIT Other,577,05/10/2022,2210-000727,0.00,1292.45,R,Allied Healthcare,No
Http://opendatacommunities.org/id/metropolitan-district-council/leeds,Leeds City Council,31/10/2022,Adults and Health,Services For Older People Under 65 P/Dis,Agency Payments,Home Care,568,05/10/2022,2210-000728,0.00,7396.96,R,Allied Healthcare,No
Http://opendatacommunities.org/id/metropolitan-district-council/leeds,Leeds City Council,31/10/2022,Adults and Health,Services For Older People Under 65 P/Dis,Agency Payments,Home Care,568,05/10/2022,2210-000729,0.00,609.60,R,Allied Healthcare,No
Http://opendatacommunities.org/id/metropolitan-district-council/leeds,Leeds City Council,31/10/2022,Adults and Health,Services For Older People Under 65 P/Dis,Agency Payments,HCAIT Community Support,575,05/10/2022,2210-000730,0.00,3442.32,R,Allied Healthcare,No
Http://opendatacommunities.org/id/metropolitan-district-council/leeds,Leeds City Council as Accountable Body,31/10/2022,Social Services Pooled Budgets,Jcs For People With Learning Disabilitie,Agency Payments,Home Care,568,12/10/2022,2210-000731,0.00,8626.00,R,Allied Healthcare,No
Http://opendatacommunities.org/id/metropolitan-district-council/leeds,Leeds City Council,31/10/2022,Adults and Health,Services For Adults Under 65 Mental/Dis,Agency Payments,Home Care,568,26/10/2022,2210-000732,0.00,1516.28,R,Allied Healthcare,No
Http://opendatacommunities.org/id/metropolitan-district-council/leeds,Leeds City Council,31/10/2022,Adults and Health,Services For Older People - 65 and Over,Agency Payments,Home Care,568,26/10/2022,2210-000733,0.00,35572.33,R,Allied Healthcare,No
Http://opendatacommunities.org/id/metropolitan-district-council/leeds,Leeds City Council,31/10/2022,Adults and Health,Services For Older People - 65 and Over,Agency Payments,HCAIT Community Support,575,26/10/2022,2210-000734,0.00,245.88,R,Allied Healthcare,No
Http://opendatacommunities.org/id/metropolitan-district-council/leeds,Leeds City Council,31/10/2022,Adults and Health,Services For Older People - 65 and Over,Agency Payments,HCAIT Other,577,26/10/2022,2210-000735,0.00,1302.30,R,Allied Healthcare,No
Http://opendatacommunities.org/id/metropolitan-district-council/leeds,Leeds City Council,31/10/2022,Adults and Health,Services For Older People Under 65 P/Dis,Agency Payments,Home Care,568,26/10/2022,2210-000736,0.00,7396.91,R,Allied Healthcare,No
Http://opendatacommunities.org/id/metropolitan-district-council/leeds,Leeds City Council,31/10/2022,Adults and Health,Services For Older People Under 65 P/Dis,Agency Payments,HCAIT Community Support,575,26/10/2022,2210-000737,0.00,3442.32,R,Allied Healthcare,No
Http://opendatacommunities.org/id/metropolitan-district-council/leeds,Leeds City Council as Accountable Body,31/10/2022,Social Services Pooled Budgets,Jcs For People With Learning Disabilitie,Agency Payments,Home Care,568,28/10/2022,2210-000738,0.00,628.48,R,Allied Healthcare,No
Http://opendatacommunities.org/id/metropolitan-district-council/leeds,Leeds City Council,31/10/2022,Resources,Shared Services,External Income,Service Charges & Security Fees,938,27/10/2022,2210-000739,0.00,3056.81,R,Allied Publicity Services,No
Http://opendatacommunities.org/id/metropolitan-district-council/leeds,Leeds City Council,31/10/2022,Children and Families,Social Care,Supplies and Services,Other Hired and Contracted Services,265,07/10/2022,2210-000740,0.00,675.00,R,Allison Jayne Sandiford,No
Http://opendatacommunities.org/id/metropolitan-district-council/leeds,Leeds City Council,31/10/2022,Children and Families,Social Care,Agency Payments,Allowances,546,04/10/2022,2210-000741,0.00,246.44,R,Allpay,No
Http://opendatacommunities.org/id/metropolitan-district-council/leeds,Leeds City Council,31/10/2022,Children and Families,Social Care,Agency Payments,Allowances,546,04/10/2022,2210-000742,0.00,100.00,R,Allpay,No
Http://opendatacommunities.org/id/metropolitan-district-council/leeds,Leeds City Council,31/10/2022,Children and Families,Social Care,Agency Payments,Section 17,551,04/10/2022,2210-000743,0.00,25.00,R,Allpay,No
Http://opendatacommunities.org/id/metropolitan-district-council/leeds,Leeds City Council,31/10/2022,Children and Families,Social Care,Appropriations,16 Plus Top Up Allowance,625,04/10/2022,2210-000744,0.00,160.00,R,Allpay,No
Http://opendatacommunities.org/id/metropolitan-district-council/leeds,Leeds City Council,31/10/2022,Children and Families,Social Care,Appropriations,Leaving Care Allowances,634,04/10/2022,2210-000745,0.00,3000.00,R,Allpay,No
Http://opendatacommunities.org/id/metropolitan-district-council/leeds,Leeds City Council,31/10/2022,Children and Families,Social Care,Agency Payments,Contact,548,05/10/2022,2210-000746,0.00,51.00,R,Allpay,No
Http://opendatacommunities.org/id/metropolitan-district-council/leeds,Leeds City Council,31/10/2022,Children and Families,Social Care,Agency Payments,Placement Support,550,05/10/2022,2210-000747,0.00,265.00,R,Allpay,No
Http://opendatacommunities.org/id/metropolitan-district-council/leeds,Leeds City Council,31/10/2022,Children and Families,Social Care,Agency Payments,Section 17,551,05/10/2022,2210-000748,0.00,300.00,R,Allpay,No
Http://opendatacommunities.org/id/metropolitan-district-council/leeds,Leeds City Council,31/10/2022,Children and Families,Social Care,Agency Payments,Section 17,551,05/10/2022,2210-000749,0.00,409.00,R,Allpay,No
Http://opendatacommunities.org/id/metropolitan-district-council/leeds,Leeds City Council,31/10/2022,Children and Families,Social Care,Appropriations,16 Plus Top Up Allowance,625,05/10/2022,2210-000750,0.00,180.00,R,Allpay,No
Http://opendatacommunities.org/id/metropolitan-district-council/leeds,Leeds City Council,31/10/2022,Children and Families,Social Care,Appropriations,Leaving Care Allowances,634,05/10/2022,2210-000751,0.00,2287.79,R,Allpay,No
Http://opendatacommunities.org/id/metropolitan-district-council/leeds,Leeds City Council,31/10/2022,Children and Families,Social Care,Appropriations,Leaving Care Allowances,634,05/10/2022,2210-000752,0.00,100.00,R,Allpay,No
Http://opendatacommunities.org/id/metropolitan-district-council/leeds,Leeds City Council,31/10/2022,Children and Families,Social Care,Transport,Fuel (Non LCC Supplies),321,06/10/2022,2210-000753,0.00,75.00,R,Allpay,No
Http://opendatacommunities.org/id/metropolitan-district-council/leeds,Leeds City Council,31/10/2022,Children and Families,Social Care,Agency Payments,Placement Support,550,06/10/2022,2210-000754,0.00,60.00,R,Allpay,No
Http://opendatacommunities.org/id/metropolitan-district-council/leeds,Leeds City Council,31/10/2022,Children and Families,Social Care,Agency Payments,Section 17,551,06/10/2022,2210-000755,0.00,84.20,R,Allpay,No
Http://opendatacommunities.org/id/metropolitan-district-council/leeds,Leeds City Council,31/10/2022,Children and Families,Social Care,Agency Payments,Section 17,551,06/10/2022,2210-000756,0.00,80.00,R,Allpay,No
Http://opendatacommunities.org/id/metropolitan-district-council/leeds,Leeds City Council,31/10/2022,Children and Families,Social Care,Appropriations,16 Plus Top Up Allowance,625,06/10/2022,2210-000757,0.00,120.00,R,Allpay,No
Http://opendatacommunities.org/id/metropolitan-district-council/leeds,Leeds City Council,31/10/2022,Children and Families,Social Care,Appropriations,Leaving Care Allowances,634,06/10/2022,2210-000758,0.00,60.00,R,Allpay,No
Http://opendatacommunities.org/id/metropolitan-district-council/leeds,Leeds City Council,31/10/2022,Children and Families,Social Care,Appropriations,Leaving Care Allowances,634,06/10/2022,2210-000759,0.00,427.35,R,Allpay,No
Http://opendatacommunities.org/id/metropolitan-district-council/leeds,Leeds City Council,31/10/2022,Children and Families,Social Care,Appropriations,Leaving Care Allowances,634,06/10/2022,2210-000760,0.00,50.00,R,Allpay,No
Http://opendatacommunities.org/id/metropolitan-district-council/leeds,Leeds City Council,31/10/2022,Children and Families,Social Care,Agency Payments,Section 17,551,07/10/2022,2210-000761,0.00,178.89,R,Allpay,No
Http://opendatacommunities.org/id/metropolitan-district-council/leeds,Leeds City Council,31/10/2022,Children and Families,Social Care,Agency Payments,Placement Support,550,10/10/2022,2210-000762,0.00,30.00,R,Allpay,No
Http://opendatacommunities.org/id/metropolitan-district-council/leeds,Leeds City Council,31/10/2022,Children and Families,Social Care,Agency Payments,Section 17,551,10/10/2022,2210-000763,0.00,225.00,R,Allpay,No
Http://opendatacommunities.org/id/metropolitan-district-council/leeds,Leeds City Council,31/10/2022,Children and Families,Social Care,Agency Payments,Section 17,551,10/10/2022,2210-000764,0.00,104.00,R,Allpay,No
Http://opendatacommunities.org/id/metropolitan-district-council/leeds,Leeds City Council,31/10/2022,Children and Families,Social Care,Appropriations,16 Plus Top Up Allowance,625,10/10/2022,2210-000765,0.00,60.00,R,Allpay,No
Http://opendatacommunities.org/id/metropolitan-district-council/leeds,Leeds City Council,31/10/2022,Children and Families,Social Care,Appropriations,Leaving Care Allowances,634,10/10/2022,2210-000766,0.00,60.00,R,Allpay,No
Http://opendatacommunities.org/id/metropolitan-district-council/leeds,Leeds City Council,31/10/2022,Children and Families,Social Care,Appropriations,Leaving Care Allowances,634,10/10/2022,2210-000767,0.00,60.00,R,Allpay,No
Http://opendatacommunities.org/id/metropolitan-district-council/leeds,Leeds City Council,31/10/2022,Children and Families,Social Care,Agency Payments,Contact,548,11/10/2022,2210-000768,0.00,56.50,R,Allpay,No
Http://opendatacommunities.org/id/metropolitan-district-council/leeds,Leeds City Council,31/10/2022,Children and Families,Social Care,Agency Payments,Contact,548,11/10/2022,2210-000769,0.00,80.00,R,Allpay,No
Http://opendatacommunities.org/id/metropolitan-district-council/leeds,Leeds City Council,31/10/2022,Children and Families,Social Care,Agency Payments,Placement Support,550,11/10/2022,2210-000770,0.00,265.00,R,Allpay,No
Http://opendatacommunities.org/id/metropolitan-district-council/leeds,Leeds City Council,31/10/2022,Children and Families,Social Care,Agency Payments,Section 17,551,11/10/2022,2210-000771,0.00,50.00,R,Allpay,No
Http://opendatacommunities.org/id/metropolitan-district-council/leeds,Leeds City Council,31/10/2022,Children and Families,Social Care,Agency Payments,Section 17,551,11/10/2022,2210-000772,0.00,609.55,R,Allpay,No
Http://opendatacommunities.org/id/metropolitan-district-council/leeds,Leeds City Council,31/10/2022,Children and Families,Social Care,Appropriations,16 Plus Top Up Allowance,625,11/10/2022,2210-000773,0.00,80.00,R,Allpay,No
Http://opendatacommunities.org/id/metropolitan-district-council/leeds,Leeds City Council,31/10/2022,Children and Families,Social Care,Appropriations,16 Plus Top Up Allowance,625,11/10/2022,2210-000774,0.00,260.00,R,Allpay,No
Http://opendatacommunities.org/id/metropolitan-district-council/leeds,Leeds City Council,31/10/2022,Children and Families,Social Care,Appropriations,Leaving Care Allowances,634,11/10/2022,2210-000775,0.00,10.00,R,Allpay,No
Http://opendatacommunities.org/id/metropolitan-district-council/leeds,Leeds City Council,31/10/2022,Children and Families,Social Care,Appropriations,Leaving Care Allowances,634,11/10/2022,2210-000776,0.00,2351.72,R,Allpay,No
Http://opendatacommunities.org/id/metropolitan-district-council/leeds,Leeds City Council,31/10/2022,Children and Families,Social Care,Agency Payments,Section 17,551,12/10/2022,2210-000777,0.00,100.00,R,Allpay,No
Http://opendatacommunities.org/id/metropolitan-district-council/leeds,Leeds City Council,31/10/2022,Children and Families,Social Care,Agency Payments,Section 17,551,12/10/2022,2210-000778,0.00,170.00,R,Allpay,No
Http://opendatacommunities.org/id/metropolitan-district-council/leeds,Leeds City Council,31/10/2022,Children and Families,Social Care,Agency Payments,Section 17,551,13/10/2022,2210-000779,0.00,600.00,R,Allpay,No
Http://opendatacommunities.org/id/metropolitan-district-council/leeds,Leeds City Council,31/10/2022,Children and Families,Social Care,Appropriations,Leaving Care Allowances,634,13/10/2022,2210-000780,0.00,241.05,R,Allpay,No
Http://opendatacommunities.org/id/metropolitan-district-council/leeds,Leeds City Council,31/10/2022,Children and Families,Social Care,Agency Payments,Contact,548,14/10/2022,2210-000781,0.00,20.80,R,Allpay,No
Http://opendatacommunities.org/id/metropolitan-district-council/leeds,Leeds City Council,31/10/2022,Children and Families,Social Care,Agency Payments,Contact,548,14/10/2022,2210-000782,0.00,11.00,R,Allpay,No
Http://opendatacommunities.org/id/metropolitan-district-council/leeds,Leeds City Council,31/10/2022,Children and Families,Social Care,Agency Payments,Section 17,551,14/10/2022,2210-000783,0.00,60.00,R,Allpay,No
Http://opendatacommunities.org/id/metropolitan-district-council/leeds,Leeds City Council,31/10/2022,Children and Families,Social Care,Agency Payments,Section 17,551,14/10/2022,2210-000784,0.00,50.00,R,Allpay,No
Http://opendatacommunities.org/id/metropolitan-district-council/leeds,Leeds City Council,31/10/2022,Children and Families,Social Care,Appropriations,Leaving Care Allowances,634,14/10/2022,2210-000785,0.00,61.05,R,Allpay,No
Http://opendatacommunities.org/id/metropolitan-district-council/leeds,Leeds City Council,31/10/2022,Children and Families,Social Care,Appropriations,Leaving Care Allowances,634,14/10/2022,2210-000786,0.00,25.00,R,Allpay,No
Http://opendatacommunities.org/id/metropolitan-district-council/leeds,Leeds City Council,31/10/2022,Children and Families,Social Care,Appropriations,Leaving Care Allowances,634,14/10/2022,2210-000787,0.00,122.10,R,Allpay,No
Http://opendatacommunities.org/id/metropolitan-district-council/leeds,Leeds City Council,31/10/2022,Children and Families,Social Care,Agency Payments,Section 17,551,17/10/2022,2210-000788,0.00,100.00,R,Allpay,No
Http://opendatacommunities.org/id/metropolitan-district-council/leeds,Leeds City Council,31/10/2022,Children and Families,Social Care,Agency Payments,Section 17,551,17/10/2022,2210-000789,0.00,50.00,R,Allpay,No
